{"text_format":"1","workbook":"xlsx","n_sheets":27,"sheets":["Photos","Champions","Écuries","Pilotes","Bahrein","Arabie Saoudite","Australie","Azerbaïdjan","Miami","ItalieIm","Monaco","Espagne","Canada","Autriche","GB","Hongrie","Belgique","Pays-Bas","Italie","Singapour","Japon","Qatar","USA","Mexique","Brésil","Las Végas","AbuDhabi"],"not_rendered":{"charts":0,"images":133,"macros":1,"external_links":2,"defined_names":32,"comments":0,"pivot_tables":0},"unopened":[],"bounds":{"document_bytes":16777216,"sheet_cells":100000,"rows_first":2000,"rows_last":500,"rows_between":2000,"halvings":0,"cell_chars":16384,"cell_head_chars":4096},"cells_cut":0,"cells_raw":0,"read":"whole","date_system":"1900"}

{"sheet":"Photos","index":0,"n_rows":27,"n_cols":20,"rows_kept":27,"cut":false,"hidden":false,"merged":[[1,5,1,7],[1,1,1,3],[1,9,1,11],[1,13,1,15],[1,17,1,19]]}
[]
[null," Pilotes",null,null,null,"Autos",null,null,null,"Logos ",null,null,null,"Champions Pilotes",null,null,null,"Champions Voitures"]
[null,"Noms",null,"Photos",null,"Noms",null,"Photos",null,"Noms",null,"Photos",null,"Noms",null,"Drapeaux",null,"Noms",null,"Drapeaux"]
[null,"HAMILTON Lewis",{"$f":"\"Photos!\"&ADDRESS(ROW(C4),COLUMN(D4))","v":"Photos!$D$4"},null,null,"MERCEDES",{"$f":"\"Photos!\"&ADDRESS(ROW(G4),COLUMN(H4))","v":"Photos!$H$4"},null,null,"MERCEDES",{"$f":"\"Photos!\"&ADDRESS(ROW(K4),COLUMN(L4))","v":"Photos!$L$4"},null,null,"HAMILTON Lewis",{"$f":"\"Photos!\"&ADDRESS(ROW(O4),COLUMN(P4))","v":"Photos!$P$4"},null,null,"MERCEDES",{"$f":"\"Photos!\"&ADDRESS(ROW(S4),COLUMN(T4))","v":"Photos!$T$4"}]
[null,"RUSSELL George","Photos!$D$5",null,null,"FERRARI","Photos!$H$5",null,null,"FERRARI",{"$f":"\"Photos!\"&ADDRESS(ROW(K5),COLUMN(L5))","v":"Photos!$L$5"},null,null,"RUSSELL George","Photos!$P$5",null,null,"FERRARI","Photos!$T$5"]
[null,"LECLERC Charles","Photos!$D$6",null,null,"RED BULL RACING","Photos!$H$6",null,null,"RED BULL RACING","Photos!$L$6",null,null,"LECLERC Charles","Photos!$P$6",null,null,"RED BULL RACING","Photos!$T$6"]
[null,"SAINZ.Jr Carlos","Photos!$D$7",null,null,"ASTON MARTIN","Photos!$H$7",null,null,"ASTON MARTIN","Photos!$L$7",null,null,"SAINZ.Jr Carlos","Photos!$P$7",null,null,"ASTON MARTIN","Photos!$T$7"]
[null,"VERSTAPPEN Max","Photos!$D$8",null,null,"WILLIAMS","Photos!$H$8",null,null,"WILLIAMS","Photos!$L$8",null,null,"VERSTAPPEN Max","Photos!$P$8",null,null,"WILLIAMS","Photos!$T$8"]
[null,"PEREZ Sergio","Photos!$D$9",null,null,"ALPINE F1 TEAM","Photos!$H$9",null,null,"ALPINE F1 TEAM","Photos!$L$9",null,null,"PEREZ Sergio","Photos!$P$9",null,null,"ALPINE F1 TEAM","Photos!$T$9"]
[null,"STROLL Lance","Photos!$D$10",null,null,"ALPHA TAURI","Photos!$H$10",null,null,"ALPHA TAURI","Photos!$L$10",null,null,"STROLL Lance","Photos!$P$10",null,null,"ALPHA TAURI","Photos!$T$10"]
[null,"ALONSO Fernando","Photos!$D$11",null,null,"HAAS","Photos!$H$11",null,null,"HAAS","Photos!$L$11",null,null,"ALONSO Fernando","Photos!$P$11",null,null,"HAAS","Photos!$T$11"]
[null,"SARGEANT Logan","Photos!$D$12",null,null,"Mc LAREN","Photos!$H$12",null,null,"Mc LAREN","Photos!$L$12",null,null,"SARGEANT Logan","Photos!$P$12",null,null,"Mc LAREN","Photos!$T$12"]
[null,"ALBON Alexander","Photos!$D$13",null,null,"ALFA ROMÉO","Photos!$H$13",null,null,"ALFA ROMÉO","Photos!$L$13",null,null,"ALBON Alexander","Photos!$P$13",null,null,"ALFA ROMÉO","Photos!$T$13"]
[null,"GASLY Pierre","Photos!$D$14",null,null,null,null,null,null,null,null,null,null,"GASLY Pierre","Photos!$P$14"]
[null,"OCON Sebastian","Photos!$D$15",null,null,null,null,null,null,null,null,null,null,"OCON Sebastian","Photos!$P$15"]
[null,"TSUNODA Yoki","Photos!$D$16",null,null,null,null,null,null,null,null,null,null,"TSUNODA Yoki","Photos!$P$16"]
[null,"DEVRIES Nyck","Photos!$D$17",null,null,null,null,null,null,null,null,null,null,"DEVRIES Nyck","Photos!$P$17"]
[null,"HULKENBERG Nico","Photos!$D$18",null,null,null,null,null,null,null,null,null,null,"HULKENBERG Nico","Photos!$P$18"]
[null,"MAGNUSSEN Kevin","Photos!$D$19",null,null,null,null,null,null,null,null,null,null,"MAGNUSSEN Kevin","Photos!$P$19"]
[null,"NORRIS Lando","Photos!$D$20",null,null,null,null,null,null,null,null,null,null,"NORRIS Lando","Photos!$P$20"]
[null,"PIASTRI Oscar","Photos!$D$21",null,null,null,null,null,null,null,null,null,null,"PIASTRI Oscar","Photos!$P$21"]
[null,"BOTTAS Valtteri","Photos!$D$22",null,null,null,null,null,null,null,null,null,null,"BOTTAS Valtteri","Photos!$P$22"]
[null,"GUANYU Zhou","Photos!$D$23",null,null,null,null,null,null,null,null,null,null,"GUANYU Zhou","Photos!$P$23"]
[null,"DUGROVICH Felipe","Photos!$D$24",null,null,null,null,null,null,null,null,null,null,"DUGROVICH Felipe","Photos!$P$24"]
[null,null,"Photos!$D$25",null,null,null,null,null,null,null,null,null,null,null,"Photos!$P$25"]
[null,null,"Photos!$D$26",null,null,null,null,null,null,null,null,null,null,null,"Photos!$P$26"]
[null,null,{"$f":"\"Photos!\"&ADDRESS(ROW(C27),COLUMN(D27))","v":"Photos!$D$27"},null,null,null,null,null,null,null,null,null,null,null,{"$f":"\"Photos!\"&ADDRESS(ROW(O27),COLUMN(P27))","v":"Photos!$P$27"}]

{"sheet":"Champions","index":1,"n_rows":39,"n_cols":10,"rows_kept":39,"cut":false,"hidden":false,"merged":[[3,2,3,10],[28,2,28,10],[34,5,34,7],[35,5,35,7],[7,5,7,7],[8,5,8,7],[10,1,10,3],[11,1,11,3],[10,9,10,11],[11,9,11,11],[9,5,14,7],[12,1,17,3],[12,9,17,11],[37,1,37,3],[38,1,38,3],[37,9,37,11],[38,9,38,11],[36,5,40,7],[39,9,43,11],[39,1,45,3]]}
[]
[]
[]
[null,null,"CHAMPIONNAT PILOTES 2023"]
[]
[]
[]
[null,null,null,null,null,"CHAMPION 2023"]
[null,null,null,null,null,{"$f":"IF(Pilotes!G5=1,Pilotes!$B$5,\"\")","v":"VERSTAPPEN Max"}]
[]
[null,"DEUXIÈME",null,null,null,null,null,null,null,"TROIXIÈME"]
[null,{"$f":"IF(Pilotes!$G$6=2,Pilotes!$B$6,\"\")","v":"PEREZ Sergio"},null,null,null,null,null,null,null,{"$f":"IF(Pilotes!$G$7=3,Pilotes!$B$7,\"\")","v":"ALONSO Fernando"}]
[]
[]
[]
[]
[]
[]
[]
[]
[]
[]
[]
[]
[]
[]
[]
[]
[null,null,"CHAMPIONNAT CONSTRUCTEURS 2023"]
[]
[]
[]
[]
[]
[null,null,null,null,null,"CHAMPION 2023"]
[null,null,null,null,null,{"$f":"IF(Écuries!$G$4=1,Écuries!$C$4,\"\")","v":"RED BULL RACING"}]
[]
[null,"DEUXIÈME",null,null,null,null,null,null,null,"TROIXIÈME"]
[null,{"$f":"IF(Écuries!$G$5=2,Écuries!$C$5,\"\")","v":"ASTON MARTIN"},null,null,null,null,null,null,null,{"$f":"IF(Écuries!$G$6=3,Écuries!$C$6,\"\")","v":"MERCEDES"}]

{"sheet":"Écuries","index":2,"n_rows":21,"n_cols":7,"rows_kept":21,"cut":false,"hidden":false,"merged":[[0,2,0,6],[16,4,17,4]]}
[]
[]
[null,null,"ÉCURIES","POINTS","Écart/premier","Écart/précédent","RANG"]
[null,null,"RED BULL RACING",{"$f":"SUM(Bahrein:AbuDhabi!$G$11:$G$13)","v":224},null,null,{"$f":"IF(D4=\"\",0,(RANK(D4,$D$4:$D$13)))","v":1}]
[null,null,"ASTON MARTIN",{"$f":"SUM(Bahrein:AbuDhabi!$G$14:$G$16)","v":102},{"$f":"D4-D5","v":122},{"$f":"D4-D5","v":122},2]
[null,null,"MERCEDES",{"$f":"SUM(Bahrein:AbuDhabi!$G$5:$G$7)","v":96},{"$f":"D4-D6","v":128},{"$f":"D5-D6","v":6},3]
[null,null,"FERRARI",{"$f":"SUM(Bahrein:AbuDhabi!$G$8:$G$10)","v":78},{"$f":"D4-D7","v":146},18,4]
[null,null,"Mc LAREN",{"$f":"SUM(Bahrein:AbuDhabi!$G$29:$G$31)","v":14},{"$f":"D4-D8","v":210},64,5]
[null,null,"ALPINE F1 TEAM",{"$f":"SUM(Bahrein:AbuDhabi!$G$20:$G$22)","v":14},{"$f":"D4-D9","v":210},{"$f":"D8-D9","v":0},5]
[null,null,"HAAS",{"$f":"SUM(Bahrein:AbuDhabi!$G$26:$G$28)","v":8},{"$f":"D4-D10","v":216},6,7]
[null,null,"ALFA ROMÉO",{"$f":"SUM(Bahrein:AbuDhabi!$G$32:$G$34)","v":6},{"$f":"D4-D11","v":218},2,8]
[null,null,"ALPHA TAURI",{"$f":"SUM(Bahrein:AbuDhabi!$G$23:$G$25)","v":2},{"$f":"D4-D12","v":222},4,9]
[null,null,"WILLIAMS",{"$f":"SUM(Bahrein:AbuDhabi!$G$17:$G$19)","v":1},{"$f":"D4-D13","v":223},{"$f":"D12-D13","v":1},10]
[]
[]
[]
[null,null,"Écuries","POINTS","VS","Écuries","POINTS"]
[null,null,"ALPINE F1 TEAM",{"$f":"INDEX(D4:D13,MATCH(C18,C4:C13,0))","v":14},null,"FERRARI",{"$f":"INDEX($D$4:$D$13,MATCH($F$18,C4:C13,0))","v":78}]
[]
[null,null,null,null,"ÉCART"]
[null,null,null,null,{"$f":"D18-G18","v":-64}]

{"sheet":"Pilotes","index":3,"n_rows":36,"n_cols":13,"rows_kept":36,"cut":false,"hidden":false,"merged":[[31,3,32,3],[2,9,3,9],[0,0,0,7],[2,1,3,1],[2,2,3,2],[2,6,3,6],[2,3,3,3],[2,4,3,4],[2,5,3,5],[2,0,3,0]]}
[]
[]
[null,"PILOTES","Points","Écart-premier","Écart/précédent","Pôle Position","Place",1,null,"Courses"]
[null,null,{"$f":"IFERROR(SUM([1]Australie!G33,[2]Bahreïn!F33),\"\")","v":0},null,null,null,{"$f":"IF(C4=0,\"\",(RANK(C4,C1:C4)))","v":""},"Nbre de fois","%",{"$f":"IF(F4=0,\"\",(RANK(F4,F1:F4)))","v":""}]
[null,"VERSTAPPEN Max",{"$f":"SUM(Bahrein:AbuDhabi!$G$11)","v":119},null,null,{"$f":"CalculPool(B5)","v":{"$error":"#VALUE!"}},{"$f":"IF(C5=\"\",0,(RANK(C5,$C$5:$C$28)))","v":1},{"$f":"CalculPosition(B5)","v":3},{"$f":"H5/22","v":0.13636363636363635},"Australie","Bahrein","Australie","Miami"]
[null,"PEREZ Sergio",{"$f":"SUM(Bahrein:AbuDhabi!$G$12)","v":105},{"$f":"C5-C6","v":14},{"$f":"C5-C6","v":14},{"$error":"#VALUE!"},2,2,9.0909090909090912E-2,"AbuDhabi","Arabie Saoudite","Azerbaïdjan"]
[null,"ALONSO Fernando",{"$f":"SUM(Bahrein:AbuDhabi!$G$14)","v":75},{"$f":"C5-C7","v":44},30,{"$error":"#VALUE!"},3,0,0,"Arabie Saoudite"]
[null,"HAMILTON Lewis",{"$f":"SUM(Bahrein:AbuDhabi!$G$5)","v":56},{"$f":"C5-C8","v":63},19,{"$error":"#VALUE!"},4,0,0,"Autriche"]
[null,"SAINZ.Jr Carlos",{"$f":"SUM(Bahrein:AbuDhabi!$G$8)","v":44},{"$f":"C5-C9","v":75},12,{"$error":"#VALUE!"},5,0,0,"Azerbaïdjan"]
[null,"RUSSELL George",{"$f":"SUM(Bahrein:AbuDhabi!$G$6)","v":40},{"$f":"C5-C10","v":79},4,{"$error":"#VALUE!"},6,0,0,"Bahrein"]
[null,"LECLERC Charles",{"$f":"SUM(Bahrein:AbuDhabi!$G$9)","v":34},{"$f":"C5-C11","v":85},6,{"$error":"#VALUE!"},7,0,0,"Belgique"]
[null,"STROLL Lance",{"$f":"SUM(Bahrein:AbuDhabi!$G$15)","v":27},{"$f":"C5-C12","v":92},7,{"$error":"#VALUE!"},8,0,0,"Brésil"]
[null,"NORRIS Lando",{"$f":"SUM(Bahrein:AbuDhabi!$G$29)","v":10},{"$f":"C5-C13","v":109},17,{"$error":"#VALUE!"},9,0,0,"Canada"]
[null,"GASLY Pierre",{"$f":"SUM(Bahrein:AbuDhabi!$G$20)","v":8},{"$f":"C5-C14","v":111},2,{"$error":"#VALUE!"},10,0,0,"Espagne"]
[null,"OCON Sebastian",{"$f":"SUM(Bahrein:AbuDhabi!$G$21)","v":6},{"$f":"C5-C15","v":113},2,{"$error":"#VALUE!"},11,0,0,"GB"]
[null,"HULKENBERG Nico",{"$f":"SUM(Bahrein:AbuDhabi!$G$27)","v":6},{"$f":"C5-C16","v":113},0,{"$error":"#VALUE!"},11,0,0,"Hongrie"]
[null,"PIASTRI Oscar",{"$f":"SUM(Bahrein:AbuDhabi!$G$30)","v":4},{"$f":"C5-C17","v":115},2,{"$error":"#VALUE!"},13,0,0,"Italie"]
[null,"BOTTAS Valtteri",{"$f":"SUM(Bahrein:AbuDhabi!$G$32)","v":4},{"$f":"C5-C18","v":115},0,{"$error":"#VALUE!"},13,0,0,"ItalieIm"]
[null,"TSUNODA Yoki",{"$f":"SUM(Bahrein:AbuDhabi!$G$23)","v":2},{"$f":"C5-C19","v":117},2,{"$error":"#VALUE!"},15,0,0,"Japon"]
[null,"MAGNUSSEN Kevin",{"$f":"SUM(Bahrein:AbuDhabi!$G$26)","v":2},{"$f":"C5-C20","v":117},0,{"$error":"#VALUE!"},15,0,0,"Las Végas"]
[null,"GUANYU Zhou",{"$f":"SUM(Bahrein:AbuDhabi!$G$33)","v":2},{"$f":"C5-C21","v":117},0,{"$error":"#VALUE!"},15,0,0,"Mexique"]
[null,"ALBON Alexander",{"$f":"SUM(Bahrein:AbuDhabi!$G$17)","v":1},{"$f":"C5-C22","v":118},1,{"$error":"#VALUE!"},18,0,0,"Miami"]
[null,"DEVRIES Nyck",{"$f":"SUM(Bahrein:AbuDhabi!$G$24)","v":0},{"$f":"C5-C23","v":119},1,{"$error":"#VALUE!"},19,0,0,"Monaco"]
[null,"SARGEANT Logan",{"$f":"SUM(Bahrein:AbuDhabi!$G$18)","v":0},{"$f":"C5-C24","v":119},0,{"$error":"#VALUE!"},19,0,0,"Pays-Bas"]
[null,null,null,null,null,null,null,null,null,"Qatar"]
[null,null,null,null,null,null,null,null,null,"Singapour"]
[null,null,null,null,null,null,null,null,null,"USA"]
[]
[]
[null,null,null,null,null,null,null,null,"Moyenne"]
[null,null,null,null,null,null,null,null,{"$f":"AVERAGE($I$5:$I$28)","v":1.1363636363636364E-2}]
[null,"PILOTE 1","Points","VS","PILOTE 2","Points"]
[null,"RUSSELL George",{"$f":"INDEX(C5:C28,MATCH(B33,B5:B28,0))","v":40},null,"HAMILTON Lewis",{"$f":"INDEX(C5:C28,MATCH(E33,B5:B28,0))","v":56}]
[]
[null,null,null,"ÉCART"]
[null,null,null,{"$f":"C33-F33","v":-16}]

{"sheet":"Bahrein","index":4,"n_rows":34,"n_cols":17,"rows_kept":34,"cut":false,"hidden":false,"merged":[[0,0,1,14],[2,1,3,1],[2,2,3,2],[2,3,3,3],[2,5,3,5],[2,6,3,6],[2,4,3,4],[2,0,3,0],[4,1,6,1],[4,2,6,2],[7,1,9,1],[7,2,9,2],[10,1,12,1],[10,2,12,2],[13,1,15,1],[13,2,15,2],[16,1,18,1],[16,2,18,2],[19,1,21,1],[19,2,21,2],[36,1,36,3],[31,1,33,1],[31,2,33,2],[22,1,24,1],[22,2,24,2],[25,1,27,1],[25,2,27,2],[28,1,30,1],[28,2,30,2]]}
["SAKHIR - 5 MARS 2023"]
[]
["PILOTES","ECURIES","VOITURES","Finish","Pôle","Pt tour","Points",null,"ÉCURIES","Points","Écart","Rang",null,"Noms","Points","Écart","Rang"]
[null,null,null,null,null,null,null,null,"RED BULL RACING",{"$f":"SUM($G$11:$G$13)","v":43},{"$f":"J4-J5","v":20},{"$f":"IF(J4=\"\",0,(RANK(J4,$J$4:$J$13)))","v":1},null,"VERSTAPPEN Max",{"$f":"$G$11","v":25},null,{"$f":"IF(O4=\"\",0,(RANK(O4,$O$4:$O$23)))","v":1}]
["HAMILTON Lewis","MERCEDES",null,5,null,null,{"$f":"IFERROR(CHOOSE(D5,25,18,15,12,10,8,6,4,2,1)+(F5=1),0)","v":10},null,"ASTON MARTIN",{"$f":"SUM($G$14:$G$16)","v":23},{"$f":"J4-J5","v":20},2,null,"PEREZ Sergio",{"$f":"$G$12","v":18},{"$f":"O4-O5","v":7},{"$f":"IF(O5=\"\",0,(RANK(O5,$O$4:$O$23)))","v":2}]
["RUSSELL George",null,null,7,null,null,{"$f":"IFERROR(CHOOSE(D6,25,18,15,12,10,8,6,4,2,1)+(F6=1),0)","v":6},null,"MERCEDES",{"$f":"SUM($G$5:$G$7)","v":16},{"$f":"J5-J6","v":7},3,null,"ALONSO Fernando",{"$f":"$G$14","v":15},{"$f":"O5-O6","v":3},3]
[null,null,null,null,null,null,0,null,"FERRARI",{"$f":"SUM($G$8:$G$10)","v":12},4,4,null,"SAINZ.Jr Carlos",{"$f":"$G$8","v":12},3,4]
["SAINZ.Jr Carlos","FERRARI",null,4,null,null,12,null,"ALFA ROMÉO",{"$f":"SUM($G$32:$G$34)","v":4},8,5,null,"HAMILTON Lewis",{"$f":"$G$5","v":10},2,5]
["LECLERC Charles",null,null,"OUT",null,null,0,null,"ALPINE F1 TEAM",{"$f":"SUM($G$20:$G$22)","v":2},2,6,null,"STROLL Lance",{"$f":"$G$15","v":8},2,6]
[null,null,null,null,null,null,0,null,"WILLIAMS",{"$f":"SUM($G$17:$G$19)","v":1},1,7,null,"RUSSEL George",{"$f":"$G$6","v":6},2,7]
["VERSTAPPEN Max","RED BULL RACING",null,1,1,null,25,null,"ALPHA TAURI",{"$f":"SUM($G$23:$G$25)","v":0},1,8,null,"BOTTAS Valtteri",{"$f":"$G$32","v":4},2,8]
["PEREZ Sergio",null,null,2,null,null,18,null,"Mc LAREN",{"$f":"SUM($G$29:$G$31)","v":0},0,8,null,"ALBON Alexander",{"$f":"$G$17","v":1},3,9]
[null,null,null,null,null,null,0,null,"HAAS",{"$f":"SUM($G$26:$G$28)","v":0},0,8,null,"LECLERC Charles",{"$f":"$G$9","v":0},1,10]
["ALONSO Fernando","ASTON MARTIN",null,3,null,null,15,null,null,null,null,null,null,"MAGNUSSEN Kevin",{"$f":"$G$26","v":0},0,10]
["STROLL Lance",null,null,6,null,null,8,null,null,null,null,null,null,"OCON Sebastian",{"$f":"$G$21","v":0},0,10]
[null,null,null,null,null,null,0,null,null,null,null,null,null,"TSUNODA Yoki",{"$f":"$G$23","v":0},0,10]
["ALBON Alexander","WILLIAMS",null,10,null,null,1,null,null,null,null,null,null,"GUANYU Zhou",{"$f":"$G$33","v":0},0,10]
["SARGEANT Logan",null,null,12,null,null,0,null,null,null,null,null,null,"NORRIS Lando",{"$f":"$G$29","v":0},0,10]
[null,null,null,null,null,null,0,null,null,null,null,null,null,"PIASTRI Oscar",{"$f":"$G$30","v":0},0,10]
["GASLY Pierre","ALPINE F1 TEAM",null,9,null,null,2,null,null,null,null,null,null,"GASLY Pierre",{"$f":"$G$24","v":0},0,10]
["OCON Sebastian",null,null,"OUT",null,null,0,null,null,null,null,null,null,"DEVRIES Nyck",{"$f":"$G$24","v":0},0,10]
[null,null,null,null,null,null,0,null,null,null,null,null,null,"SARGEANT Logan",{"$f":"$G$18","v":0},0,10]
["TSUNODA Yoki","ALPHA TAURI",null,11,null,null,0,null,null,null,null,null,null,"HULKENBERG Nico",{"$f":"$G$27","v":0},0,10]
["DEVRIES Nyck",null,null,14,null,null,0]
[null,null,null,null,null,null,0]
["MAGNUSSEN Kevin","HAAS",null,13,null,null,0]
["HULKENBERG Nico",null,null,15,null,null,0]
[null,null,null,null,null,null,0]
["NORRIS Lando","Mc LAREN",null,17,null,null,0]
["PIASTRI Oscar",null,null,"OUT",null,null,0]
[null,null,null,null,null,null,0]
["BOTTAS Valtteri","ALFA ROMÉO",null,8,null,null,4]
["GUANYU Zhou",null,null,16,null,null,0]
[null,null,null,null,null,null,0]

{"sheet":"Arabie Saoudite","index":5,"n_rows":34,"n_cols":18,"rows_kept":34,"cut":false,"hidden":false,"merged":[[0,0,1,16],[31,1,33,1],[31,2,33,2],[22,1,24,1],[22,2,24,2],[25,1,27,1],[25,2,27,2],[28,1,30,1],[28,2,30,2],[13,1,15,1],[13,2,15,2],[16,1,18,1],[16,2,18,2],[19,1,21,1],[19,2,21,2],[2,4,3,4],[2,0,3,0],[2,1,3,1],[2,2,3,2],[2,3,3,3],[7,1,9,1],[7,2,9,2],[2,5,3,5],[2,6,3,6],[4,1,6,1],[4,2,6,2],[36,1,36,3],[10,1,12,1],[10,2,12,2]]}
["DJEDDAH - 19 MARS 2023"]
[]
["PILOTES","ECURIES","VOITURES","Finish","Pôle","Pt tour","Points",null,"ÉCURIES","Points","Écart","Rang",null,"Noms","Points","Écart","Rang"]
[null,null,null,null,null,null,null,null,"RED BULL RACING",{"$f":"SUM('Bahrein:Arabie Saoudite'!$G$11:$G$13)","v":87},null,{"$f":"IF(J4=\"\",0,(RANK(J4,$J$4:$J$13)))","v":1},null,"VERSTAPPEN Max",{"$f":"IF(Bahrein!$D$11=\"\",0,SUM('Bahrein:Arabie Saoudite'!$G$11))","v":44},null,{"$f":"IF(O4=\"\",0,(RANK(O4,$O$4:$O$23)))","v":1}]
["HAMILTON Lewis","MERCEDES",null,5,null,null,{"$f":"IFERROR(CHOOSE(D5,25,18,15,12,10,8,6,4,2,1)+(F5=1),0)","v":10},null,"MERCEDES",{"$f":"SUM('Bahrein:Arabie Saoudite'!$G$5:$G$7)","v":38},{"$f":"J4-J5","v":49},{"$f":"IF(J5=\"\",0,(RANK(J5,$J$4:$J$13)))","v":2},null,"PEREZ Sergio",{"$f":"IF(Bahrein!$D$12=\"\",0,SUM('Bahrein:Arabie Saoudite'!$G$12))","v":43},{"$f":"O4-O5","v":1},{"$f":"IF(O5=0,0,(RANK(O5,$O$4:$O$23)))","v":2}]
["RUSSELL George",null,null,4,null,null,{"$f":"IFERROR(CHOOSE(D6,25,18,15,12,10,8,6,4,2,1)+(F6=1),0)","v":12},null,"ASTON MARTIN",{"$f":"SUM('Bahrein:Arabie Saoudite'!$G$14:$G$16)","v":38},{"$f":"J5-J6","v":0},2,null,"ALONSO Fernando",{"$f":"IF(Bahrein!$D$14=\"\",0,SUM('Bahrein:Arabie Saoudite'!$G$14))","v":30},{"$f":"O5-O6","v":13},3]
[null,null,null,null,null,null,0,null,"FERRARI",{"$f":"SUM('Bahrein:Arabie Saoudite'!$G$8:$G$10)","v":26},12,4,null,"HAMILTON Lewis",{"$f":"IF(Bahrein!$D$5=\"\",0,SUM('Bahrein:Arabie Saoudite'!$G$5))","v":20},10,{"$f":"IF(O7=0,0,(RANK(O7,$O$4:$O$23)))","v":4}]
["SAINZ.Jr Carlos","FERRARI",null,6,null,null,8,null,"ALPINE F1 TEAM",{"$f":"SUM('Bahrein:Arabie Saoudite'!$G$20:$G$22)","v":8},18,5,null,"SAINZ.Jr Carlos",{"$f":"IF(Bahrein!$D$8=\"\",0,SUM('Bahrein:Arabie Saoudite'!$G$8))","v":20},0,4]
["LECLERC Charles",null,null,7,null,null,6,null,"ALFA ROMÉO",{"$f":"SUM('Bahrein:Arabie Saoudite'!$G$32:$G$34)","v":4},4,6,null,"RUSSEL George",{"$f":"IF(Bahrein!$D$6=\"\",0,SUM('Bahrein:Arabie Saoudite'!$G$6))","v":18},2,6]
[null,null,null,null,null,null,0,null,"HAAS",{"$f":"SUM('Bahrein:Arabie Saoudite'!$G$26:$G$28)","v":1},3,7,null,"STROLL Lance",{"$f":"IF(Bahrein!$D$15=\"\",0,SUM('Bahrein:Arabie Saoudite'!$G$15))","v":8},10,7]
["VERSTAPPEN Max","RED BULL RACING",null,2,null,1,19,null,"WILLIAMS",{"$f":"SUM('Bahrein:Arabie Saoudite'!$G$17:$G$19)","v":1},0,7,null,"LECLERC Charles",{"$f":"IF(Bahrein!$D$9=\"\",0,SUM('Bahrein:Arabie Saoudite'!$G$9))","v":6},2,8]
["PEREZ Sergio",null,null,1,1,null,25,null,"Mc LAREN",{"$f":"SUM('Bahrein:Arabie Saoudite'!$G$29:$G$31)","v":0},1,9,null,"GASLY Pierre",{"$f":"IF(Bahrein!$D$20=\"\",0,SUM('Bahrein:Arabie Saoudite'!$G$20))","v":4},2,9]
[null,null,null,null,null,null,0,null,"ALPHA TAURI",{"$f":"SUM('Bahrein:Arabie Saoudite'!$G$23:$G$25)","v":0},0,9,null,"OCON Sebastian",{"$f":"IF(Bahrein!$D$21=\"\",0,SUM('Bahrein:Arabie Saoudite'!$G$21))","v":4},0,9]
["ALONSO Fernando","ASTON MARTIN",null,3,null,null,15,null,null,null,null,null,null,"BOTTAS Valtteri",{"$f":"IF(Bahrein!$D$32=\"\",0,SUM('Bahrein:Arabie Saoudite'!$G$32))","v":4},0,9]
["STROLL Lance",null,null,"OUT",null,null,0,null,null,null,null,null,null,"NORRIS Lando",{"$f":"IF(Bahrein!$D$21=\"\",0,SUM('Bahrein:Arabie Saoudite'!$G$21))","v":4},0,9]
[null,null,null,null,null,null,0,null,null,null,null,null,null,"ALBON Alexander",{"$f":"IF(Bahrein!$D$17=\"\",0,SUM('Bahrein:Arabie Saoudite'!$G$17))","v":1},3,13]
["ALBON Alexander","WILLIAMS",null,"OUT",null,null,0,null,null,null,null,null,null,"MAGNUSSEN Kevin",{"$f":"IF(Bahrein!$D$26=\"\",0,SUM('Bahrein:Arabie Saoudite'!$G$26))","v":1},0,13," "]
["SARGEANT Logan",null,null,16,null,null,0,null,null,null,null,null,null,"DEVRIES Nyck",{"$f":"IF(Bahrein!$D$24=\"\",0,SUM('Bahrein:Arabie Saoudite'!$G$24))","v":0},1,0]
[null,null,null,null,null,null,0,null,null,null,null,null,null,"GUANYU Zhou",{"$f":"IF(Bahrein!$D$33=\"\",0,SUM('Bahrein:Arabie Saoudite'!$G$33))","v":0},0,0]
["GASLY Pierre","ALPINE F1 TEAM",null,9,null,null,2,null,null,null,null,null,null,"SARGEANT Logan",{"$f":"IF(Bahrein!$D$18=\"\",0,SUM('Bahrein:Arabie Saoudite'!$G$18))","v":0},0,0]
["OCON Sebastian",null,null,8,null,null,4,null,null,null,null,null,null,"TSUNODA Yoki",{"$f":"IF(Bahrein!$D$23=\"\",0,SUM('Bahrein:Arabie Saoudite'!$G$23))","v":0},0,0]
[null,null,null,null,null,null,0,null,null,null,null,null,null,"PIASTRI Oscar",{"$f":"IF(Bahrein!$D$31=\"\",0,SUM(Bahrein:'Arabie Saoudite'!$G$31))","v":0},0,0]
["TSUNODA Yoki","ALPHA TAURI",null,11,null,null,0,null,null,null,null,null,null,"HULKENBERG Nico",{"$f":"IF(Bahrein!$D$27=\"\",0,SUM('Bahrein:Arabie Saoudite'!$G$27))","v":0},0,0]
["DEVRIES Nyck",null,null,14,null,null,0]
[null,null,null,null,null,null,0]
["MAGNUSSEN Kevin","HAAS",null,10,null,null,1]
["HULKENBERG Nico",null,null,12,null,null,0]
[null,null,null,null,null,null,0]
["NORRIS Lando","Mc LAREN",null,17,null,null,0]
["PIASTRI Oscar",null,null,15,null,null,0]
[null,null,null,null,null,null,0]
["BOTTAS Valtteri","ALFA ROMÉO",null,18,null,null,0]
["GUANYU Zhou",null,null,13,null,null,{"$f":"IFERROR(CHOOSE(D33,25,18,15,12,10,8,6,4,2,1)+(F33=1),0)","v":0}]
[null,null,null,null,null,null,0]

{"sheet":"Australie","index":6,"n_rows":34,"n_cols":17,"rows_kept":34,"cut":false,"hidden":false,"merged":[[7,2,9,2],[10,2,12,2],[4,2,6,2],[2,0,3,0],[2,1,3,1],[2,2,3,2],[7,1,9,1],[10,1,12,1],[2,3,3,3],[2,5,3,5],[2,6,3,6],[2,4,3,4],[4,1,6,1],[25,1,27,1],[0,0,1,16],[36,1,36,3],[31,2,33,2],[13,2,15,2],[16,2,18,2],[19,2,21,2],[28,2,30,2],[25,2,27,2],[22,2,24,2],[28,1,30,1],[31,1,33,1],[13,1,15,1],[16,1,18,1],[19,1,21,1],[22,1,24,1]]}
["MELBOURNE - 2 AVRIL 2023"]
[]
["PILOTES","ECURIES","VOITURES","Finish","Pôle","Pt tour","Points",null,"ÉCURIES","Points","Écart","Rang",null,"Noms","Points","Écart","Rang"]
[null,null,null,null,null,null,null,null,"RED BULL RACING",{"$f":"IF(SUM('Arabie Saoudite'!$G$5:$G$34)=0,0,SUM(Bahrein:Australie!$G$11:$G$13))","v":123},null,{"$f":"IF(J4=\"\",0,(RANK(J4,$J$4:$J$13)))","v":1},null,"VERSTAPPEN Max",{"$f":"IF('Arabie Saoudite'!$D$11=\"\",0,SUM(Bahrein:Australie!$G$11))","v":69},null,{"$f":"IF(O4=\"\",0,(RANK(O4,$O$4:$O$23)))","v":1}]
["HAMILTON Lewis","MERCEDES",null,2,null,null,{"$f":"IFERROR(CHOOSE(D5,25,18,15,12,10,8,6,4,2,1)+(F5=1),0)","v":18},null,"ASTON MARTIN",{"$f":"IF(SUM('Arabie Saoudite'!$G$5:$G$34)=0,0,SUM(Bahrein:Australie!$G$14:$G$16))","v":65},{"$f":"J4-J5","v":58},{"$f":"IF(J5=\"\",0,(RANK(J5,$J$4:$J$13)))","v":2},null,"PEREZ Sergio",{"$f":"IF('Arabie Saoudite'!$D$12=\"\",0,SUM(Bahrein:Australie!$G$12))","v":54},{"$f":"O4-O5","v":15},{"$f":"IF(O5=\"\",0,(RANK(O5,$O$4:$O$23)))","v":2}]
["RUSSELL George",null,null,"OUT",null,null,{"$f":"IFERROR(CHOOSE(D6,25,18,15,12,10,8,6,4,2,1)+(F6=1),0)","v":0},null,"MERCEDES",{"$f":"IF(SUM('Arabie Saoudite'!$G$5:$G$34)=0,0,SUM(Bahrein:Australie!$G$5:$G$7))","v":56},{"$f":"J5-J6","v":9},3,null,"ALONSO Fernando",{"$f":"IF('Arabie Saoudite'!$D$14=\"\",0,SUM(Bahrein:Australie!$G$14))","v":45},{"$f":"O5-O6","v":9},3]
[null,null,null,null,null,null,0,null,"FERRARI",{"$f":"IF(SUM('Arabie Saoudite'!$G$5:$G$34)=0,0,SUM(Bahrein:Australie!$G$8:$G$10))","v":26},30,4,null,"HAMILTON Lewis",{"$f":"IF('Arabie Saoudite'!$D$5=\"\",0,SUM(Bahrein:Australie!$G$5))","v":38},7,4]
["SAINZ.Jr Carlos","FERRARI",null,12,null,null,0,null,"Mc LAREN",{"$f":"IF(SUM('Arabie Saoudite'!$G$5:$G$34)=0,0,SUM(Bahrein:Australie!$G$29:$G$31))","v":12},14,5,null,"STROLL Lance",{"$f":"IF('Arabie Saoudite'!$D$15=\"\",0,SUM(Bahrein:Australie!$G$15))","v":20},18,5]
["LECLERC Charles",null,null,"OUT",null,null,0,null,"ALPINE F1 TEAM",{"$f":"IF(SUM('Arabie Saoudite'!$G$5:$G$34)=0,0,SUM(Bahrein:Australie!$G$20:$G$22))","v":8},4,6,null,"SAINZ.Jr Carlos",{"$f":"IF('Arabie Saoudite'!$D$8=\"\",0,SUM(Bahrein:Australie!$G$8))","v":20},0,5]
[null,null,null,null,null,null,0,null,"HAAS",{"$f":"IF(SUM('Arabie Saoudite'!$G$5:$G$34)=0,0,SUM(Bahrein:Australie!$G$26:$G$28))","v":7},1,7,null,"RUSSEL George",{"$f":"IF('Arabie Saoudite'!$D$6=\"\",0,SUM(Bahrein:Australie!$G$6))","v":18},2,7]
["VERSTAPPEN Max","RED BULL RACING",null,1,1,null,25,null,"ALFA ROMÉO",{"$f":"IF(SUM('Arabie Saoudite'!$G$5:$G$34)=0,0,SUM(Bahrein:Australie!$G$32:$G$34))","v":6},1,8,null,"NORRIS Lando",{"$f":"IF('Arabie Saoudite'!$D$29=\"\",0,SUM(Bahrein:Australie!$G$29))","v":8},10,8]
["PEREZ Sergio",null,null,5,null,1,11,null,"ALPHA TAURI",{"$f":"IF(SUM('Arabie Saoudite'!$G$5:$G$34)=0,0,SUM(Bahrein:Australie!$G$23:$G$25))","v":1},5,9,null,"HULKENBERG Nico",{"$f":"IF('Arabie Saoudite'!$D$27=\"\",0,SUM(Bahrein:Australie!$G$27))","v":6},2,9]
[null,null,null,null,null,null,0,null,"WILLIAMS",{"$f":"IF(SUM('Arabie Saoudite'!$G$5:$G$34)=0,0,SUM(Bahrein:Australie!$G$17:$G$19))","v":1},0,9,null,"LECLERC Charles",{"$f":"IF('Arabie Saoudite'!$D$9=\"\",0,SUM(Bahrein:Australie!$G$9))","v":6},0,9]
["ALONSO Fernando","ASTON MARTIN",null,3,null,null,15,null,null,null,null,null,null,"BOTTAS Valtteri",{"$f":"IF('Arabie Saoudite'!$D$32=\"\",0,SUM(Bahrein:Australie!$G$32))","v":4},2,11]
["STROLL Lance",null,null,4,null,null,12,null,null,null,null,null,null,"PIASTRI Oscar",{"$f":"IF('Arabie Saoudite'!$D$30=\"\",0,SUM(Bahrein:Australie!$G$30))","v":4},0,11]
[null,null,null,null,null,null,0,null,null,null,null,null,null,"OCON Sebastian",{"$f":"IF('Arabie Saoudite'!$D$21=\"\",0,SUM(Bahrein:Australie!$G$21))","v":4},0,11]
["ALBON Alexander","WILLIAMS",null,"OUT",null,null,0,null,null,null,null,null,null,"GASLY Pierre",{"$f":"IF('Arabie Saoudite'!$D$20=\"\",0,SUM(Bahrein:Australie!$G$20))","v":4},0,11]
["SARGEANT Logan",null,null,"OUT",null,null,0,null,null,null,null,null,null,"GUANYU Zhou",{"$f":"IF('Arabie Saoudite'!$D$33=\"\",0,SUM(Bahrein:Australie!$G$33))","v":2},2,15]
[null,null,null,null,null,null,0,null,null,null,null,null,null,"MAGNUSSEN Kevin",{"$f":"IF('Arabie Saoudite'!$D$11=\"\",0,SUM(Bahrein:Australie!$G$26))","v":1},1,16]
["GASLY Pierre","ALPINE F1 TEAM",null,"OUT",null,null,0,null,null,null,null,null,null,"TSUNODA Yoki",{"$f":"IF('Arabie Saoudite'!$D$23=\"\",0,SUM(Bahrein:Australie!$G$23))","v":1},0,16]
["OCON Sebastian",null,null,"OUT",null,null,0,null,null,null,null,null,null,"ALBON Alexander",{"$f":"IF('Arabie Saoudite'!$D$17=\"\",0,SUM(Bahrein:Australie!$G$17))","v":1},0,16]
[null,null,null,null,null,null,0,null,null,null,null,null,null,"SARGEANT Logan",{"$f":"IF('Arabie Saoudite'!$D$18=\"\",0,SUM(Bahrein:Australie!$G$18))","v":0},1,19]
["TSUNODA Yoki","ALPHA TAURI",null,10,null,null,1,null,null,null,null,null,null,"DEVRIES Nyck",{"$f":"IF('Arabie Saoudite'!$D$24=\"\",0,SUM(Bahrein:Australie!$G$24))","v":0},0,19]
["DEVRIES Nyck",null,null,"OUT",null,null,0]
[null,null,null,null,null,null,0]
["MAGNUSSEN Kevin","HAAS",null,"OUT",null,null,0]
["HULKENBERG Nico",null,null,7,null,null,6]
[null,null,null,null,null,null,0]
["NORRIS Lando","Mc LAREN",null,6,null,null,8]
["PIASTRI Oscar",null,null,8,null,null,4]
[null,null,null,null,null,null,0]
["BOTTAS Valtteri","ALFA ROMÉO",null,11,null,null,0]
["GUANYU Zhou",null,null,9,null,null,2]
[null,null,null,null,null,null,0]

{"sheet":"Azerbaïdjan","index":7,"n_rows":34,"n_cols":17,"rows_kept":34,"cut":false,"hidden":false,"merged":[[2,5,3,5],[2,6,3,6],[2,7,3,7],[0,0,1,16],[2,0,3,0],[2,1,3,1],[2,2,3,2],[2,3,3,3],[2,4,3,4],[4,1,6,1],[4,2,6,2],[7,1,9,1],[7,2,9,2],[10,1,12,1],[10,2,12,2],[13,1,15,1],[13,2,15,2],[16,1,18,1],[16,2,18,2],[19,1,21,1],[19,2,21,2],[36,1,36,3],[31,1,33,1],[31,2,33,2],[22,1,24,1],[22,2,24,2],[25,1,27,1],[25,2,27,2],[28,1,30,1],[28,2,30,2]]}
["BAKOU - 30 AVRIL 2023"]
[]
["PILOTES","ECURIES","VOITURES","Finish","Pôle","Pt tour","Points","Sprint","ÉCURIES","Points","Écart","Rang",null,"Noms","Points","Écart","Rang"]
[null,null,null,null,null,null,null,null,"RED BULL RACING",{"$f":"IF(SUM(Australie!$G$5:$G$34)=0,0,SUM(Bahrein:Azerbaïdjan!$G$11:$G$13))","v":180},null,{"$f":"IF(J4=\"\",0,(RANK(J4,$J$4:$J$13)))","v":1},null,"VERSTAPPEN Max",{"$f":"IF(Australie!$D$11=\"\",0,SUM(Bahrein:Azerbaïdjan!$G$11))","v":93},null,{"$f":"IF(O4=\"\",0,(RANK(O4,$O$4:$O$23)))","v":1}]
["HAMILTON Lewis","MERCEDES",null,6,null,null,{"$f":"IFERROR(CHOOSE(D5,25,18,15,12,10,8,6,4,2,1),0)+IFERROR(CHOOSE(H5,8,7,6,5,4,3,2,1),0)+F5","v":10},7,"ASTON MARTIN",{"$f":"IF(SUM(Australie!$G$5:$G$34)=0,0,SUM(Bahrein:Azerbaïdjan!$G$14:$G$16))","v":87},{"$f":"J4-J5","v":93},{"$f":"IF(J5=\"\",0,(RANK(J5,$J$4:$J$13)))","v":2},null,"PEREZ Sergio",{"$f":"IF(Australie!$D$12=\"\",0,SUM(Bahrein:Azerbaïdjan!$G$12))","v":87},{"$f":"O4-O5","v":6},{"$f":"IF(O5=\"\",0,(RANK(O5,$O$4:$O$23)))","v":2}]
["RUSSELL George",null,null,8,null,1,{"$f":"IFERROR(CHOOSE(D6,25,18,15,12,10,8,6,4,2,1),0)+IFERROR(CHOOSE(H6,8,7,6,5,4,3,2,1),0)+F6","v":10},4,"MERCEDES",{"$f":"IF(SUM(Australie!$G$5:$G$34)=0,0,SUM(Bahrein:Azerbaïdjan!$G$5:$G$7))","v":76},{"$f":"J5-J6","v":11},3,null,"ALONSO Fernando",{"$f":"IF(Australie!$D$14=\"\",0,SUM(Bahrein:Azerbaïdjan!$G$14))","v":60},{"$f":"O5-O6","v":27},3]
[null,null,null,null,null,null,0,null,"FERRARI",{"$f":"IF(SUM(Australie!$G$5:$G$34)=0,0,SUM(Bahrein:Azerbaïdjan!$G$8:$G$10))","v":62},14,4,null,"HAMILTON Lewis",{"$f":"IF(Australie!$D$5=\"\",0,SUM(Bahrein:Azerbaïdjan!$G$5))","v":48},12,4]
["SAINZ.Jr Carlos","FERRARI",null,5,null,null,14,5,"Mc LAREN",{"$f":"IF(SUM(Australie!$G$5:$G$34)=0,0,SUM(Bahrein:Azerbaïdjan!$G$29:$G$31))","v":14},48,5,null,"SAINZ.Jr Carlos",{"$f":"IF(Australie!$D$8=\"\",0,SUM(Bahrein:Azerbaïdjan!$G$8))","v":34},14,5]
["LECLERC Charles",null,null,3,1,null,22,2,"ALPINE F1 TEAM",{"$f":"IF(SUM(Australie!$G$5:$G$34)=0,0,SUM(Bahrein:Azerbaïdjan!$G$20:$G$22))","v":8},6,6,null,"RUSSEL George",{"$f":"IF(Australie!$D$6=\"\",0,SUM(Bahrein:Azerbaïdjan!$G$6))","v":28},6,6]
[null,null,null,null,null,null,0,null,"HAAS",{"$f":"IF(SUM(Australie!$G$5:$G$34)=0,0,SUM(Bahrein:Azerbaïdjan!$G$26:$G$28))","v":7},1,7,null,"LECLERC Charles",{"$f":"IF(Australie!$D$9=\"\",0,SUM(Bahrein:Azerbaïdjan!$G$9))","v":28},0,6]
["VERSTAPPEN Max","RED BULL RACING",null,2,null,null,24,3,"ALFA ROMÉO",{"$f":"IF(SUM(Australie!$G$5:$G$34)=0,0,SUM(Bahrein:Azerbaïdjan!$G$32:$G$34))","v":6},1,8,null,"STROLL Lance",{"$f":"IF(Australie!$D$15=\"\",0,SUM(Bahrein:Azerbaïdjan!$G$15))","v":27},1,8]
["PEREZ Sergio",null,null,1,null,null,33,1,"ALPHA TAURI",{"$f":"IF(SUM(Australie!$G$5:$G$34)=0,0,SUM(Bahrein:Azerbaïdjan!$G$23:$G$25))","v":2},4,9,null,"NORRIS Lando",{"$f":"IF(Australie!$D$29=\"\",0,SUM(Bahrein:Azerbaïdjan!$G$29))","v":10},17,9]
[null,null,null,null,null,null,0,null,"WILLIAMS",{"$f":"IF(SUM(Australie!$G$5:$G$34)=0,0,SUM(Bahrein:Azerbaïdjan!$G$17:$G$19))","v":1},1,10,null,"PIASTRI Oscar",{"$f":"IF(Australie!$D$30=\"\",0,SUM(Bahrein:Azerbaïdjan!$G$30))","v":4},6,10]
["ALONSO Fernando","ASTON MARTIN",null,4,null,null,15,6,null,null,null,null,null,"GASLY Pierre",{"$f":"IF(Australie!$D$20=\"\",0,SUM(Bahrein:Azerbaïdjan!$G$20))","v":4},0,10]
["STROLL Lance",null,null,7,null,null,7,8,null,null,null,null,null,"BOTTAS Valtteri",{"$f":"IF(Australie!$D$32=\"\",0,SUM(Bahrein:Azerbaïdjan!$G$32))","v":4},0,10]
[null,null,null,null,null,null,0,null,null,null,null,null,null,"OCON Sebastian",{"$f":"IF(Australie!$D$21=\"\",0,SUM(Bahrein:Azerbaïdjan!$G$21))","v":4},0,10]
["ALBON Alexander","WILLIAMS",null,12,null,null,0,null,null,null,null,null,null,"GUANYU Zhou",{"$f":"IF(Australie!$D$33=\"\",0,SUM(Bahrein:Azerbaïdjan!$G$33))","v":2},2,14]
["SARGEANT Logan",null,null,16,null,null,0,null,null,null,null,null,null,"TSUNODA Yoki",{"$f":"IF(Australie!$D$23=\"\",0,SUM(Bahrein:Azerbaïdjan!$G$23))","v":2},0,14]
[null,null,null,null,null,null,0,null,null,null,null,null,null,"HULKENBERG Nico",{"$f":"IF(Australie!$D$26=\"\",0,SUM(Bahrein:Azerbaïdjan!$G$26))","v":1},1,16]
["GASLY Pierre","ALPINE F1 TEAM",null,14,null,null,0,null,null,null,null,null,null,"ALBON Alexander",{"$f":"IF(Australie!$D$17=\"\",0,SUM(Bahrein:Azerbaïdjan!$G$17))","v":1},0,16]
["OCON Sebastian",null,null,15,null,null,0,null,null,null,null,null,null,"MAGNUSSEN Kevin",{"$f":"IF(Australie!$D$26=\"\",0,SUM(Bahrein:Azerbaïdjan!$G$26))","v":1},0,16]
[null,null,null,null,null,null,0,null,null,null,null,null,null,"DEVRIES Nyck",{"$f":"IF(Australie!$D$24=\"\",0,SUM(Bahrein:Azerbaïdjan!$G$24))","v":0},1,19]
["TSUNODA Yoki","ALPHA TAURI",null,10,null,null,1,null,null,null,null,null,null,"SARGEANT Logan",{"$f":"IF(Australie!$D$18=\"\",0,SUM(Bahrein:Azerbaïdjan!$G$18))","v":0},0,19]
["DEVRIES Nyck",null,null,null,null,null,0]
[null,null,null,null,null,null,0]
["MAGNUSSEN KEVIN","HAAS",null,13,null,null,0]
["HULKENBERG Nico",null,null,17,null,null,0]
[null,null,null,null,null,null,0]
["NORRIS Lando","Mc LAREN",null,9,null,null,2]
["PIASTRI Oscar",null,null,11,null,null,0]
[null,null,null,null,null,null,0]
["BOTTAS Valtteri","ALFA ROMÉO",null,18,null,null,0]
["GUANYU Zhou",null,null,null,null,null,0]
[null,null,null,null,null,null,0]

{"sheet":"Miami","index":8,"n_rows":34,"n_cols":17,"rows_kept":34,"cut":false,"hidden":false,"merged":[[2,0,3,0],[0,0,1,16],[13,1,15,1],[13,2,15,2],[16,1,18,1],[16,2,18,2],[2,1,3,1],[2,2,3,2],[2,3,3,3],[2,5,3,5],[2,6,3,6],[2,4,3,4],[4,1,6,1],[4,2,6,2],[7,1,9,1],[7,2,9,2],[10,1,12,1],[10,2,12,2],[19,1,21,1],[19,2,21,2],[36,1,36,3],[31,1,33,1],[31,2,33,2],[22,1,24,1],[22,2,24,2],[25,1,27,1],[25,2,27,2],[28,1,30,1],[28,2,30,2]]}
["MIAMI - 7 MAI 2023"]
[]
["PILOTES","ECURIES","VOITURES","Finish","Pôle","Pt tour","Points",null,"ÉCURIES","Points","Écart","Rang",null,"Noms","Points","Écart","Rang"]
[null,null,null,null,null,null,null,null,"RED BULL RACING",{"$f":"IF(SUM(Azerbaïdjan!$G$5:$G$35)=0,0,SUM(Bahrein:Miami!$G$11:$G$13))","v":224},null,{"$f":"IF(J4=\"\",0,(RANK(J4,$J$4:$J$13)))","v":1},null,"VERSTAPPEN Max",{"$f":"IF(Azerbaïdjan!$G$11=\"\",0,SUM(Bahrein:Miami!$G$11))","v":119},null,{"$f":"IF(O4=\"\",0,(RANK(O4,$O$4:$O$23)))","v":1}]
["HAMILTON Lewis","MERCEDES",null,6,null,null,{"$f":"IFERROR(CHOOSE(D5,25,18,15,12,10,8,6,4,2,1)+(F5=1),0)","v":8},null,"ASTON MARTIN",{"$f":"IF(SUM(Azerbaïdjan!$G$5:$G$35)=0,0,SUM(Bahrein:Miami!$G$14:$G$16))","v":102},{"$f":"J4-J5","v":122},{"$f":"IF(J5=\"\",0,(RANK(J5,$J$4:$J$13)))","v":2},null,"PEREZ Sergio",{"$f":"IF(Azerbaïdjan!$G$12=\"\",0,SUM(Bahrein:Miami!$G$12))","v":105},{"$f":"O4-O5","v":14},{"$f":"IF(O5=\"\",0,(RANK(O5,$O$4:$O$23)))","v":2}]
["RUSSELL George",null,null,4,null,null,{"$f":"IFERROR(CHOOSE(D6,25,18,15,12,10,8,6,4,2,1)+(F6=1),0)","v":12},null,"MERCEDES",{"$f":"IF(SUM(Azerbaïdjan!$G$5:$G$35)=0,0,SUM(Bahrein:Miami!$G$5:$G$7))","v":96},{"$f":"J5-J6","v":6},3,null,"ALONSO Fernando",{"$f":"IF(Azerbaïdjan!$G$14=\"\",0,SUM(Bahrein:Miami!$G$14))","v":75},{"$f":"O5-O6","v":30},3]
[null,null,null,null,null,null,0,null,"FERRARI",{"$f":"IF(SUM(Azerbaïdjan!$G$5:$G$35)=0,0,SUM(Bahrein:Miami!$G$8:$G$10))","v":78},{"$f":"J6-J7","v":18},4,null,"HAMILTON Lewis",{"$f":"IF(Azerbaïdjan!$G$5=\"\",0,SUM(Bahrein:Miami!$G$5))","v":56},19,4]
["SAINZ.Jr Carlos","FERRARI",null,5,null,null,10,null,"Mc LAREN",{"$f":"IF(SUM(Azerbaïdjan!$G$5:$G$35)=0,0,SUM(Bahrein:Miami!$G$29:$G$31))","v":14},64,5,null,"SAINZ.Jr Carlos",{"$f":"IF(Azerbaïdjan!$G$8=\"\",0,SUM(Bahrein:Miami!$G$8))","v":44},12,5]
["LECLERC Charles",null,null,7,null,null,6,null,"ALPINE F1 TEAM",{"$f":"IF(SUM(Azerbaïdjan!$G$5:$G$35)=0,0,SUM(Bahrein:Miami!$G$20:$G$22))","v":14},0,5,null,"RUSSEL George",{"$f":"IF(Azerbaïdjan!$G$6=\"\",0,SUM(Bahrein:Miami!$G$6))","v":40},4,6]
[null,null,null,null,null,null,0,null,"HAAS",{"$f":"IF(SUM(Azerbaïdjan!$G$5:$G$35)=0,0,SUM(Bahrein:Miami!$G$26:$G$28))","v":8},6,7,null,"LECLERC Charles",{"$f":"IF(Azerbaïdjan!$G$9=\"\",0,SUM(Bahrein:Miami!$G$9))","v":34},6,7]
["VERSTAPPEN Max","RED BULL RACING",null,1,null,1,26,null,"ALFA ROMÉO",{"$f":"IF(SUM(Azerbaïdjan!$G$5:$G$35)=0,0,SUM(Bahrein:Miami!$G$32:$G$34))","v":6},2,8,null,"STROLL Lance",{"$f":"IF(Azerbaïdjan!$G$15=\"\",0,SUM(Bahrein:Miami!$G$15))","v":27},7,8]
["PEREZ Sergio",null,null,2,1,null,18,null,"ALPHA TAURI",{"$f":"IF(SUM(Azerbaïdjan!$G$5:$G$35)=0,0,SUM(Bahrein:Miami!$G$23:$G$25))","v":2},4,9,null,"NORRIS Lando",{"$f":"IF(Azerbaïdjan!$G$29=\"\",0,SUM(Bahrein:Miami!$G$29))","v":10},17,9]
[null,null,null,null,null,null,0,null,"WILLIAMS",{"$f":"IF(SUM(Azerbaïdjan!$G$5:$G$35)=0,0,SUM(Bahrein:Miami!$G$17:$G$19))","v":1},1,10,null,"GASLY Pierre",{"$f":"IF(Azerbaïdjan!$G$20=\"\",0,SUM(Bahrein:Miami!$G$20))","v":8},2,10]
["ALONSO Fernando","ASTON MARTIN",null,3,null,null,15,null,null,null,null,null,null,"HULKENBERG Nico",{"$f":"IF(Azerbaïdjan!$G$27=\"\",0,SUM(Bahrein:Miami!$G$27))","v":6},2,11]
["STROLL Lance",null,null,12,null,null,0,null,null,null,null,null,null,"OCON Sebastian",{"$f":"IF(Azerbaïdjan!$G$21=\"\",0,SUM(Bahrein:Miami!$G$21))","v":6},0,11]
[null,null,null,null,null,null,0,null,null,null,null,null,null,"PIASTRI Oscar",{"$f":"IF(Azerbaïdjan!$G$30=\"\",0,SUM(Bahrein:Miami!$G$30))","v":4},2,13]
["ALBON Alexander","WILLIAMS",null,14,null,null,0,null,null,null,null,null,null,"BOTTAS Valtteri",{"$f":"IF(Azerbaïdjan!$G$32=\"\",0,SUM(Bahrein:Miami!$G$32))","v":4},0,13]
["SARGEANT Logan",null,null,20,null,null,0,null,null,null,null,null,null,"TSUNODA Yoki",{"$f":"IF(Azerbaïdjan!$G$23=\"\",0,SUM(Bahrein:Miami!$G$23))","v":2},2,15]
[null,null,null,null,null,null,0,null,null,null,null,null,null,"MAGNUSSEN Kevin",{"$f":"IF(Azerbaïdjan!$G$26=\"\",0,SUM(Bahrein:Miami!$G$26))","v":2},0,15]
["GASLY Pierre","ALPINE F1 TEAM",null,8,null,null,4,null,null,null,null,null,null,"GUANYU Zhou",{"$f":"IF(Azerbaïdjan!$G$33=\"\",0,SUM(Bahrein:Miami!$G$33))","v":2},0,15]
["OCON Sebastian",null,null,9,null,null,2,null,null,null,null,null,null,"ALBON Alexander",{"$f":"IF(Azerbaïdjan!$G$17=\"\",0,SUM(Bahrein:Miami!$G$17))","v":1},1,18]
[null,null,null,null,null,null,0,null,null,null,null,null,null,"DEVRIES Nyck",{"$f":"IF(Azerbaïdjan!$G$24=\"\",0,SUM(Bahrein:Miami!$G$24))","v":0},1,19]
["TSUNODA Yoki","ALPHA TAURI",null,11,null,null,0,null,null,null,null,null,null,"SARGEANT Logan",{"$f":"IF(Azerbaïdjan!$G$18=\"\",0,SUM(Bahrein:Miami!$G$18))","v":0},0,19]
["DEVRIES Nyck",null,null,18,null,null,0]
[null,null,null,null,null,null,0]
["MAGNUSSEN Kevin","HAAS",null,10,null,null,1]
["HULKENBERG Nico",null,null,15,null,null,0]
[null,null,null,null,null,null,0]
["NORRIS Lando","Mc LAREN",null,17,null,null,0]
["PIASTRI Oscar",null,null,19,null,null,0]
[null,null,null,null,null,null,0]
["BOTTAS Valtteri","ALFA ROMÉO",null,13,null,null,0]
["GUANYU Zhou",null,null,16,null,null,0]
[null,null,null,null,null,null,0]

{"sheet":"ItalieIm","index":9,"n_rows":34,"n_cols":17,"rows_kept":34,"cut":false,"hidden":false,"merged":[[0,0,1,16],[36,1,36,3],[2,0,3,0],[2,1,3,1],[2,2,3,2],[2,3,3,3],[2,4,3,4],[2,5,3,5],[2,6,3,6],[4,1,6,1],[4,2,6,2],[7,1,9,1],[7,2,9,2],[10,1,12,1],[10,2,12,2],[19,1,21,1],[19,2,21,2],[31,1,33,1],[31,2,33,2],[22,1,24,1],[22,2,24,2],[25,1,27,1],[25,2,27,2],[28,1,30,1],[28,2,30,2],[2,7,3,7],[13,1,15,1],[13,2,15,2],[16,1,18,1],[16,2,18,2]]}
["IMOLA - 21 MAI 2023"]
[]
["PILOTES","ECURIES","VOITURES","Finish","Pôle","Pt tour","Points",null,"ÉCURIES","Points","Écart","Rang",null,"Noms","Points","Écart","Rang"]
[null,null,null,null,null,null,null,null,"RED BULL RACING",{"$f":"IF(SUM(Miami!$G$5:$G$34)=0,0,SUM(Bahrein:ItalieIm!$G$11:$G$13))","v":224},null,{"$f":"IF(J4=\"\",0,(RANK(J4,$J$4:$J$13)))","v":1},null,"VERSTAPPEN Max",{"$f":"IF(Miami!$G$11=\"\",0,SUM(Bahrein:ItalieIm!$G$11))","v":119},null,{"$f":"IF(O4=\"\",0,(RANK(O4,$O$4:$O$23)))","v":1}]
["HAMILTON Lewis","MERCEDES",null,null,null,null,{"$f":"IFERROR(CHOOSE(D5,25,18,15,12,10,8,6,4,2,1)+(F5=1),0)","v":0},null,"ASTON MARTIN",{"$f":"IF(SUM(Miami!$G$5:$G$34)=0,0,SUM(Bahrein:ItalieIm!$G$14:$G$16))","v":102},{"$f":"J4-J5","v":122},{"$f":"IF(J5=\"\",0,(RANK(J5,$J$4:$J$13)))","v":2},null,"PEREZ Sergio",{"$f":"IF(Miami!$G$12=\"\",0,SUM(Bahrein:ItalieIm!$G$12))","v":105},{"$f":"O4-O5","v":14},{"$f":"IF(O5=\"\",0,(RANK(O5,$O$4:$O$23)))","v":2}]
["RUSSELL George",null,null,null,null,null,{"$f":"IFERROR(CHOOSE(D6,25,18,15,12,10,8,6,4,2,1)+(F6=1),0)","v":0},null,"MERCEDES",{"$f":"IF(SUM(Miami!$G$5:$G$34)=0,0,SUM(Bahrein:ItalieIm!$G$5:$G$7))","v":96},{"$f":"J5-J6","v":6},3,null,"ALONSO Fernando",{"$f":"IF(Miami!$G$14=\"\",0,SUM(Bahrein:ItalieIm!$G$14))","v":75},{"$f":"O5-O6","v":30},3]
[null,null,null,null,null,null,0,null,"FERRARI",{"$f":"IF(SUM(Miami!$G$5:$G$34)=0,0,SUM(Bahrein:ItalieIm!$G$8:$G$10))","v":78},18,4,null,"HAMILTON Lewis",{"$f":"IF(Miami!$G$5=\"\",0,SUM(Bahrein:ItalieIm!$G$5))","v":56},19,4]
["SAINZ.Jr Carlos","FERRARI",null,null,null,null,0,null,"ALPINE F1 TEAM",{"$f":"IF(SUM(Miami!$G$5:$G$34)=0,0,SUM(Bahrein:ItalieIm!$G$20:$G$22))","v":14},64,5,null,"SAINZ.Jr Carlos",{"$f":"IF(Miami!$G$8=\"\",0,SUM(Bahrein:ItalieIm!$G$8))","v":44},12,5]
["LECLERC Charles",null,null,null,null,null,0,null,"Mc LAREN",{"$f":"IF(SUM(Miami!$G$5:$G$34)=0,0,SUM(Bahrein:ItalieIm!$G$29:$G$31))","v":14},0,5,null,"RUSSEL George",{"$f":"IF(Miami!$G$6=\"\",0,SUM(Bahrein:ItalieIm!$G$6))","v":40},4,6]
[null,null,null,null,null,null,0,null,"HAAS",{"$f":"IF(SUM(Miami!$G$5:$G$34)=0,0,SUM(Bahrein:ItalieIm!$G$26:$G$28))","v":8},6,7,null,"LECLERC Charles",{"$f":"IF(Miami!$G$9=\"\",0,SUM(Bahrein:ItalieIm!$G$9))","v":34},6,7]
["VERSTAPPEN Max","RED BULL RACING",null,null,null,null,0,null,"ALFA ROMÉO",{"$f":"IF(SUM(Miami!$G$5:$G$34)=0,0,SUM(Bahrein:ItalieIm!$G$32:$G$34))","v":6},2,8,null,"STROLL Lance",{"$f":"IF(Miami!$G$15=\"\",0,SUM(Bahrein:ItalieIm!$G$15))","v":27},7,8]
["PEREZ Sergio",null,null,null,null,null,0,null,"ALPHA TAURI",{"$f":"IF(SUM(Miami!$G$5:$G$34)=0,0,SUM(Bahrein:ItalieIm!$G$23:$G$25))","v":2},4,9,null,"NORRIS Lando",{"$f":"IF(Miami!$G$29=\"\",0,SUM(Bahrein:ItalieIm!$G$29))","v":10},17,9]
[null,null,null,null,null,null,0,null,"WILLIAMS",{"$f":"IF(SUM(Miami!$G$5:$G$34)=0,0,SUM(Bahrein:ItalieIm!$G$17:$G$19))","v":1},1,10,null,"GASLY Pierre",{"$f":"IF(Miami!$G$20=\"\",0,SUM(Bahrein:ItalieIm!$G$20))","v":8},2,10]
["ALONSO Fernando","ASTON MARTIN",null,null,null,null,0,null,null,null,null,null,null,"HULKENBERG Nico",{"$f":"IF(Miami!$G$27=\"\",0,SUM(Bahrein:ItalieIm!$G$27))","v":6},2,11]
["STROLL Lance",null,null,null,null,null,0,null,null,null,null,null,null,"OCON Sebastian",{"$f":"IF(Miami!$G$21=\"\",0,SUM(Bahrein:ItalieIm!$G$21))","v":6},0,11]
[null,null,null,null,null,null,0,null,null,null,null,null,null,"PIASTRI Oscar",{"$f":"IF(Miami!$G$30=\"\",0,SUM(Bahrein:ItalieIm!$G$30))","v":4},2,13]
["ALBON Alexander","WILLIAMS",null,null,null,null,{"$f":"IFERROR(CHOOSE(D17,25,18,15,12,10,8,6,4,2,1)+(F17=1),0)","v":0},null,null,null,null,null,null,"BOTTAS Valtteri",{"$f":"IF(Miami!$G$32=\"\",0,SUM(Bahrein:ItalieIm!$G$32))","v":4},0,13]
["SARGEANT Logan",null,null,null,null,null,0,null,null,null,null,null,null,"TSUNODA Yoki",{"$f":"IF(Miami!$G$23=\"\",0,SUM(Bahrein:ItalieIm!$G$23))","v":2},2,15]
[null,null,null,null,null,null,0,null,null,null,null,null,null,"MAGNUSSEN Kevin",{"$f":"IF(Miami!$G$26=\"\",0,SUM(Bahrein:ItalieIm!$G$26))","v":2},0,15]
["GASLY Pierre","ALPINE F1 TEAM",null,null,null,null,0,null,null,null,null,null,null,"GUANYU Zhou",{"$f":"IF(Miami!$G$33=\"\",0,SUM(Bahrein:ItalieIm!$G$33))","v":2},0,15]
["OCON Sebastian",null,null,null,null,null,0,null,null,null,null,null,null,"DEVRIES Nyck",{"$f":"IF(Miami!$G$24=\"\",0,SUM(Bahrein:ItalieIm!$G$24))","v":0},2,18]
[null,null,null,null,null,null,0,null,null,null,null,null,null,"SARGEANT Logan",{"$f":"IF(Miami!$G$18=\"\",0,SUM(Bahrein:ItalieIm!$G$18))","v":0},0,18]
["TSUNODA Yoki","ALPHA TAURI",null,null,null,null,0,null,null,null,null,null,null,"ALBON Alexander",{"$f":"IF(Miami!$G$18=\"\",0,SUM(Bahrein:ItalieIm!$G$18))","v":0},0,18]
["DEVRIES Nyck",null,null,null,null,null,0]
[null,null,null,null,null,null,0]
["MAGNUSSEN Kevin","HAAS",null,null,null,null,0]
["HULKENBERG Nico",null,null,null,null,null,0]
[null,null,null,null,null,null,0]
["NORRIS Lando","Mc LAREN",null,null,null,null,0]
["PIASTRI Oscar",null,null,null,null,null,0]
[null,null,null,null,null,null,0]
["BOTTAS Valtteri","ALFA ROMÉO",null,null,null,null,0]
["GUANYU Zhou",null,null,null,null,null,0]
[null,null,null,null,null,null,0]

{"sheet":"Monaco","index":10,"n_rows":34,"n_cols":17,"rows_kept":34,"cut":false,"hidden":false,"merged":[[2,0,3,0],[0,0,1,16],[13,1,15,1],[13,2,15,2],[16,1,18,1],[16,2,18,2],[2,1,3,1],[2,2,3,2],[2,3,3,3],[2,5,3,5],[2,6,3,6],[2,4,3,4],[4,1,6,1],[4,2,6,2],[7,1,9,1],[7,2,9,2],[10,1,12,1],[10,2,12,2],[19,1,21,1],[19,2,21,2],[36,1,36,3],[31,1,33,1],[31,2,33,2],[22,1,24,1],[22,2,24,2],[25,1,27,1],[25,2,27,2],[28,1,30,1],[28,2,30,2]]}
["MONACO - 28 MAI 2023"]
[]
["PILOTES","ECURIES","VOITURES","Finish","Pôle","Pt tour","Points",null,"ÉCURIES","Points","Écart","Rang",null,"Noms","Points","Écart","Rang"]
[null,null,null,null,null,null,null,null,"RED BULL RACING",{"$f":"IF(SUM(ItalieIm!$G$5:$G$34)=0,0,SUM(Bahrein:Monaco!$G$11:$G$13))","v":0},null,{"$f":"IF(J4=\"\",0,(RANK(J4,$J$4:$J$13)))","v":1},null,"VERSTAPPEN Max",{"$f":"IF(Miami!$D$11=\"\",0,SUM(Bahrein:Monaco!$G$11))","v":119},null,{"$f":"IF(O4=\"\",0,(RANK(O4,$O$4:$O$23)))","v":1}]
["HAMILTON Lewis","MERCEDES",null,null,null,null,{"$f":"IFERROR(CHOOSE(D5,25,18,15,12,10,8,6,4,2,1)+(F5=1),0)","v":0},null,"ASTON MARTIN",{"$f":"IF(SUM(ItalieIm!$G$5:$G$34)=0,0,SUM(Bahrein:Monaco!$G$14:$G$16))","v":0},{"$f":"J4-J5","v":0},{"$f":"IF(J5=\"\",0,(RANK(J5,$J$4:$J$13)))","v":1},null,"PEREZ Sergio",{"$f":"IF(Miami!$D$12=\"\",0,SUM(Bahrein:Monaco!$G$12))","v":105},{"$f":"O4-O5","v":14},{"$f":"IF(O5=\"\",0,(RANK(O5,$O$4:$O$23)))","v":2}]
["RUSSELL George",null,null,null,null,null,{"$f":"IFERROR(CHOOSE(D6,25,18,15,12,10,8,6,4,2,1)+(F6=1),0)","v":0},null,"MERCEDES",{"$f":"IF(SUM(ItalieIm!$G$5:$G$34)=0,0,SUM(Bahrein:Monaco!$G$5:$G$7))","v":0},{"$f":"J5-J6","v":0},1,null,"ALONSO Fernando",{"$f":"IF(Miami!$D$14=\"\",0,SUM(Bahrein:Monaco!$G$14))","v":75},{"$f":"O5-O6","v":30},3]
[null,null,null,null,null,null,0,null,"FERRARI",{"$f":"IF(SUM(ItalieIm!$G$5:$G$34)=0,0,SUM(Bahrein:Monaco!$G$8:$G$10))","v":0},0,1,null,"HAMILTON Lewis",{"$f":"IF(Miami!$D$5=\"\",0,SUM(Bahrein:Monaco!$G$5))","v":56},19,4]
["SAINZ.Jr Carlos","FERRARI",null,null,null,null,0,null,"WILLIAMS",{"$f":"IF(SUM(ItalieIm!$G$5:$G$34)=0,0,SUM(Bahrein:Monaco!$G$17:$G$19))","v":0},0,1,null,"SAINZ.Jr Carlos",{"$f":"IF(Miami!$D$8=\"\",0,SUM(Bahrein:Monaco!$G$8))","v":44},12,5]
["LECLERC Charles",null,null,null,null,null,0,null,"Mc LAREN",{"$f":"IF(SUM(ItalieIm!$G$5:$G$34)=0,0,SUM(Bahrein:Monaco!$G$29:$G$31))","v":0},0,1,null,"RUSSEL George",{"$f":"IF(Miami!$D$6=\"\",0,SUM(Bahrein:Monaco!$G$6))","v":40},4,6]
[null,null,null,null,null,null,0,null,"ALPINE F1 TEAM",{"$f":"IF(SUM(ItalieIm!$G$5:$G$34)=0,0,SUM(Bahrein:Monaco!$G$20:$G$22))","v":0},0,1,null,"LECLERC Charles",{"$f":"IF(Miami!$D$9=\"\",0,SUM(Bahrein:Monaco!$G$9))","v":34},6,7]
["VERSTAPPEN Max","RED BULL RACING",null,null,null,null,0,null,"HAAS",{"$f":"IF(SUM(ItalieIm!$G$5:$G$34)=0,0,SUM(Bahrein:Monaco!$G$26:$G$28))","v":0},0,1,null,"STROLL Lance",{"$f":"IF(Miami!$D$15=\"\",0,SUM(Bahrein:Monaco!$G$15))","v":27},7,8]
["PEREZ Sergio",null,null,null,null,null,0,null,"ALFA ROMÉO",{"$f":"IF(SUM(ItalieIm!$G$5:$G$34)=0,0,SUM(Bahrein:Monaco!$G$32:$G$34))","v":0},0,1,null,"NORRIS Lando",{"$f":"IF(Miami!$D$29=\"\",0,SUM(Bahrein:Monaco!$G$29))","v":10},17,9]
[null,null,null,null,null,null,0,null,"ALPHA TAURI",{"$f":"IF(SUM(ItalieIm!$G$5:$G$34)=0,0,SUM(Bahrein:Monaco!$G$23:$G$25))","v":0},0,1,null,"GASLY Pierre",{"$f":"IF(Miami!$D$20=\"\",0,SUM(Bahrein:Monaco!$G$20))","v":8},2,10]
["ALONSO Fernando","ASTON MARTIN",null,null,null,null,0,null,null,null,null,null,null,"HULKENBERG Nico",{"$f":"IF(Miami!$D$27=\"\",0,SUM(Bahrein:Monaco!$G$27))","v":6},2,11]
["STROLL Lance",null,null,null,null,null,0,null,null,null,null,null,null,"OCON Sebastian",{"$f":"IF(Miami!$D$21=\"\",0,SUM(Bahrein:Monaco!$G$21))","v":6},0,11]
[null,null,null,null,null,null,0,null,null,null,null,null,null,"BOTTAS Valtteri",{"$f":"IF(Miami!$D$32=\"\",0,SUM(Bahrein:Monaco!$G$32))","v":4},2,13]
["ALBON Alexander","WILLIAMS",null,null,null,null,0,null,null,null,null,null,null,"PIASTRI Oscar",{"$f":"IF(Miami!$D$30=\"\",0,SUM(Bahrein:Monaco!$G$30))","v":4},0,13]
["SARGEANT Logan",null,null,null,null,null,0,null,null,null,null,null,null,"GUANYU Zhou",{"$f":"IF(Miami!$D$33=\"\",0,SUM(Bahrein:Monaco!$G$33))","v":2},2,15]
[null,null,null,null,null,null,0,null,null,null,null,null,null,"MAGNUSSEN Kevin",{"$f":"IF(Miami!$D$26=\"\",0,SUM(Bahrein:Monaco!$G$26))","v":2},0,15]
["GASLY Pierre","ALPINE F1 TEAM",null,null,null,null,0,null,null,null,null,null,null,"TSUNODA Yoki",{"$f":"IF(Miami!$D$23=\"\",0,SUM(Bahrein:Monaco!$G$23))","v":2},0,15]
["OCON Sebastian",null,null,null,null,null,0,null,null,null,null,null,null,"ALBON Alexander",{"$f":"IF(Miami!$D$17=\"\",0,SUM(Bahrein:Monaco!$G$17))","v":1},1,18]
[null,null,null,null,null,null,0,null,null,null,null,null,null,"DEVRIES Nyck",{"$f":"IF(Miami!$D$24=\"\",0,SUM(Bahrein:Monaco!$G$24))","v":0},1,19]
["TSUNODA Yoki","ALPHA TAURI",null,null,null,null,0,null,null,null,null,null,null,"SARGEANT Logan",{"$f":"IF(Miami!$D$18=\"\",0,SUM(Bahrein:Monaco!$G$18))","v":0},0,19]
["DEVRIES Nyck",null,null,null,null,null,0]
[null,null,null,null,null,null,0]
["MAGNUSSEN Kevin","HAAS",null,null,null,null,0]
["HULKENBERG Nico",null,null,null,null,null,0]
[null,null,null,null,null,null,0]
["NORRIS Lando","Mc LAREN",null,null,null,null,0]
["PIASTRI Oscar",null,null,null,null,null,0]
[null,null,null,null,null,null,0]
["BOTTAS Valtteri","ALFA ROMÉO",null,null,null,null,0]
["GUANYU Zhou",null,null,null,null,null,0]
[null,null,null,null,null,null,0]

{"sheet":"Espagne","index":11,"n_rows":34,"n_cols":17,"rows_kept":34,"cut":false,"hidden":false,"merged":[[10,1,12,1],[10,2,12,2],[2,0,3,0],[0,0,1,16],[4,2,6,2],[7,1,9,1],[7,2,9,2],[2,1,3,1],[2,2,3,2],[2,3,3,3],[2,5,3,5],[2,6,3,6],[2,4,3,4],[4,1,6,1],[36,1,36,3],[13,1,15,1],[13,2,15,2],[16,1,18,1],[16,2,18,2],[19,1,21,1],[19,2,21,2],[31,1,33,1],[31,2,33,2],[22,1,24,1],[22,2,24,2],[25,1,27,1],[25,2,27,2],[28,1,30,1],[28,2,30,2]]}
["BARCELONE - 4 JUIN 2023"]
[]
["PILOTES","ECURIES","VOITURES","Finish","Pôle","Pt tour","Points",null,"ÉCURIES","Points","Écart","Rang",null,"Noms","Points","Écart","Rang"]
[null,null,null,null,null,null,null,null,"MERCEDES",{"$f":"IF(SUM(Monaco!$G$5:$G$7)=0,0,SUM(Bahrein:Espagne!$G$5:$G$7))","v":0},null,{"$f":"IF(J4=\"\",0,(RANK(J4,$J$4:$J$13)))","v":1},null,"VERSTAPPEN Max",{"$f":"IF(Monaco!$D$11=\"\",0,SUM(Bahrein:Espagne!$G$11))","v":0},null,{"$f":"IF(O4=\"\",0,(RANK(O4,$O$4:$O$23)))","v":1}]
["HAMILTON Lewis","MERCEDES",null,null,null,null,{"$f":"IFERROR(CHOOSE(D5,25,18,15,12,10,8,6,4,2,1)+(F5=1),0)","v":0},null,"Mc LAREN",{"$f":"IF(SUM(Monaco!$G$5:$G$7)=0,0,SUM(Bahrein:Espagne!$G$29:$G$31))","v":0},{"$f":"J4-J5","v":0},{"$f":"IF(J5=\"\",0,(RANK(J5,$J$4:$J$13)))","v":1},null,"PEREZ Sergio",{"$f":"IF(Monaco!$D$12=\"\",0,SUM(Bahrein:Espagne!$G$12))","v":0},{"$f":"O4-O5","v":0},{"$f":"IF(O5=\"\",0,(RANK(O5,$O$4:$O$23)))","v":1}]
["RUSSELL George",null,null,null,null,null,{"$f":"IFERROR(CHOOSE(D6,25,18,15,12,10,8,6,4,2,1)+(F6=1),0)","v":0},null,"FERRARI",{"$f":"IF(SUM(Monaco!$G$5:$G$7)=0,0,SUM(Bahrein:Espagne!$G$8:$G$10))","v":0},{"$f":"J5-J6","v":0},1,null,"ALONSO Fernando",{"$f":"IF(Monaco!$D$14=\"\",0,SUM(Bahrein:Espagne!$G$14))","v":0},{"$f":"O5-O6","v":0},1]
[null,null,null,null,null,null,0,null,"WILLIAMS",{"$f":"IF(SUM(Monaco!$G$5:$G$7)=0,0,SUM(Bahrein:Espagne!$G$17:$G$19))","v":0},0,1,null,"HAMILTON Lewis",{"$f":"IF(Monaco!$D$5=\"\",0,SUM(Bahrein:Espagne!$G$5))","v":0},0,1]
["SAINZ.Jr Carlos","FERRARI",null,null,null,null,0,null,"ALFA ROMÉO",{"$f":"IF(SUM(Monaco!$G$5:$G$7)=0,0,SUM(Bahrein:Espagne!$G$32:$G$34))","v":0},0,1,null,"SAINZ.Jr Carlos",{"$f":"IF(Monaco!$D$8=\"\",0,SUM(Bahrein:Espagne!$G$8))","v":0},0,1]
["LECLERC Charles",null,null,null,null,null,0,null,"RED BULL RACING",{"$f":"IF(SUM(Monaco!$G$5:$G$7)=0,0,SUM(Bahrein:Espagne!$G$11:$G$13))","v":0},0,1,null,"STROLL Lance",{"$f":"IF(Monaco!$D$15=\"\",0,SUM(Bahrein:Espagne!$G$15))","v":0},0,1]
[null,null,null,null,null,null,0,null,"ASTON MARTIN",{"$f":"IF(SUM(Monaco!$G$5:$G$7)=0,0,SUM(Bahrein:Espagne!$G$14:$G$16))","v":0},0,1,null,"RUSSEL George",{"$f":"IF(Monaco!$D$6=\"\",0,SUM(Bahrein:Espagne!$G$6))","v":0},0,1]
["VERSTAPPEN Max","RED BULL RACING",null,null,null,null,0,null,"ALPINE F1 TEAM",{"$f":"IF(SUM(Monaco!$G$5:$G$7)=0,0,SUM(Bahrein:Espagne!$G$20:$G$22))","v":0},0,1,null,"NORRIS Lando",{"$f":"IF(Monaco!$D$29=\"\",0,SUM(Bahrein:Espagne!$G$29))","v":0},0,1]
["PEREZ Sergio",null,null,null,null,null,0,null,"ALPHA TAURI",{"$f":"IF(SUM(Monaco!$G$5:$G$7)=0,0,SUM(Bahrein:Espagne!$G$23:$G$25))","v":0},0,1,null,"LECLERC Charles",{"$f":"IF(Monaco!$D$9=\"\",0,SUM(Bahrein:Espagne!$G$9))","v":0},0,1]
[null,null,null,null,null,null,0,null,"HAAS",{"$f":"IF(SUM(Monaco!$G$5:$G$7)=0,0,SUM(Bahrein:Espagne!$G$26:$G$28))","v":0},0,1,null,"HULKENBERG Nico",{"$f":"IF(Monaco!$D$27=\"\",0,SUM(Bahrein:Espagne!$G$27))","v":0},0,1]
["ALONSO Fernando","ASTON MARTIN",null,null,null,null,0,null,null,null,null,null,null,"BOTTAS Valtteri",{"$f":"IF(Monaco!$D$32=\"\",0,SUM(Bahrein:Espagne!$G$32))","v":0},0,1]
["STROLL Lance",null,null,null,null,null,0,null,null,null,null,null,null,"GASLY Pierre",{"$f":"IF(Monaco!$D$20=\"\",0,SUM(Bahrein:Espagne!$G$20))","v":0},0,1]
[null,null,null,null,null,null,0,null,null,null,null,null,null,"OCON Sebastian",{"$f":"IF(Monaco!$D$21=\"\",0,SUM(Bahrein:Espagne!$G$21))","v":0},0,1]
["ALBON Alexander","WILLIAMS",null,null,null,null,0,null,null,null,null,null,null,"PIASTRI Oscar",{"$f":"IF(Monaco!$D$30=\"\",0,SUM(Bahrein:Espagne!$G$30))","v":0},0,1]
["SARGEANT Logan",null,null,null,null,null,0,null,null,null,null,null,null,"GUANYU Zhou",{"$f":"IF(Monaco!$D$33=\"\",0,SUM(Bahrein:Espagne!$G$33))","v":0},0,1]
[null,null,null,null,null,null,0,null,null,null,null,null,null,"ALBON Alexander",{"$f":"IF(Monaco!$D$17=\"\",0,SUM(Bahrein:Espagne!$G$17))","v":0},0,1]
["GASLY Pierre","ALPINE F1 TEAM",null,null,null,null,0,null,null,null,null,null,null,"MAGNUSSUN Kevin",{"$f":"IF(Monaco!$D$26=\"\",0,SUM(Bahrein:Espagne!$G$26))","v":0},0,1]
["OCON Sebastian",null,null,null,null,null,0,null,null,null,null,null,null,"TSUNODA Yoki",{"$f":"IF(Monaco!$D$23=\"\",0,SUM(Bahrein:Espagne!$G$23))","v":0},0,1]
[null,null,null,null,null,null,0,null,null,null,null,null,null,"DEVRIES Nyck",{"$f":"IF(Monaco!$D$24=\"\",0,SUM(Bahrein:Espagne!$G$24))","v":0},0,1]
["TSUNODA Yoki","ALPHA TAURI",null,null,null,null,0,null,null,null,null,null,null,"SARGEANT Logan",{"$f":"IF(Monaco!$D$18=\"\",0,SUM(Bahrein:Espagne!$G$18))","v":0},0,1]
["DEVRIES Nyck",null,null,null,null,null,0]
[null,null,null,null,null,null,0]
["MAGNUSSEN Kevin","HAAS",null,null,null,null,0]
["HULKENBERG Nico",null,null,null,null,null,0]
[null,null,null,null,null,null,0]
["NORRIS Lando","Mc LAREN",null,null,null,null,0]
["PIASTRI Oscar",null,null,null,null,null,0]
[null,null,null,null,null,null,0]
["BOTTAS Valtteri","ALFA ROMÉO",null,null,null,null,0]
["GUANYU Zhou",null,null,null,null,null,0]
[null,null,null,null,null,null,0]

{"sheet":"Canada","index":12,"n_rows":34,"n_cols":17,"rows_kept":34,"cut":false,"hidden":false,"merged":[[31,1,33,1],[31,2,33,2],[36,1,36,3],[22,1,24,1],[22,2,24,2],[25,1,27,1],[25,2,27,2],[28,1,30,1],[28,2,30,2],[13,1,15,1],[13,2,15,2],[16,1,18,1],[16,2,18,2],[19,1,21,1],[19,2,21,2],[4,1,6,1],[4,2,6,2],[7,1,9,1],[7,2,9,2],[10,1,12,1],[10,2,12,2],[2,5,3,5],[2,6,3,6],[0,0,1,16],[2,0,3,0],[2,1,3,1],[2,2,3,2],[2,3,3,3],[2,4,3,4]]}
["MONTRÉAL - 18 JUIN 2023"]
[]
["PILOTES","ECURIES","VOITURES","Finish","Pôle","Pt tour","Points",null,"ÉCURIES","Points","Écart","Rang",null,"Noms","Points","Écart","Rang"]
[null,null,null,null,null,null,null,null,"MERCEDES",{"$f":"IF(SUM(Espagne!$G$5:$G$34)=0,0,SUM(Bahrein:Canada!$G$5:$G$7))","v":0},null,{"$f":"IF(J4=\"\",0,(RANK(J4,$J$4:$J$13)))","v":1},null,"VERSTAPPEN Max",{"$f":"IF(Espagne!$D$11=\"\",0,SUM(Bahrein:Canada!$G$11))","v":0},null,{"$f":"IF(O4=\"\",0,(RANK(O4,$O$4:$O$23)))","v":1}]
["HAMILTON Lewis","MERCEDES",null,null,null,null,{"$f":"IFERROR(CHOOSE(D5,25,18,15,12,10,8,6,4,2,1)+(F5=1),0)","v":0},null,"Mc LAREN",{"$f":"IF(SUM(Espagne!$G$5:$G$34)=0,0,SUM(Bahrein:Canada!$G$29:$G$31))","v":0},{"$f":"J4-J5","v":0},{"$f":"IF(J5=\"\",0,(RANK(J5,$J$4:$J$13)))","v":1},null,"PEREZ Sergio",{"$f":"IF(Espagne!$D$12=\"\",0,SUM(Bahrein:Canada!$G$12))","v":0},{"$f":"O4-O5","v":0},{"$f":"IF(O5=\"\",0,(RANK(O5,$O$4:$O$23)))","v":1}]
["RUSSELL George",null,null,null,null,null,{"$f":"IFERROR(CHOOSE(D6,25,18,15,12,10,8,6,4,2,1)+(F6=1),0)","v":0},null,"FERRARI",{"$f":"IF(SUM(Espagne!$G$5:$G$34)=0,0,SUM(Bahrein:Canada!$G$8:$G$10))","v":0},{"$f":"J5-J6","v":0},1,null,"ALONSO Fernando",{"$f":"IF(Espagne!$D$14=\"\",0,SUM(Bahrein:Canada!$G$14))","v":0},{"$f":"O5-O6","v":0},1]
[null,null,null,null,null,null,0,null,"WILLIAMS",{"$f":"IF(SUM(Espagne!$G$5:$G$34)=0,0,SUM(Bahrein:Canada!$G$17:$G$19))","v":0},0,1,null,"HAMILTON Lewis",{"$f":"IF(Espagne!$D$5=\"\",0,SUM(Bahrein:Canada!$G$5))","v":0},0,1]
["SAINZ.Jr Carlos","FERRARI",null,null,null,null,0,null,"ALFA ROMÉO",{"$f":"IF(SUM(Espagne!$G$5:$G$34)=0,0,SUM(Bahrein:Canada!$G$32:$G$34))","v":0},0,1,null,"SAINZ.Jr Carlos",{"$f":"IF(Espagne!$D$8=\"\",0,SUM(Bahrein:Canada!$G$8))","v":0},0,1]
["LECLERC Charles",null,null,null,null,null,0,null,"RED BULL RACING",{"$f":"IF(SUM(Espagne!$G$5:$G$34)=0,0,SUM(Bahrein:Canada!$G$11:$G$13))","v":0},0,1,null,"STROLL Lance",{"$f":"IF(Espagne!$D$15=\"\",0,SUM(Bahrein:Canada!$G$15))","v":0},0,1]
[null,null,null,null,null,null,0,null,"ASTON MARTIN",{"$f":"IF(SUM(Espagne!$G$5:$G$34)=0,0,SUM(Bahrein:Canada!$G$14:$G$16))","v":0},0,1,null,"RUSSEL George",{"$f":"IF(Espagne!$D$5=\"\",0,SUM(Bahrein:Canada!$G$5))","v":0},0,1]
["VERSTAPPEN Max","RED BULL RACING",null,null,null,null,0,null,"ALPINE F1 TEAM",{"$f":"IF(SUM(Espagne!$G$5:$G$34)=0,0,SUM(Bahrein:Canada!$G$20:$G$22))","v":0},0,1,null,"NORRIS Lando",{"$f":"IF(Espagne!$D$29=\"\",0,SUM(Bahrein:Canada!$G$29))","v":0},0,1]
["PEREZ Sergio",null,null,null,null,null,0,null,"ALPHA TAURI",{"$f":"IF(SUM(Espagne!$G$5:$G$34)=0,0,SUM(Bahrein:Canada!$G$23:$G$25))","v":0},0,1,null,"LECLERC Charles",{"$f":"IF(Espagne!$D$9=\"\",0,SUM(Bahrein:Canada!$G$9))","v":0},0,1]
[null,null,null,null,null,null,0,null,"HAAS",{"$f":"IF(SUM(Espagne!$G$5:$G$34)=0,0,SUM(Bahrein:Canada!$G$26:$G$28))","v":0},0,1,null,"HULKENBERG Nico",{"$f":"IF(Espagne!$D$27=\"\",0,SUM(Bahrein:Canada!$G$27))","v":0},0,1]
["ALONSO Fernando","ASTON MARTIN",null,null,null,null,0,null,null,null,null,null,null,"BOTTAS Valtteri",{"$f":"IF(Espagne!$D$32=\"\",0,SUM(Bahrein:Canada!$G$32))","v":0},0,1]
["STROLL Lance",null,null,null,null,null,0,null,null,null,null,null,null,"GASLY Pierre",{"$f":"IF(Espagne!$D$20=\"\",0,SUM(Bahrein:Canada!$G$20))","v":0},0,1]
[null,null,null,null,null,null,0,null,null,null,null,null,null,"OCON Sebastian",{"$f":"IF(Espagne!$D$21=\"\",0,SUM(Bahrein:Canada!$G$21))","v":0},0,1]
["ALBON Alexander","WILLIAMS",null,null,null,null,0,null,null,null,null,null,null,"PIASTRI Oscar",{"$f":"IF(Espagne!$D$30=\"\",0,SUM(Bahrein:Canada!$G$30))","v":0},0,1]
["SARGEANT Logan",null,null,null,null,null,0,null,null,null,null,null,null,"GUANYU Zhou",{"$f":"IF(Espagne!$D$33=\"\",0,SUM(Bahrein:Canada!$G$33))","v":0},0,1]
[null,null,null,null,null,null,0,null,null,null,null,null,null,"ALBON Alexander",{"$f":"IF(Espagne!$D$17=\"\",0,SUM(Bahrein:Canada!$G$17))","v":0},0,1]
["GASLY Pierre","ALPINE F1 TEAM",null,null,null,null,0,null,null,null,null,null,null,"MAGNUSSEN Kevin",{"$f":"IF(Espagne!$D$26=\"\",0,SUM(Bahrein:Canada!$G$26))","v":0},0,1]
["OCON Sebastian",null,null,null,null,null,0,null,null,null,null,null,null,"TSUNODA Yoki",{"$f":"IF(Espagne!$D$23=\"\",0,SUM(Bahrein:Canada!$G$23))","v":0},0,1]
[null,null,null,null,null,null,0,null,null,null,null,null,null,"DEVRIES Nyck",{"$f":"IF(Espagne!$D$24=\"\",0,SUM(Bahrein:Canada!$G$24))","v":0},0,1]
["TSUNODA Yoki","ALPHA TAURI",null,null,null,null,0,null,null,null,null,null,null,"SARGEANT Logan",{"$f":"IF(Espagne!$D$18=\"\",0,SUM(Bahrein:Canada!$G$18))","v":0},0,1]
["DEVRIES Nyck",null,null,null,null,null,0]
[null,null,null,null,null,null,0]
["MAGNUSSEN Kevin","HAAS",null,null,null,null,0]
["HULKENBERG Nico",null,null,null,null,null,0]
[null,null,null,null,null,null,0]
["NORRIS Lando","Mc LAREN",null,null,null,null,0]
["PIASTRI Oscar",null,null,null,null,null,0]
[null,null,null,null,null,null,0]
["BOTTAS Valtteri","ALFA ROMÉO",null,null,null,null,0]
["GUANYU Zhou",null,null,null,null,null,0]
[null,null,null,null,null,null,0]

{"sheet":"Autriche","index":13,"n_rows":34,"n_cols":17,"rows_kept":34,"cut":false,"hidden":false,"merged":[[2,0,3,0],[2,7,3,7],[0,0,1,16],[4,1,6,1],[4,2,6,2],[2,1,3,1],[2,2,3,2],[2,3,3,3],[2,5,3,5],[2,6,3,6],[2,4,3,4],[7,1,9,1],[7,2,9,2],[10,1,12,1],[10,2,12,2],[13,1,15,1],[13,2,15,2],[16,1,18,1],[16,2,18,2],[19,1,21,1],[19,2,21,2],[36,1,36,3],[31,1,33,1],[31,2,33,2],[22,1,24,1],[22,2,24,2],[25,1,27,1],[25,2,27,2],[28,1,30,1],[28,2,30,2]]}
["SPIELBERG - 2 JUILLET 2023"]
[]
["PILOTES","ECURIES","VOITURES","Finish","Pôle","Pt tour","Points","Sprint","ÉCURIES","Points","Écart","Rang",null,"Noms","Points","Écart","Rang"]
[null,null,null,null,null,null,null,null,"MERCEDES",{"$f":"IF(SUM(Canada!$G$5:$G$34)=0,0,SUM(Bahrein:Autriche!$G$5:$G$7))","v":0},null,{"$f":"IF(J4=\"\",0,(RANK(J4,$J$4:$J$13)))","v":1},null,"VERSTAPPEN Max",{"$f":"IF(Canada!$D$11=\"\",0,SUM(Bahrein:Autriche!$G$11))","v":0},null,{"$f":"IF(O4=\"\",0,(RANK(O4,$O$4:$O$23)))","v":1}]
["HAMILTON Lewis","MERCEDES",null,null,null,null,{"$f":"IFERROR(CHOOSE(D5,25,18,15,12,10,8,6,4,2,1),0)+IFERROR(CHOOSE(H5,8,7,6,5,4,3,2,1),0)+F5","v":0},null,"Mc LAREN",{"$f":"IF(SUM(Canada!$G$5:$G$34)=0,0,SUM(Bahrein:Autriche!$G$29:$G$31))","v":0},{"$f":"J4-J5","v":0},{"$f":"IF(J5=\"\",0,(RANK(J5,$J$4:$J$13)))","v":1},null,"PEREZ Sergio",{"$f":"IF(Canada!$D$12=0,0,SUM(Bahrein:Autriche!$G$12))","v":0},{"$f":"O4-O5","v":0},{"$f":"IF(O5=\"\",0,(RANK(O5,$O$4:$O$23)))","v":1}]
["RUSSELL George",null,null,null,null,null,{"$f":"IFERROR(CHOOSE(D6,25,18,15,12,10,8,6,4,2,1),0)+IFERROR(CHOOSE(H6,8,7,6,5,4,3,2,1),0)+F6","v":0},null,"FERRARI",{"$f":"IF(SUM(Canada!$G$5:$G$34)=0,0,SUM(Bahrein:Autriche!$G$8:$G$10))","v":0},{"$f":"J5-J6","v":0},1,null,"ALONSO Fernando",{"$f":"IF(Canada!$D$14=0,0,SUM(Bahrein:Autriche!$G$14))","v":0},{"$f":"O5-O6","v":0},1]
[null,null,null,null,null,null,0,null,"WILLIAMS",{"$f":"IF(SUM(Canada!$G$5:$G$34)=0,0,SUM(Bahrein:Autriche!$G$17:$G$19))","v":0},0,1,null,"HAMILTON Lewis",{"$f":"IF(Canada!$D$5=0,0,SUM(Bahrein:Autriche!$G$5))","v":0},0,1]
["SAINZ.Jr Carlos","FERRARI",null,null,null,null,0,null,"ALFA ROMÉO",{"$f":"IF(SUM(Canada!$G$5:$G$34)=0,0,SUM(Bahrein:Autriche!$G$31:$G$33))","v":0},0,1,null,"SAINZ.Jr Carlos",{"$f":"IF(Canada!$D$8=0,0,SUM(Bahrein:Autriche!$G$8))","v":0},0,1]
["LECLERC Charles",null,null,null,null,null,0,null,"RED BULL RACING",{"$f":"IF(SUM(Canada!$G$5:$G$34)=0,0,SUM(Bahrein:Autriche!$G$11:$G$13))","v":0},0,1,null,"STROLL Lance",{"$f":"IF(Canada!$D$15=0,0,SUM(Bahrein:Autriche!$G$15))","v":0},0,1]
[null,null,null,null,null,null,0,null,"ASTON MARTIN",{"$f":"IF(SUM(Canada!$G$5:$G$34)=0,0,SUM(Bahrein:Autriche!$G$14:$G$16))","v":0},0,1,null,"RUSSEL George",{"$f":"IF(Canada!$D$6=0,0,SUM(Bahrein:Autriche!$G$6))","v":0},0,1]
["VERSTAPPEN Max","RED BULL RACING",null,null,null,null,0,null,"ALPINE F1 TEAM",{"$f":"IF(SUM(Canada!$G$5:$G$34)=0,0,SUM(Bahrein:Autriche!$G$20:$G$22))","v":0},0,1,null,"NORRIS Lando",{"$f":"IF(Canada!$D$29=0,0,SUM(Bahrein:Autriche!$G$29))","v":0},0,1]
["PEREZ Sergio",null,null,null,null,null,0,null,"ALPHA TAURI",{"$f":"IF(SUM(Canada!$G$5:$G$34)=0,0,SUM(Bahrein:Autriche!$G$23:$G$25))","v":0},0,1,null,"LECLERC Charles",{"$f":"IF(Canada!$D$9=0,0,SUM(Bahrein:Autriche!$G$9))","v":0},0,1]
[null,null,null,null,null,null,0,null,"HAAS",{"$f":"IF(SUM(Canada!$G$5:$G$34)=0,0,SUM(Bahrein:Autriche!$G$26:$G$28))","v":0},0,1,null,"HULKENBERG Nico",{"$f":"IF(Canada!$D$27=0,0,SUM(Bahrein:Autriche!$G$27))","v":0},0,1]
["ALONSO Fernando","ASTON MARTIN",null,null,null,null,0,null,null,null,null,null,null,"BOTTAS Valtteri",{"$f":"IF(Canada!$D$32=0,0,SUM(Bahrein:Autriche!$G$32))","v":0},0,1]
["STROLL Lance",null,null,null,null,null,0,null,null,null,null,null,null,"GASLY Pierre",{"$f":"IF(Canada!$D$20=0,0,SUM(Bahrein:Autriche!$G$20))","v":0},0,1]
[null,null,null,null,null,null,0,null,null,null,null,null,null,"OCON Sebastian",{"$f":"IF(Canada!$D$21=0,0,SUM(Bahrein:Autriche!$G$21))","v":0},0,1]
["ALBON Alexander","WILLIAMS",null,null,null,null,0,null,null,null,null,null,null,"PIASTRI Oscar",{"$f":"IF(Canada!$D$30=0,0,SUM(Bahrein:Autriche!$F$30))","v":0},0,1]
["SARGEANT Logan",null,null,null,null,null,0,null,null,null,null,null,null,"GUANYU Zhou",{"$f":"IF(Canada!$D$33=0,0,SUM(Bahrein:Autriche!$G$33))","v":0},0,1]
[null,null,null,null,null,null,0,null,null,null,null,null,null,"ALBON Alexander",{"$f":"IF(Canada!$D$17=0,0,SUM(Bahrein:Autriche!$G$17))","v":0},0,1]
["GASLY Pierre","ALPINE F1 TEAM",null,null,null,null,0,null,null,null,null,null,null,"MAGNUSSEN Kevin",{"$f":"IF(Canada!$D$26=0,0,SUM(Bahrein:Autriche!$G$26))","v":0},0,1]
["OCON Sebastian",null,null,null,null,null,0,null,null,null,null,null,null,"TSUNODA Yoki",{"$f":"IF(Canada!$D$23=0,0,SUM(Bahrein:Autriche!$G$23))","v":0},0,1]
[null,null,null,null,null,null,0,null,null,null,null,null,null,"SARGEANT Logan",{"$f":"IF(Canada!$D$18=0,0,SUM(Bahrein:Autriche!$G$18))","v":0},0,1]
["TSUNODA Yoki","ALPHA TAURI",null,null,null,null,0,null,null,null,null,null,null,"DEVRIES Nyck",{"$f":"IF(Canada!$D$24=0,0,SUM(Bahrein:Autriche!$G$24))","v":0},0,1]
["DEVRIES Nyck",null,null,null,null,null,0]
[null,null,null,null,null,null,0]
["MAGNUSSEN Kevin","HAAS",null,null,null,null,0]
["HULKENBERG Nico",null,null,null,null,null,0]
[null,null,null,null,null,null,0]
["NORRIS Lando","Mc LAREN",null,null,null,null,0]
["PIASTRI Oscar",null,null,null,null,null,0]
[null,null,null,null,null,null,0]
["BOTTAS Valtteri","ALFA ROMÉO"," ",null,null,null,0]
["GUANYU Zhou",null,null,null,null,null,0]
[null,null,null,null,null,null,0]

{"sheet":"GB","index":14,"n_rows":34,"n_cols":17,"rows_kept":34,"cut":false,"hidden":false,"merged":[[2,5,3,5],[2,6,3,6],[2,7,3,7],[0,0,1,16],[2,0,3,0],[2,1,3,1],[2,2,3,2],[2,3,3,3],[2,4,3,4],[4,1,6,1],[4,2,6,2],[7,1,9,1],[7,2,9,2],[10,1,12,1],[10,2,12,2],[13,1,15,1],[13,2,15,2],[16,1,18,1],[16,2,18,2],[19,1,21,1],[19,2,21,2],[36,1,36,3],[31,1,33,1],[31,2,33,2],[22,1,24,1],[22,2,24,2],[25,1,27,1],[25,2,27,2],[28,1,30,1],[28,2,30,2]]}
["SILVERSTONE - 9 JUILLET 2023"]
[]
["PILOTES","ECURIES","VOITURES","Finish","Pôle","Pt tour","Points",null,"ÉCURIES","Points","Écart","Rang",null,"Noms","Points","Écart","Rang"]
[null,null,null,null,null,null,null,null,"MERCEDES",{"$f":"IF(SUM(Autriche!$G$5:$G$34)=0,0,SUM(Bahrein:GB!$G$5:$G$7))","v":0},null,{"$f":"IF(J4=\"\",0,(RANK(J4,$J$4:$J$13)))","v":1},null,"VERSTAPPEN Max",{"$f":"IF(Autriche!$D$11=\"\",0,SUM(Bahrein:GB!$G$11))","v":0},null,{"$f":"IF(O4=\"\",0,(RANK(O4,$O$4:$O$23)))","v":1}]
["HAMILTON Lewis","MERCEDES",null,null,null,null,{"$f":"IFERROR(CHOOSE(D5,25,18,15,12,10,8,6,4,2,1)+(F5=1),0)","v":0},null,"Mc LAREN",{"$f":"IF(SUM(Autriche!$G$5:$G$34)=0,0,SUM(Bahrein:GB!$G$29:$G$31))","v":0},{"$f":"J4-J5","v":0},{"$f":"IF(J5=\"\",0,(RANK(J5,$J$4:$J$13)))","v":1},null,"PEREZ Sergio",{"$f":"IF(Autriche!$D$12=\"\",0,SUM(Bahrein:GB!$G$12))","v":0},{"$f":"O4-O5","v":0},{"$f":"IF(O5=\"\",0,(RANK(O5,$O$4:$O$23)))","v":1}]
["RUSSELL George",null,null,null,null,null,{"$f":"IFERROR(CHOOSE(D6,25,18,15,12,10,8,6,4,2,1)+(F6=1),0)","v":0},null,"FERRARI",{"$f":"IF(SUM(Autriche!$G$5:$G$34)=0,0,SUM(Bahrein:GB!$G$8:$G$10))","v":0},{"$f":"J5-J6","v":0},1,null,"ALONSO Fernando",{"$f":"IF(Autriche!$D$14=\"\",0,SUM(Bahrein:GB!$G$14))","v":0},{"$f":"O5-O6","v":0},1]
[null,null,null,null,null,null,0,null,"WILLIAMS",{"$f":"IF(SUM(Autriche!$G$5:$G$34)=0,0,SUM(Bahrein:GB!$G$17:$G$19))","v":0},0,1,null,"HAMILTON Lewis",{"$f":"IF(Autriche!$D$5=\"\",0,SUM(Bahrein:GB!$G$5))","v":0},0,1]
["SAINZ.Jr Carlos","FERRARI",null,null,null,null,0,null,"ALFA ROMÉO",{"$f":"IF(SUM(Autriche!$G$5:$G$34)=0,0,SUM(Bahrein:GB!$G$32:$G$34))","v":0},0,1,null,"SAINZ.Jr Carlos",{"$f":"IF(Autriche!$D$8=\"\",0,SUM(Bahrein:GB!$G$8))","v":0},0,1]
["LECLERC Charles",null,null,null,null,null,0,null,"RED BULL RACING",{"$f":"IF(SUM(Autriche!$G$5:$G$34)=0,0,SUM(Bahrein:GB!$G$11:$G$13))","v":0},0,1,null,"STROLL Lance",{"$f":"IF(Autriche!$D$15=\"\",0,SUM(Bahrein:GB!$G$15))","v":0},0,1]
[null,null,null,null,null,null,0,null,"ASTON MARTIN",{"$f":"IF(SUM(Autriche!$G$5:$G$34)=0,0,SUM(Bahrein:GB!$G$14:$G$16))","v":0},0,1,null,"RUSSEL George",{"$f":"IF(Autriche!$D$6=\"\",0,SUM(Bahrein:GB!$G$6))","v":0},0,1]
["VERSTAPPEN Max","RED BULL RACING",null,null,null,null,0,null,"ALPINE F1 TEAM",{"$f":"IF(SUM(Autriche!$G$5:$G$34)=0,0,SUM(Bahrein:GB!$G$20:$G$22))","v":0},0,1,null,"NORRIS Lando",{"$f":"IF(Autriche!$D$29=\"\",0,SUM(Bahrein:GB!$G$29))","v":0},0,1]
["PEREZ Sergio",null,null,null,null,null,0,null,"ALPHA TAURI",{"$f":"IF(SUM(Autriche!$G$5:$G$34)=0,0,SUM(Bahrein:GB!$G$23:$G$25))","v":0},0,1,null,"LECLERC Charles",{"$f":"IF(Autriche!$D$9=\"\",0,SUM(Bahrein:GB!$G$9))","v":0},0,1]
[null,null,null,null,null,null,0,null,"HAAS",{"$f":"IF(SUM(Autriche!$G$5:$G$34)=0,0,SUM(Bahrein:GB!$G$26:$G$28))","v":0},0,1,null,"HULKENBERG Nico",{"$f":"IF(Autriche!$D$27=\"\",0,SUM(Bahrein:GB!$G$27))","v":0},0,1]
["ALONSO Fernando","ASTON MARTIN",null,null,null,null,0,null,null,null,null,null,null,"BOTTAS Valtteri",{"$f":"IF(Autriche!$D$32=\"\",0,SUM(Bahrein:GB!$G$32))","v":0},0,1]
["STROLL Lance",null,null,null,null,null,0,null,null,null,null,null,null,"GASLY Pierre",{"$f":"IF(Autriche!$D$20=\"\",0,SUM(Bahrein:GB!$G$20))","v":0},0,1]
[null,null,null,null,null,null,0,null,null,null,null,null,null,"OCON Sebastian",{"$f":"IF(Autriche!$D$21=\"\",0,SUM(Bahrein:GB!$G$21))","v":0},0,1]
["ALBON Alexander","WILLIAMS",null,null,null,null,0,null,null,null,null,null,null,"PIASTRI Oscar",{"$f":"IF(Autriche!$D$30=\"\",0,SUM(Bahrein:GB!$G$30))","v":0},0,1]
["SARGEANT Logan",null,null,null,null,null,0,null,null,null,null,null,null,"GUANYU Zhou",{"$f":"IF(Autriche!$D$33=\"\",0,SUM(Bahrein:GB!$G$33))","v":0},0,1]
[null,null,null,null,null,null,0,null,null,null,null,null,null,"MAGNUSSEN Kevin",{"$f":"IF(Autriche!$D$26=\"\",0,SUM(Bahrein:GB!$G$26))","v":0},0,1]
["GASLY Pierre","ALPINE F1 TEAM",null,null,null,null,0,null,null,null,null,null,null,"ALBON Alexander",{"$f":"IF(Autriche!$D$17=\"\",0,SUM(Bahrein:GB!$G$17))","v":0},0,1]
["OCON Sebastian",null,null,null,null,null,0,null,null,null,null,null,null,"TSUNODA Yoki",{"$f":"IF(Autriche!$D$23=\"\",0,SUM(Bahrein:GB!$G$23))","v":0},0,1]
[null,null,null,null,null,null,0,null,null,null,null,null,null,"SARGEANT Logan",{"$f":"IF(Autriche!$D$18=\"\",0,SUM(Bahrein:GB!$G$18))","v":0},0,1]
["TSUNODA Yoki","ALPHA TAURI",null,null,null,null,0,null,null,null,null,null,null,"DEVRIES Nyck",{"$f":"IF(Autriche!$D$24=\"\",0,SUM(Bahrein:GB!$G$24))","v":0},0,1]
["DEVRIES Nyck",null,null,null,null,null,0]
[null,null,null,null,null,null,0]
["MAGNUSSEN Kevin","HAAS",null,null,null,null,0]
["HULKENBERG Nico",null,null,null,null,null,0]
[null,null,null,null,null,null,0]
["NORRIS Lando","Mc LAREN",null,null,null,null,0]
["PIASTRI Oscar",null,null,null,null,null,0]
[null,null,null,null,null,null,0]
["BOTTAS Valtteri","ALFA ROMÉO",null,null,null,null,0]
["GUANYU Zhou",null,null,null,null,null,0]
[null,null,null,null,null,null,0]

{"sheet":"Hongrie","index":15,"n_rows":34,"n_cols":17,"rows_kept":34,"cut":false,"hidden":false,"merged":[[2,5,3,5],[2,6,3,6],[0,0,1,16],[4,1,6,1],[4,2,6,2],[2,0,3,0],[2,1,3,1],[2,2,3,2],[2,3,3,3],[2,4,3,4],[7,1,9,1],[7,2,9,2],[10,1,12,1],[10,2,12,2],[13,1,15,1],[13,2,15,2],[16,1,18,1],[16,2,18,2],[19,1,21,1],[19,2,21,2],[36,1,36,3],[31,1,33,1],[31,2,33,2],[22,1,24,1],[22,2,24,2],[25,1,27,1],[25,2,27,2],[28,1,30,1],[28,2,30,2]]}
["BUDAPEST - 23 JUILLET 2023"]
[]
["PILOTES","ECURIES","VOITURES","Finish","Pôle","Pt tour","Points",null,"ÉCURIES","Points","Écart","Rang",null,"Noms","Points","Écart","Rang"]
[null,null,null,null,null,null,null,null,"MERCEDES",{"$f":"IF(SUM(GB!$G$5:$G$34)=0,0,SUM(Bahrein:Hongrie!$G$5:$G$7))","v":0},null,{"$f":"IF(J4=\"\",0,(RANK(J4,$J$4:$J$13)))","v":1},null,"VERSTAPPEN Max",{"$f":"IF(GB!$D$11=\"\",0,SUM(Bahrein:Hongrie!$G$11))","v":0},null,{"$f":"IF(O4=\"\",0,(RANK(O4,$O$4:$O$23)))","v":1}]
["HAMILTON Lewis","MERCEDES",null,null,null,null,{"$f":"IFERROR(CHOOSE(D5,25,18,15,12,10,8,6,4,2,1)+(F5=1),0)","v":0},null,"Mc LAREN",{"$f":"IF(SUM(GB!$G$5:$G$34)=0,0,SUM(Bahrein:Hongrie!$G$29:$G$31))","v":0},{"$f":"J4-J5","v":0},{"$f":"IF(J5=\"\",0,(RANK(J5,$J$4:$J$13)))","v":1},null,"PEREZ Sergio",{"$f":"IF(GB!$D$12=\"\",0,SUM(Bahrein:Hongrie!$G$12))","v":0},{"$f":"O4-O5","v":0},{"$f":"IF(O5=\"\",0,(RANK(O5,$O$4:$O$23)))","v":1}]
["RUSSELL GEORGE",null,null,null,null,null,{"$f":"IFERROR(CHOOSE(D6,25,18,15,12,10,8,6,4,2,1)+(F6=1),0)","v":0},null,"FERRARI",{"$f":"IF(SUM(GB!$G$5:$G$34)=0,0,SUM(Bahrein:Hongrie!$G$8:$G$10))","v":0},{"$f":"J5-J6","v":0},1,null,"ALONSO Fernando",{"$f":"IF(GB!$D$14=\"\",0,SUM(Bahrein:Hongrie!$G$14))","v":0},{"$f":"O5-O6","v":0},1]
[null,null,null,null,null,null,0,null,"WILLIAMS",{"$f":"IF(SUM(GB!$G$5:$G$34)=0,0,SUM(Bahrein:Hongrie!$G$17:$G$19))","v":0},0,1,null,"HAMILTON Lewis",{"$f":"IF(GB!$D$5=\"\",0,SUM(Bahrein:Hongrie!$G$5))","v":0},0,1]
["SAINZ.Jr Carlos","FERRARI",null,null,null,null,0,null,"ALFA ROMÉO",{"$f":"IF(SUM(GB!$G$5:$G$34)=0,0,SUM(Bahrein:Hongrie!$G$32:$G$34))","v":0},0,1,null,"SAINZ.Jr Carlos",{"$f":"IF(GB!$D$8=\"\",0,SUM(Bahrein:Hongrie!$G$8))","v":0},0,1]
["LECLERC Charles",null,null,null,null,null,0,null,"RED BULL RACING",{"$f":"IF(SUM(GB!$G$5:$G$34)=0,0,SUM(Bahrein:Hongrie!$G$11:$G$13))","v":0},0,1,null,"STROLL Lance",{"$f":"IF(GB!$D$15=\"\",0,SUM(Bahrein:Hongrie!$G$15))","v":0},0,1]
[null,null,null,null,null,null,0,null,"ASTON MARTIN",{"$f":"IF(SUM(GB!$G$5:$G$34)=0,0,SUM(Bahrein:Hongrie!$G$14:$G$16))","v":0},0,1,null,"SARGEANT Logan",{"$f":"IF(GB!$D$18=\"\",0,SUM(Bahrein:Hongrie!$G$18))","v":0},0,1]
["VERSTAPPEN Max","RED BULL RACING",null,null,null,null,0,null,"ALPINE F1 TEAM",{"$f":"IF(SUM(GB!$G$5:$G$34)=0,0,SUM(Bahrein:Hongrie!$G$20:$G$22))","v":0},0,1,null,"RUSSEL George",{"$f":"IF(GB!$D$6=\"\",0,SUM(Bahrein:Hongrie!$G$6))","v":0},0,1]
["PEREZ Sergio",null,null,null,null,null,0,null,"ALPHA TAURI",{"$f":"IF(SUM(GB!$G$5:$G$34)=0,0,SUM(Bahrein:Hongrie!$G$23:$G$25))","v":0},0,1,null,"NORRIS Lando",{"$f":"IF(GB!$D$29=\"\",0,SUM(Bahrein:Hongrie!$G$29))","v":0},0,1]
[null,null,null,null,null,null,0,null,"HAAS",{"$f":"IF(SUM(GB!$G$5:$G$34)=0,0,SUM(Bahrein:Hongrie!$G$26:$G$28))","v":0},0,1,null,"LECLERC Charles",{"$f":"IF(GB!$D$9=\"\",0,SUM(Bahrein:Hongrie!$G$9))","v":0},0,1]
["ALONSO Fernando","ASTON MARTIN",null,null,null,null,0,null,null,null,null,null,null,"HULKENBERG Nico",{"$f":"IF(GB!$D$27=\"\",0,SUM(Bahrein:Hongrie!$G$27))","v":0},0,1]
["STROLL Lance",null,null,null,null,null,0,null,null,null,null,null,null,"BOTTAS Valtteri",{"$f":"IF(GB!$D$32=\"\",0,SUM(Bahrein:Hongrie!$G$32))","v":0},0,1]
[null,null,null,null,null,null,0,null,null,null,null,null,null,"GASLY Pierre",{"$f":"IF(GB!$D$20=\"\",0,SUM(Bahrein:Hongrie!$G$20))","v":0},0,1]
["ALBON Alexander","WILLIAMS",null,null,null,null,0,null,null,null,null,null,null,"PIASTRI Oscar",{"$f":"IF(GB!$D$30=\"\",0,SUM(Bahrein:Hongrie!$G$30))","v":0},0,1]
["SARGEANT Logan",null,null,null,null,null,0,null,null,null,null,null,null,"GUANYU Zhou",{"$f":"IF(GB!$D$33=\"\",0,SUM(Bahrein:Hongrie!$G$33))","v":0},0,1]
[null,null,null,null,null,null,0,null,null,null,null,null,null,"ALBON Alexander",{"$f":"IF(GB!$D$17=\"\",0,SUM(Bahrein:Hongrie!$G$17))","v":0},0,1]
["GASLY Pierre","ALPINE F1 TEAM",null,null,null,null,0,null,null,null,null,null,null,"MAGNUSEN Kevin",{"$f":"IF(GB!$D$26=\"\",0,SUM(Bahrein:Hongrie!$G$26))","v":0},0,1]
["OCON Sebastian",null,null,null,null,null,0,null,null,null,null,null,null,"TSUNODA Yoki",{"$f":"IF(GB!$D$23=\"\",0,SUM(Bahrein:Hongrie!$G$23))","v":0},0,1]
[null,null,null,null,null,null,0,null,null,null,null,null,null,"OCON Sebastian",{"$f":"IF(GB!$D$21=\"\",0,SUM(Bahrein:Hongrie!$G$21))","v":0},0,1]
["TSUNODA Yoki","ALPHA TAURI",null,null,null,null,0,null,null,null,null,null,null,"DEVRIES Nyck",{"$f":"IF(GB!$D$24=\"\",0,SUM(Bahrein:Hongrie!$G$24))","v":0},0,1]
["DEVRIES Nyck",null,null,null,null,null,0]
[null,null,null,null,null,null,0]
["MAGNUSEN Kevin","HAAS",null,null,null,null,0]
["HULKENBERG Nico",null,null,null,null,null,0]
[null,null,null,null,null,null,0]
["NORRIS Lando","Mc LAREN",null,null,null,null,0]
["PIASTRI Oscar",null,null,null,null,null,0]
[null,null,null,null,null,null,0]
["BOTTAS Valtteri","ALFA ROMÉO",null,null,null,null,0]
["GUANYU Zhou",null,null,null,null,null,0]
[null,null,null,null,null,null,0]

{"sheet":"Belgique","index":16,"n_rows":34,"n_cols":17,"rows_kept":34,"cut":false,"hidden":false,"merged":[[2,5,3,5],[2,6,3,6],[2,7,3,7],[0,0,1,16],[2,0,3,0],[2,1,3,1],[2,2,3,2],[2,3,3,3],[2,4,3,4],[4,1,6,1],[4,2,6,2],[7,1,9,1],[7,2,9,2],[10,1,12,1],[10,2,12,2],[13,1,15,1],[13,2,15,2],[16,1,18,1],[16,2,18,2],[19,1,21,1],[19,2,21,2],[36,1,36,3],[31,1,33,1],[31,2,33,2],[22,1,24,1],[22,2,24,2],[25,1,27,1],[25,2,27,2],[28,1,30,1],[28,2,30,2]]}
["SPA FRANCORCHAMPS - 30 JUILLET 2023"]
[]
["PILOTES","ECURIES","VOITURES","Finish","Pôle","Pt tour","Points","Sprint","ÉCURIES","Points","Écart","Rang",null,"Noms","Points","Écart","Rang"]
[null,null,null,null,null,null,null,null,"MERCEDES",{"$f":"IF(SUM(Hongrie!$G$5:$G$34)=0,0,SUM(Bahrein:Belgique!$G$5:$G$7))","v":0},null,{"$f":"IF(J4=\"\",0,(RANK(J4,$J$4:$J$13)))","v":1},null,"VERSTAPPEN Max",{"$f":"IF(Hongrie!$D$11=\"\",0,SUM(Bahrein:Belgique!$G$11))","v":0},null,{"$f":"IF(O4=\"\",0,(RANK(O4,$O$4:$O$23)))","v":1}]
["HAMILTON Lewis","MERCEDES",null,null,null,null,{"$f":"IFERROR(CHOOSE(D5,25,18,15,12,10,8,6,4,2,1),0)+IFERROR(CHOOSE(H5,8,7,6,5,4,3,2,1),0)+F5","v":0},null,"Mc LAREN",{"$f":"IF(SUM(Hongrie!$G$5:$G$34)=0,0,SUM(Bahrein:Belgique!$G$29:$G$31))","v":0},{"$f":"J4-J5","v":0},{"$f":"IF(J5=\"\",0,(RANK(J5,$J$4:$J$13)))","v":1},null,"PEREZ Sergio",{"$f":"IF(Hongrie!$D$12=\"\",0,SUM(Bahrein:Belgique!$G$12))","v":0},{"$f":"O4-O5","v":0},{"$f":"IF(O5=\"\",0,(RANK(O5,$O$4:$O$23)))","v":1}]
["RUSSELL George",null,null,null,null,null,{"$f":"IFERROR(CHOOSE(D6,25,18,15,12,10,8,6,4,2,1),0)+IFERROR(CHOOSE(H6,8,7,6,5,4,3,2,1),0)+F6","v":0},null,"FERRARI",{"$f":"IF(SUM(Hongrie!$G$5:$G$34)=0,0,SUM(Bahrein:Belgique!$G$8:$G$10))","v":0},{"$f":"J5-J6","v":0},1,null,"ALONSO Fernando",{"$f":"IF(Hongrie!$D$14=\"\",0,SUM(Bahrein:Belgique!$G$14))","v":0},{"$f":"O5-O6","v":0},1]
[null,null,null,null,null,null,0,null,"WILLIAMS",{"$f":"IF(SUM(Hongrie!$G$5:$G$34)=0,0,SUM(Bahrein:Belgique!$G$17:$G$19))","v":0},0,1,null,"HAMILTON Lewis",{"$f":"IF(Hongrie!$D$5=\"\",0,SUM(Bahrein:Belgique!$G$5))","v":0},0,1]
["SAINZ.Jr Carlos","FERRARI",null,null,null,null,0,null,"ALFA ROMÉO",{"$f":"IF(SUM(Hongrie!$G$5:$G$34)=0,0,SUM(Bahrein:Belgique!$G$32:$G$34))","v":0},0,1,null,"SAINZ.Jr Carlos",{"$f":"IF(Hongrie!$D$8=\"\",0,SUM(Bahrein:Belgique!$G$8))","v":0},0,1]
["LECLERC Charles",null,null,null,null,null,0,null,"RED BULL RACING",{"$f":"IF(SUM(Hongrie!$G$5:$G$34)=0,0,SUM(Bahrein:Belgique!$G$11:$G$13))","v":0},0,1,null,"STROLL Lance",{"$f":"IF(Hongrie!$D$15=\"\",0,SUM(Bahrein:Belgique!$G$15))","v":0},0,1]
[null,null,null,null,null,null,0,null,"ASTON MARTIN",{"$f":"IF(SUM(Hongrie!$G$5:$G$34)=0,0,SUM(Bahrein:Belgique!$G$14:$G$16))","v":0},0,1,null,"RUSSEL George",{"$f":"IF(Hongrie!$D$6=\"\",0,SUM(Bahrein:Belgique!$G$6))","v":0},0,1]
["VERSTAPPEN Max","RED BULL RACING",null,null,null,null,0,null,"ALPINE F1 TEAM",{"$f":"IF(SUM(Hongrie!$G$5:$G$34)=0,0,SUM(Bahrein:Belgique!$G$20:$G$22))","v":0},0,1,null,"NORRIS Lando",{"$f":"IF(Hongrie!$D$29=\"\",0,SUM(Bahrein:Belgique!$G$29))","v":0},0,1]
["PEREZ Sergio",null,null,null,null,null,0,null,"ALPHA TAURI",{"$f":"IF(SUM(Hongrie!$G$5:$G$34)=0,0,SUM(Bahrein:Belgique!$G$23:$G$25))","v":0},0,1,null,"LECLERC Charles",{"$f":"IF(Hongrie!$D$9=\"\",0,SUM(Bahrein:Belgique!$G$9))","v":0},0,1]
[null,null,null,null,null,null,0,null,"HAAS",{"$f":"IF(SUM(Hongrie!$G$5:$G$34)=0,0,SUM(Bahrein:Belgique!$G$26:$G$28))","v":0},0,1,null,"HULKENBERG Nico",{"$f":"IF(Hongrie!$D$27=\"\",0,SUM(Bahrein:Belgique!$G$27))","v":0},0,1]
["ALONSO Fernando","ASTON MARTIN",null,null,null,null,0,null,null,null,null,null,null,"BOTTAS Valtteri",{"$f":"IF(Hongrie!$D$32=\"\",0,SUM(Bahrein:Belgique!$G$32))","v":0},0,1]
["STROLL Lance",null,null,null,null,null,0,null,null,null,null,null,null,"GASLY Pierre",{"$f":"IF(Hongrie!$D$20=\"\",0,SUM(Bahrein:Belgique!$G$20))","v":0},0,1]
[null,null,null,null,null,null,0,null,null,null,null,null,null,"OCON Sebastian",{"$f":"IF(Hongrie!$D$21=\"\",0,SUM(Bahrein:Belgique!$G$21))","v":0},0,1]
["ALBON Alexander","WILLIAMS",null,null,null,null,0,null,null,null,null,null,null,"PIASTRI Oscar",{"$f":"IF(Hongrie!$D$30=\"\",0,SUM(Bahrein:Belgique!$G$30))","v":0},0,1]
["SARGEANT Logan",null,null,null,null,null,0,null,null,null,null,null,null,"GUANYU Zhou",{"$f":"IF(Hongrie!$D$33=\"\",0,SUM(Bahrein:Belgique!$G$33))","v":0},0,1]
[null,null,null,null,null,null,0,null,null,null,null,null,null,"ALBON Alexander",{"$f":"IF(Hongrie!$D$17=\"\",0,SUM(Bahrein:Belgique!$G$17))","v":0},0,1]
["GASLY Pierre","ALPINE F1 TEAM",null,null,null,null,0,null,null,null,null,null,null,"MAGNUSSEN Kevin",{"$f":"IF(Hongrie!$D$26=\"\",0,SUM(Bahrein:Belgique!$G$26))","v":0},0,1]
["OCON Sebastian",null,null,null,null,null,0,null,null,null,null,null,null,"TSUNODA Yoki",{"$f":"IF(Hongrie!$D$23=\"\",0,SUM(Bahrein:Belgique!$G$23))","v":0},0,1]
[null,null,null,null,null,null,0,null,null,null,null,null,null,"SARGEANT Logan",{"$f":"IF(Hongrie!$D$18=\"\",0,SUM(Bahrein:Belgique!$G$18))","v":0},0,1]
["TSUNODA Yoki","ALPHA TAURI",null,null,null,null,0,null,null,null,null,null,null,"DEVRIES Nyck",{"$f":"IF(Hongrie!$D$24=\"\",0,SUM(Bahrein:Belgique!$G$24))","v":0},0,1]
["DEVRIES Nyck",null,null,null,null,null,0]
[null,null,null,null,null,null,0]
["MAGNUSSEN Kevin","HAAS",null,null,null,null,0]
["HULKENBERG Nico",null,null,null,null,null,0]
[null,null,null,null,null,null,0]
["NORRIS Lando","Mc LAREN",null,null,null,null,0]
["PIASTRI Oscar",null,null,null,null,null,0]
[null,null,null,null,null,null,0]
["BOTTAS Valtteri","ALFA ROMÉO",null,null,null,null,0]
["GUANYU Zhou",null,null,null,null,null,0]
[null,null,null,null,null,null,0]

{"sheet":"Pays-Bas","index":17,"n_rows":34,"n_cols":17,"rows_kept":34,"cut":false,"hidden":false,"merged":[[2,5,3,5],[2,6,3,6],[0,0,1,16],[4,1,6,1],[4,2,6,2],[2,0,3,0],[2,1,3,1],[2,2,3,2],[2,3,3,3],[2,4,3,4],[7,1,9,1],[7,2,9,2],[10,1,12,1],[10,2,12,2],[13,1,15,1],[13,2,15,2],[16,1,18,1],[16,2,18,2],[19,1,21,1],[19,2,21,2],[36,1,36,3],[31,1,33,1],[31,2,33,2],[22,1,24,1],[22,2,24,2],[25,1,27,1],[25,2,27,2],[28,1,30,1],[28,2,30,2]]}
["ZANDVOORT - 27 AOUT 2023"]
[]
["PILOTES","ECURIES","VOITURES","Finish","Pôle","Pt tour","Points",null,"ÉCURIES","Points","Écart","Rang",null,"Noms","Points","Écart","Rang"]
[null,null,null,null,null,null,null,null,"MERCEDES",{"$f":"IF(SUM(Belgique!$G$5:$G$34)=0,0,SUM('Bahrein:Pays-Bas'!$G$5:$G$7))","v":0},null,{"$f":"IF(J4=\"\",0,(RANK(J4,$J$4:$J$13)))","v":1},null,"VERSTAPPEN Max",{"$f":"IF(Belgique!$D$11=\"\",0,SUM('Bahrein:Pays-Bas'!$G$11))","v":0},0,{"$f":"IF(O4=\"\",0,(RANK(O4,$O$4:$O$23)))","v":1}]
["HAMILTON Lewis","MERCEDES",null,null,null,null,{"$f":"IFERROR(CHOOSE(D5,25,18,15,12,10,8,6,4,2,1)+(F5=1),0)","v":0},null,"Mc LAREN",{"$f":"IF(SUM(Belgique!$G$5:$G$34)=0,0,SUM(Bahrein:'Pays-Bas'!$G$29:$G$31))","v":0},{"$f":"J4-J5","v":0},{"$f":"IF(J5=\"\",0,(RANK(J5,$J$4:$J$13)))","v":1},null,"PEREZ Sergio",{"$f":"IF(Belgique!$D$12=\"\",0,SUM(Bahrein:'Pays-Bas'!$G$12))","v":0},{"$f":"O4-O5","v":0},{"$f":"IF(O5=\"\",0,(RANK(O5,$O$4:$O$23)))","v":1}]
["RUSSELL George",null,null,null,null,null,{"$f":"IFERROR(CHOOSE(D6,25,18,15,12,10,8,6,4,2,1)+(F6=1),0)","v":0},null,"FERRARI",{"$f":"IF(SUM(Belgique!$G$5:$G$34)=0,0,SUM(Bahrein:'Pays-Bas'!$G$8:$G$10))","v":0},{"$f":"J5-J6","v":0},1,null,"ALONSO Fernando",{"$f":"IF(Belgique!$D$14=\"\",0,SUM(Bahrein:'Pays-Bas'!$G$14))","v":0},{"$f":"O5-O6","v":0},1]
[null,null,null,null,null,null,0,null,"WILLIAMS",{"$f":"IF(SUM(Belgique!$G$5:$G$34)=0,0,SUM(Bahrein:'Pays-Bas'!$G$17:$G$19))","v":0},0,1,null,"HAMILTON Lewis",{"$f":"IF(Belgique!$D$5=\"\",0,SUM(Bahrein:'Pays-Bas'!$G$5))","v":0},0,1]
["SAINZ.Jr Carlos","FERRARI",null,null,null,null,0,null,"ALFA ROMÉO",{"$f":"IF(SUM(Belgique!$G$5:$G$34)=0,0,SUM(Bahrein:'Pays-Bas'!$G$32:$G$34))","v":0},0,1,null,"SAINZ.Jr Carlos",{"$f":"IF(Belgique!$D$8=\"\",0,SUM(Bahrein:'Pays-Bas'!$G$8))","v":0},0,1]
["LECLERC Charles",null,null,null,null,null,0,null,"RED BULL RACING",{"$f":"IF(SUM(Belgique!$G$5:$G$34)=0,0,SUM(Bahrein:'Pays-Bas'!$G$11:$G$13))","v":0},0,1,null,"STROLL Lance",{"$f":"IF(Belgique!$D$15=\"\",0,SUM('Bahrein:Pays-Bas'!$G$15))","v":0},0,1]
[null,null,null,null,null,null,0,null,"ASTON MARTIN",{"$f":"IF(SUM(Belgique!$G$5:$G$34)=0,0,SUM(Bahrein:'Pays-Bas'!$G$14:$G$16))","v":0},0,1,null,"RUSSEL George",{"$f":"IF(Belgique!$D$6=\"\",0,SUM(Bahrein:'Pays-Bas'!$G$6))","v":0},0,1]
["VERSTAPPEN Max","RED BULL RACING",null,null,null,null,0,null,"ALPINE F1 TEAM",{"$f":"IF(SUM(Belgique!$G$5:$G$34)=0,0,SUM(Bahrein:'Pays-Bas'!$G$20:$G$22))","v":0},0,1,null,"NORRIS Lando",{"$f":"IF(Belgique!$D$29=\"\",0,SUM(Bahrein:'Pays-Bas'!$G$29))","v":0},0,1]
["PEREZ Sergio",null,null,null,null,null,0,null,"ALPHA TAURI",{"$f":"IF(SUM(Belgique!$G$5:$G$34)=0,0,SUM(Bahrein:'Pays-Bas'!$G$23:$G$25))","v":0},0,1,null,"LECLERC Charles",{"$f":"IF(Belgique!$D$9=\"\",0,SUM(Bahrein:'Pays-Bas'!$G$9))","v":0},0,1]
[null,null,null,null,null,null,0,null,"HAAS",{"$f":"IF(SUM(Belgique!$G$5:$G$34)=0,0,SUM(Bahrein:'Pays-Bas'!$G$23:$G$25))","v":0},0,1,null,"HULKENBERG Nico",{"$f":"IF(Belgique!$D$27=\"\",0,SUM(Bahrein:'Pays-Bas'!$G$27))","v":0},0,1]
["ALONSO Fernando","ASTON MARTIN",null,null,null,null,0,null,null,null,null,null,null,"BOTTAS Valtteri",{"$f":"IF(Belgique!$D$32=\"\",0,SUM(Bahrein:'Pays-Bas'!$G$32))","v":0},0,1]
["STROLL Lance",null,null,null,null,null,0,null,null,null,null,null,null,"GASLY Pierre",{"$f":"IF(Belgique!$D$20=\"\",0,SUM(Bahrein:'Pays-Bas'!$G$20))","v":0},0,1]
[null,null,null,null,null,null,0,null,null,null,null,null,null,"OCON Sebastian",{"$f":"IF(Belgique!$D$21=\"\",0,SUM('Bahrein:Pays-Bas'!$G$21))","v":0},0,1]
["ALBON Alexander","WILLIAMS",null,null,null,null,0,null,null,null,null,null,null,"PIASTRI Oscar",{"$f":"IF(Belgique!$D$30=\"\",0,SUM(Bahrein:'Pays-Bas'!$G$30))","v":0},0,1]
["SARGEANT Logan",null,null,null,null,null,0,null,null,null,null,null,null,"GUANYU Zhou",{"$f":"IF(Belgique!$D$33=\"\",0,SUM(Bahrein:'Pays-Bas'!$G$33))","v":0},0,1]
[null,null,null,null,null,null,0,null,null,null,null,null,null,"ALBON Alexander",{"$f":"IF(Belgique!$D$17=\"\",0,SUM(Bahrein:'Pays-Bas'!$G$17))","v":0},0,1]
["GASLY Pierre","ALPINE F1 TEAM",null,null,null,null,0,null,null,null,null,null,null,"MAGNUSSEN Kevin",{"$f":"IF(Belgique!$D$26=\"\",0,SUM(Bahrein:'Pays-Bas'!$G$26))","v":0},0,1]
["OCON Sebastian",null,null,null,null,null,0,null,null,null,null,null,null,"TSUNODA Yoki",{"$f":"IF(Belgique!$D$23=\"\",0,SUM(Bahrein:'Pays-Bas'!$G$23))","v":0},0,1]
[null,null,null,null,null,null,0,null,null,null,null,null,null,"DEVRIES Nyck",{"$f":"IF(Belgique!$D$24=\"\",0,SUM(Bahrein:'Pays-Bas'!$G$24))","v":0},0,1]
["TSUNODA Yoki","ALPHA TAURI",null,null,null,null,0,null,null,null,null,null,null,"SARGEANT Logan",{"$f":"IF(Belgique!$D$18=\"\",0,SUM(Bahrein:'Pays-Bas'!$G$18))","v":0},0,1]
["DEVRIES Nyck",null,null,null,null,null,0]
[null,null,null,null,null,null,0]
["MAGNUSSEN Kevin","HAAS",null,null,null,null,0]
["HULKENBERG Nico",null,null,null,null,null,0]
[null,null,null,null,null,null,0]
["NORRIS Lando","Mc LAREN",null,null,null,null,0]
["PIASTRI Oscar",null,null,null,null,null,0]
[null,null,null,null,null,null,0]
["BOTTAS Valtteri","ALFA ROMÉO",null,null,null,null,0]
["GUANYU Zhou",null,null,null,null,null,0]
[null,null,null,null,null,null,0]

{"sheet":"Italie","index":18,"n_rows":60,"n_cols":17,"rows_kept":60,"cut":false,"hidden":false,"merged":[[2,5,3,5],[2,6,3,6],[2,7,3,7],[0,0,1,16],[2,0,3,0],[2,1,3,1],[2,2,3,2],[2,3,3,3],[2,4,3,4],[4,1,6,1],[4,2,6,2],[7,1,9,1],[7,2,9,2],[10,1,12,1],[10,2,12,2],[13,1,15,1],[13,2,15,2],[16,1,18,1],[16,2,18,2],[19,1,21,1],[19,2,21,2],[36,1,36,3],[31,1,33,1],[31,2,33,2],[22,1,24,1],[22,2,24,2],[25,1,27,1],[25,2,27,2],[28,1,30,1],[28,2,30,2]]}
["MONZA - 3 SEPTEMBRE 2023"]
[]
["PILOTES","ECURIES","VOITURES","Finish","Pôle","Pt tour","Points",null,"ÉCURIES","Points","Écart","Rang",null,"Noms","Points","Écart","Rang"]
[null,null,null,null,null,null,null,null,"MERCEDES",{"$f":"IF(SUM('Pays-Bas'!$G$5:$G$34)=0,0,SUM(Bahrein:Italie!$G$5:$G$7))","v":0},null,{"$f":"IF(J4=\"\",0,(RANK(J4,$J$4:$J$13)))","v":1},null,"VERSTAPPEN Max",{"$f":"IF('Pays-Bas'!$D$11=\"\",0,SUM(Bahrein:Italie!$G$11))","v":0},null,{"$f":"IF(O4=\"\",0,(RANK(O4,$O$4:$O$23)))","v":1}]
["HAMILTON Lewis","MERCEDES",null,null,null,null,{"$f":"IFERROR(CHOOSE(D5,25,18,15,12,10,8,6,4,2,1)+(F5=1),0)","v":0},null,"Mc LAREN",{"$f":"IF(SUM('Pays-Bas'!$G$5:$G$34)=0,0,SUM(Bahrein:Italie!$G$29:$G$31))","v":0},{"$f":"J4-J5","v":0},{"$f":"IF(J5=\"\",0,(RANK(J5,$J$4:$J$13)))","v":1},null,"PEREZ Sergio",{"$f":"IF('Pays-Bas'!$D$12=\"\",0,SUM(Bahrein:Italie!$G$12))","v":0},{"$f":"O4-O5","v":0},{"$f":"IF(O5=\"\",0,(RANK(O5,$C$40:$C$60)))","v":1}]
["RUSSELL George",null,null,null,null,null,{"$f":"IFERROR(CHOOSE(D6,25,18,15,12,10,8,6,4,2,1)+(F6=1),0)","v":0},null,"FERRARI",{"$f":"IF(SUM('Pays-Bas'!$G$5:$G$34)=0,0,SUM(Bahrein:Italie!$G$8:$G$10))","v":0},{"$f":"J5-J6","v":0},1,null,"ALONSO Fernando",{"$f":"IF('Pays-Bas'!$D$14=\"\",0,SUM(Bahrein:Italie!$G$14))","v":0},{"$f":"O5-O6","v":0},1]
[null,null,null,null,null,null,0,null,"WILLIAMS",{"$f":"IF(SUM('Pays-Bas'!$G$5:$G$34)=0,0,SUM(Bahrein:Italie!$G$17:$G$19))","v":0},0,1,null,"HAMILTON Lewis",{"$f":"IF('Pays-Bas'!$D$5=\"\",0,SUM(Bahrein:Italie!$G$5))","v":0},0,1]
["SAINZ.Jr Carlos","FERRARI",null,null,null,null,0,null,"ALFA ROMÉO",{"$f":"IF(SUM('Pays-Bas'!$G$5:$G$34)=0,0,SUM(Bahrein:Italie!$G$32:$G$34))","v":0},0,1,null,"SAINZ.Jr Carlos",{"$f":"IF('Pays-Bas'!$D$8=\"\",0,SUM(Bahrein:Italie!$G$8))","v":0},0,1]
["LECLERC Charles",null,null,null,null,null,0,null,"RED BULL RACING",{"$f":"IF(SUM('Pays-Bas'!$G$5:$G$34)=0,0,SUM(Bahrein:Italie!$G$11:$G$13))","v":0},0,1,null,"STROLL Lance",{"$f":"IF('Pays-Bas'!$D$15=\"\",0,SUM(Bahrein:Italie!$G$15))","v":0},0,1]
[null,null,null,null,null,null,0,null,"ASTON MARTIN",{"$f":"IF(SUM('Pays-Bas'!$G$5:$G$34)=0,0,SUM(Bahrein:Italie!$G$14:$G$16))","v":0},0,1,null,"RUSSEL George",{"$f":"IF('Pays-Bas'!$D$6=\"\",0,SUM(Bahrein:Italie!$G$6))","v":0},0,1]
["VERSTAPPEN Max","RED BULL RACING",null,null,null,null,0,null,"ALPINE F1 TEAM",{"$f":"IF(SUM('Pays-Bas'!$G$5:$G$34)=0,0,SUM(Bahrein:Italie!$G$20:$G$22))","v":0},0,1,null,"NORRIS Lando",{"$f":"IF('Pays-Bas'!$D$29=\"\",0,SUM(Bahrein:Italie!$G$29))","v":0},0,1]
["PEREZ Sergio",null,null,null,null,null,0,null,"ALPHA TAURI",{"$f":"IF(SUM('Pays-Bas'!$G$5:$G$34)=0,0,SUM(Bahrein:Italie!$G$23:$G$25))","v":0},0,1,null,"LECLERC Charles",{"$f":"IF('Pays-Bas'!$D$9=\"\",0,SUM(Bahrein:Italie!$G$9))","v":0},0,1]
[null,null,null,null,null,null,0,null,"HAAS",{"$f":"IF(SUM('Pays-Bas'!$G$5:$G$34)=0,0,SUM(Bahrein:Italie!$G$26:$G$28))","v":0},0,1,null,"BOTTAS Valtteri",{"$f":"IF('Pays-Bas'!$D$32=\"\",0,SUM(Bahrein:Italie!$G$32))","v":0},0,1]
["ALONSO Fernando","ASTON MARTIN",null,null,null,null,0,null,null,null,null,null,null,"GASLY Pierre",{"$f":"IF('Pays-Bas'!$D$20=\"\",0,SUM(Bahrein:Italie!$G$20))","v":0},0,1]
["STROLL Lance",null,null,null,null,null,0,null,null,null,null,null,null,"OCON Sebastian",{"$f":"IF('Pays-Bas'!$D$21=\"\",0,SUM(Bahrein:Italie!$G$21))","v":0},0,1]
[null,null,null,null,null,null,0,null,null,null,null,null,null,"PIASTRI Oscar",{"$f":"IF('Pays-Bas'!$D$29=\"\",0,SUM(Bahrein:Italie!$G$29))","v":0},0,1]
["ALBON Alexander","WILLIAMS",null,null,null,null,0,null,null,null,null,null,null,"GUANYU Zhou",{"$f":"IF('Pays-Bas'!$D$33=\"\",0,SUM(Bahrein:Italie!$G$33))","v":0},0,1]
["SARGEANT Logan",null,null,null,null,null,0,null,null,null,null,null,null,"ALBON Alexander",{"$f":"IF('Pays-Bas'!$D$17=\"\",0,SUM(Bahrein:Italie!$G$17))","v":0},0,1]
[null,null,null,null,null,null,0,null,null,null,null,null,null,"PIASTRI Oscar",{"$f":"IF('Pays-Bas'!$D$30=\"\",0,SUM(Bahrein:Italie!$G$30))","v":0},0,1]
["GASLY Pierre","ALPINE F1 TEAM",null,null,null,null,0,null,null,null,null,null,null,"HULKENBERG Nico",{"$f":"IF('Pays-Bas'!$D$27=\"\",0,SUM(Bahrein:Italie!$G$27))","v":0},0,1]
["OCON Sebastian",null,null,null,null,null,0,null,null,null,null,null,null,"MAGNUSSEN Kevin",{"$f":"IF('Pays-Bas'!$D$26=\"\",0,SUM(Bahrein:Italie!$G$26))","v":0},0,1]
[null,null,null,null,null,null,0,null,null,null,null,null,null,"TSUNODA Yoki",{"$f":"IF('Pays-Bas'!$D$23=\"\",0,SUM(Bahrein:Italie!$G$23))","v":0},0,1]
["TSUNODA Yoki","ALPHA TAURI",null,null,null,null,0,null,null,null,null,null,null,"DEVRIES Nyck",{"$f":"IF('Pays-Bas'!$D$24=\"\",0,SUM(Bahrein:Italie!$G$24))","v":0},0,1]
["DEVRIES Nyck",null,null,null,null,null,0]
[null,null,null,null,null,null,0]
["MAGNUSSEN Kevin","HAAS",null,null,null,null,0]
["HULKENBERG Nico",null,null,null,null,null,0]
[null,null,null,null,null,null,0]
["NORRIS Lando","Mc LAREN",null,null,null,null,0]
["PIASTRI Oscar",null,null,null,null,null,0]
[null,null,null,null,null,null,0]
["BOTTAS Valtteri","ALFA ROMÉO",null,null,null,null,0]
["GUANYU Zhou",null,null,null,null,null,0]
[null,null,null,null,null,null,0]
[]
[]
[]
[]
[]
[null,"SARGEANT Logan",{"$f":"IF('Pays-Bas'!$D$11=\"\",0,SUM(Bahrein:Italie!$G$11))","v":0}]
[]
[]
[]
[]
[]
[]
[]
[]
[]
[]
[]
[]
[]
[]
[]
[]
[]
[]
[]
[null,null,null,{"$f":"O23-C60","v":0},{"$f":"IF(C60=\"\",0,(RANK(C60,$C$40:$C$60)))","v":0}]

{"sheet":"Singapour","index":19,"n_rows":34,"n_cols":17,"rows_kept":34,"cut":false,"hidden":false,"merged":[[0,0,1,16],[31,1,33,1],[31,2,33,2],[22,1,24,1],[22,2,24,2],[25,1,27,1],[25,2,27,2],[28,1,30,1],[28,2,30,2],[13,1,15,1],[13,2,15,2],[16,1,18,1],[16,2,18,2],[19,1,21,1],[19,2,21,2],[2,4,3,4],[2,0,3,0],[2,1,3,1],[2,2,3,2],[2,3,3,3],[7,1,9,1],[7,2,9,2],[2,5,3,5],[2,6,3,6],[4,1,6,1],[4,2,6,2],[36,1,36,3],[10,1,12,1],[10,2,12,2]]}
["SINGAPOUR - 17 SEPTEMBRE 2023"]
[]
["PILOTES","ECURIES","VOITURES","Finish","Pôle","Pt tour","Points",null,"ÉCURIES","Points","Écart","Rang",null,"Noms","Points","Écart","Rang"]
[null,null,null,null,null,null,null,null,"ALPINE F1 TEAM",{"$f":"IF(SUM(Italie!$G$5:$G$34)=0,0,SUM(Bahrein:Singapour!$G$20:$G$22))","v":0},null,{"$f":"IF(J4=\"\",0,(RANK(J4,$J$4:$J$13)))","v":1},null,"VERSTAPPEN Max",{"$f":"IF(Italie!$D$11=\"\",0,SUM(Bahrein:Singapour!$G$11))","v":0},null,{"$f":"IF(O4=\"\",0,(RANK(O4,$O$4:$O$23)))","v":1}]
["HAMILTON Lewis","MERCEDES",null,null,null,null,{"$f":"IFERROR(CHOOSE(D5,25,18,15,12,10,8,6,4,2,1)+(F5=1),0)","v":0},null,"Mc LAREN",{"$f":"IF(SUM(Italie!$G$5:$G$34)=0,0,SUM(Bahrein:Singapour!$G$29:$G$31))","v":0},{"$f":"J4-J5","v":0},{"$f":"IF(J5=\"\",0,(RANK(J5,$J$4:$J$13)))","v":1},null,"PEREZ Sergio",{"$f":"IF(Italie!$D$12=\"\",0,SUM(Bahrein:Singapour!$G$12))","v":0},{"$f":"O4-O5","v":0},{"$f":"IF(O5=\"\",0,(RANK(O5,$O$4:$O$23)))","v":1}]
["RUSSELL George",null,null,null,null,null,{"$f":"IFERROR(CHOOSE(D6,25,18,15,12,10,8,6,4,2,1)+(F6=1),0)","v":0},null,"FERRARI",{"$f":"IF(SUM(Italie!$G$5:$G$34)=0,0,SUM(Bahrein:Singapour!$G$8:$G$10))","v":0},{"$f":"J5-J6","v":0},1,null,"ALONSO Fernando",{"$f":"IF(Italie!$D$14=\"\",0,SUM(Bahrein:Singapour!$G$14))","v":0},{"$f":"O5-O6","v":0},1]
[null,null,null,null,null,null,0,null,"WILLIAMS",{"$f":"IF(SUM(Italie!$G$5:$G$34)=0,0,SUM(Bahrein:Singapour!$G$17:$G$19))","v":0},0,1,null,"HAMILTON Lewis",{"$f":"IF(Italie!$D$5=\"\",0,SUM(Bahrein:Singapour!$G$5))","v":0},0,1]
["SAINZ.Jr Carlos","FERRARI",null,null,null,null,0,null,"ALFA ROMÉO",{"$f":"IF(SUM(Italie!$G$5:$G$34)=0,0,SUM(Bahrein:Singapour!$G$32:$G$34))","v":0},0,1,null,"SAINZ.Jr Carlos",{"$f":"IF(Italie!$D$8=\"\",0,SUM(Bahrein:Singapour!$G$8))","v":0},0,1]
["LECLERC Charles",null,null,null,null,null,0,null,"MERCEDES",{"$f":"IF(SUM(Italie!$G$5:$G$34)=0,0,SUM(Bahrein:Singapour!$G$5:$G$7))","v":0},0,1,null,"RUSSEL George",{"$f":"IF(Italie!$D$6=\"\",0,SUM(Bahrein:Singapour!$G$6))","v":0},0,1]
[null,null,null,null,null,null,0,null,"RED BULL RACING",{"$f":"IF(SUM(Italie!$G$5:$G$34)=0,0,SUM(Bahrein:Singapour!$G$11:$G$13))","v":0},0,1,null,"STROLL Lance",{"$f":"IF(Italie!$D$15=\"\",0,SUM(Bahrein:Singapour!$G$15))","v":0},0,1]
["VERSTAPPEN Max","RED BULL RACING",null,null,null,null,0,null,"ASTON MARTIN",{"$f":"IF(SUM(Italie!$G$5:$G$34)=0,0,SUM(Bahrein:Singapour!$G$14:$G$16))","v":0},0,1,null,"NORRIS Lando",{"$f":"IF(Italie!$D$30=\"\",0,SUM(Bahrein:Singapour!$G$30))","v":0},0,1]
["PEREZ Sergio",null,null,null,null,null,0,null,"ALPHA TAURI",{"$f":"IF(SUM(Italie!$G$5:$G$34)=0,0,SUM(Bahrein:Singapour!$G$23:$G$25))","v":0},0,1,null,"BOTTAS Valtteri",{"$f":"IF(Italie!$D$32=\"\",0,SUM(Bahrein:Singapour!$G$32))","v":0},0,1]
[null,null,null,null,null,null,0,null,"HAAS",{"$f":"IF(SUM(Italie!$G$5:$G$34)=0,0,SUM(Bahrein:Singapour!$G$26:$G$28))","v":0},0,1,null,"TSUNODA Yoki",{"$f":"IF(Italie!$D$23=\"\",0,SUM(Bahrein:Singapour!$G$23))","v":0},0,1]
["ALONSO Fernando","ASTON MARTIN",null,null,null,null,0,null,null,null,null,null,null,"GASLY Pierre",{"$f":"IF(Italie!$D$20=\"\",0,SUM(Bahrein:Singapour!$G$20))","v":0},0,1]
["STROLL Lance",null,null,null,null,null,0,null,null,null,null,null,null,"ALBON Alexander",{"$f":"IF(Italie!$D$17=\"\",0,SUM(Bahrein:Singapour!$G$17))","v":0},0,1]
[null,null,null,null,null,null,0,null,null,null,null,null,null,"DEVRIES Nyck",{"$f":"IF(Italie!$D$24=\"\",0,SUM(Bahrein:Singapour!$G$24))","v":0},0,1]
["ALBON Alexander","WILLIAMS",null,null,null,null,0,null,null,null,null,null,null,"GUANYU Zhou",{"$f":"IF(Italie!$D$33=\"\",0,SUM(Bahrein:Singapour!$G$33))","v":0},0,1]
["SARGEANT Logan",null,null,null,null,null,0,null,null,null,null,null,null,"MAGNUSSEN Kevin",{"$f":"IF(Italie!$D$26=\"\",0,SUM(Bahrein:Singapour!$G$26))","v":0},0,1]
[null,null,null,null,null,null,0,null,null,null,null,null,null,"PIASTRI Oscar",{"$f":"IF(Italie!$D$30=\"\",0,SUM(Bahrein:Singapour!$G$30))","v":0},0,1]
["GASLY Pierre","ALPINE F1 TEAM",null,null,null,null,0,null,null,null,null,null,null,"HULKENBERG Nico",{"$f":"IF(Italie!$D$27=\"\",0,SUM(Bahrein:Singapour!$G$27))","v":0},0,1]
["OCON Sebastian",null,null,null,null,null,0,null,null,null,null,null,null,"OCON Sebastian",{"$f":"IF(Italie!$D$21=\"\",0,SUM(Bahrein:Singapour!$G$21))","v":0},0,1]
[null,null,null,null,null,null,0,null,null,null,null,null,null,"SARGEANT Logan",{"$f":"IF(Italie!$D$18=\"\",0,SUM(Bahrein:Singapour!$G$18))","v":0},0,1]
["TSUNODA Yoki","ALPHA TAURI",null,null,null,null,0,null,null,null,null,null,null,"LECLERC Charles",{"$f":"IF(Italie!$D$9=\"\",0,SUM(Bahrein:Singapour!$G$9))","v":0},0,1]
["DEVRIES Nyck",null,null,null,null,null,0]
[null,null,null,null,null,null,0]
["MAGNUSSEN Kevin","HAAS",null,null,null,null,0]
["HULKENBERG Nico",null,null,null,null,null,0]
[null,null,null,null,null,null,0]
["NORRIS Lando","Mc LAREN",null,null,null,null,0]
["PIASTRI Oscar",null,null,null,null,null,0]
[null,null,null,null,null,null,0]
["BOTTAS Valtteri","ALFA ROMÉO",null,null,null,null,0]
["GUANYU Zhou",null,null,null,null,null,0]
[null,null,null,null,null,null,0]

{"sheet":"Japon","index":20,"n_rows":34,"n_cols":17,"rows_kept":34,"cut":false,"hidden":false,"merged":[[2,4,3,4],[2,5,3,5],[2,6,3,6],[4,1,6,1],[4,2,6,2],[2,1,3,1],[2,2,3,2],[2,3,3,3],[7,1,9,1],[7,2,9,2],[10,1,12,1],[10,2,12,2],[19,2,21,2],[0,0,1,16],[36,1,36,3],[31,1,33,1],[31,2,33,2],[2,0,3,0],[22,1,24,1],[22,2,24,2],[25,1,27,1],[25,2,27,2],[28,1,30,1],[28,2,30,2],[13,1,15,1],[13,2,15,2],[16,1,18,1],[16,2,18,2],[19,1,21,1]]}
["SUZUKA- 24 SEPTEMBRE 2023"]
[]
["PILOTES","ECURIES","VOITURES","Finish","Pôle","Pt tour","Points",null,"ÉCURIES","Points","Écart","Rang",null,"Noms","Points","Écart","Rang"]
[null,null,null,null,null,null,null,null,"Mc LAREN",{"$f":"IF(SUM(Singapour!$G$5:$G$34)=0,0,SUM(Bahrein:Japon!$G$29:$G$31))","v":0},null,{"$f":"IF(J4=\"\",0,(RANK(J4,$J$4:$J$13)))","v":1},null,"VERSTAPPEN Max",{"$f":"IF(Singapour!$D$11=\"\",0,SUM(Bahrein:Japon!$G$11))","v":0},null,{"$f":"IF(O4=\"\",0,(RANK(O4,$O$4:$O$23)))","v":1}]
["HAMILTON Lewis","MERCEDES",null,null,null,null,{"$f":"IFERROR(CHOOSE(D5,25,18,15,12,10,8,6,4,2,1)+(F5=1),0)","v":0},null,"FERRARI",{"$f":"IF(SUM(Singapour!$G$5:$G$34)=0,0,SUM(Bahrein:Japon!$G$8:$G$10))","v":0},{"$f":"J4-J5","v":0},{"$f":"IF(J5=\"\",0,(RANK(J5,$J$4:$J$13)))","v":1},null,"PEREZ Sergio",{"$f":"IF(Singapour!$D$12=\"\",0,SUM(Bahrein:Japon!$G$12))","v":0},{"$f":"O4-O5","v":0},{"$f":"IF(O5=\"\",0,(RANK(O5,$O$4:$O$23)))","v":1}]
["RUSSELL George",null,null,null,null,null,{"$f":"IFERROR(CHOOSE(D6,25,18,15,12,10,8,6,4,2,1)+(F6=1),0)","v":0},null,"WILLIAMS",{"$f":"IF(SUM(Singapour!$G$5:$G$34)=0,0,SUM(Bahrein:Japon!$G$17:$G$19))","v":0},{"$f":"J5-J6","v":0},1,null,"ALONSO Fernando",{"$f":"IF(Singapour!$D$14=\"\",0,SUM(Bahrein:Japon!$G$14))","v":0},{"$f":"O5-O6","v":0},1]
[null,null,null,null,null,null,0,null,"ALFA ROMÉO",{"$f":"IF(SUM(Singapour!$G$5:$G$34)=0,0,SUM(Bahrein:Japon!$G$32:$G$34))","v":0},0,1,null,"HAMILTON Lewis",{"$f":"IF(Singapour!$D$11=\"\",0,SUM(Bahrein:Japon!$G$11))","v":0},0,1]
["SAINZ.Jr Carlos","FERRARI",null,null,null,null,0,null,"MERCEDES",{"$f":"IF(SUM(Singapour!$G$5:$G$34)=0,0,SUM(Bahrein:Japon!$G$5:$G$7))","v":0},0,1,null,"SAINZ.Jr Carlos",{"$f":"IF(Singapour!$D$11=\"\",0,SUM(Bahrein:Japon!$G$11))","v":0},0,1]
["LECLERC Charles",null,null,null,null,null,0,null,"RED BULL RACING",{"$f":"IF(SUM(Singapour!$G$5:$G$34)=0,0,SUM(Bahrein:Japon!$G$11:$G$13))","v":0},0,1,null,"STROLL Lance",{"$f":"IF(Singapour!$D$15=\"\",0,SUM(Bahrein:Japon!$G$15))","v":0},0,1]
[null,null,null,null,null,null,0,null,"ASTON MARTIN",{"$f":"IF(SUM(Singapour!$G$5:$G$34)=0,0,SUM(Bahrein:Japon!$G$14:$G$16))","v":0},0,1,null,"RUSSEL George",{"$f":"IF(Singapour!$D$6=\"\",0,SUM(Bahrein:Japon!$G$6))","v":0},0,1]
["VERSTAPPEN Max","RED BULL RACING",null,null,null,null,0,null,"ALPINE F1 TEAM",{"$f":"IF(SUM(Singapour!$G$5:$G$34)=0,0,SUM(Bahrein:Japon!$G$20:$G$22))","v":0},0,1,null,"NORRIS Lando",{"$f":"IF(Singapour!$D$29=\"\",0,SUM(Bahrein:Japon!$G$29))","v":0},0,1]
["PEREZ Sergio",null,null,null,null,null,0,null,"ALPHA TAURI",{"$f":"IF(SUM(Singapour!$G$5:$G$34)=0,0,SUM(Bahrein:Japon!$G$23:$G$25))","v":0},0,1,null,"LECLERC Charles",{"$f":"IF(Singapour!$D$9=\"\",0,SUM(Bahrein:Japon!$G$9))","v":0},0,1]
[null,null,null,null,null,null,0,null,"HAAS",{"$f":"IF(SUM(Singapour!$G$26:$G$28)=0,0,SUM(Bahrein:Japon!$G$26:$G$28))","v":0},0,1,null,"HULKENBERG Nico",{"$f":"IF(Singapour!$D$27=\"\",0,SUM(Bahrein:Japon!$G$27))","v":0},0,1]
["ALONSO Fernando","ASTON MARTIN",null,null,null,null,0,null,null,null,null,null,null,"GASLY Pierre",{"$f":"IF(Singapour!$D$20=\"\",0,SUM(Bahrein:Japon!$G$20))","v":0},0,1]
["STROLL Lance",null,null,null,null,null,0,null,null,null,null,null,null,"OCON Sebastian",{"$f":"IF(Singapour!$D$21=\"\",0,SUM(Bahrein:Japon!$G$21))","v":0},0,1]
[null,null,null,null,null,null,0,null,null,null,null,null,null,"BOTTAS Valtteri",{"$f":"IF(Singapour!$D$32=\"\",0,SUM(Bahrein:Japon!$G$32))","v":0},0,1]
["ALBON Alexander","WILLIAMS",null,null,null,null,0,null,null,null,null,null,null,"PIASTRI Oscar",{"$f":"IF(Singapour!$D$30=\"\",0,SUM(Bahrein:Japon!$G$30))","v":0},0,1]
["SARGEANT Logan",null,null,null,null,null,0,null,null,null,null,null,null,"GUANYU Zhou",{"$f":"IF(Singapour!$D$33=\"\",0,SUM(Bahrein:Japon!$G$33))","v":0},0,1]
[null,null,null,null,null,null,0,null,null,null,null,null,null,"ALBON Alexander",{"$f":"IF(Singapour!$D$17=\"\",0,SUM(Bahrein:Japon!$G$17))","v":0},0,1]
["GASLY Pierre","ALPINE F1 TEAM",null,null,null,null,0,null,null,null,null,null,null,"MAGNUSSEN Kevin",{"$f":"IF(Singapour!$D$26=\"\",0,SUM(Bahrein:Japon!$G$26))","v":0},0,1]
["OCON Sebastian",null,null,null,null,null,0,null,null,null,null,null,null,"TSUNODA Yoki",{"$f":"IF(Singapour!$D$23=\"\",0,SUM(Bahrein:Japon!$G$23))","v":0},0,1]
[null,null,null,null,null,null,0,null,null,null,null,null,null,"DEVRIES Nyck",{"$f":"IF(Singapour!$D$24=\"\",0,SUM(Bahrein:Japon!$G$24))","v":0},0,1]
["TSUNODA Yoki","ALPHA TAURI",null,null,null,null,0,null,null,null,null,null,null,"SARGEANT Logan",{"$f":"IF(Singapour!$D$18=\"\",0,SUM(Bahrein:Japon!$G$18))","v":0},0,1]
["DEVRIES Nyck",null,null,null,null,null,0]
[null,null,null,null,null,null,0]
["MAGNUSSEN Kevin","HAAS",null,null,null,null,0]
["HULKENBERG Nico",null,null,null,null,null,0]
[null,null,null,null,null,null,0]
["NORRIS Lando","Mc LAREN",null,null,null,null,0]
["PIASTRI Oscar",null,null,null,null,null,0]
[null,null,null,null,null,null,0]
["BOTTAS Valtteri","ALFA ROMÉO",null,null,null,null,0]
["GUANYU Zhou",null,null,null,null,null,0]
[null,null,null,null,null,null,0]

{"sheet":"Qatar","index":21,"n_rows":34,"n_cols":17,"rows_kept":34,"cut":false,"hidden":false,"merged":[[2,5,3,5],[2,6,3,6],[2,7,3,7],[0,0,1,16],[2,0,3,0],[2,1,3,1],[2,2,3,2],[2,3,3,3],[2,4,3,4],[4,1,6,1],[4,2,6,2],[7,1,9,1],[7,2,9,2],[10,1,12,1],[10,2,12,2],[13,1,15,1],[13,2,15,2],[16,1,18,1],[16,2,18,2],[19,1,21,1],[19,2,21,2],[36,1,36,3],[31,1,33,1],[31,2,33,2],[22,1,24,1],[22,2,24,2],[25,1,27,1],[25,2,27,2],[28,1,30,1],[28,2,30,2]]}
["LOSAIL - 8 OCTOBRE 2023 "]
[]
["PILOTES","ECURIES","VOITURES","Finish","Pôle","Pt tour","Points","Sprint","ÉCURIES","Points","Écart","Rang",null,"Noms","Points",null,"Rang"]
[null,null,null,null,null,null,null,null,"ALPINE F1 TEAM",{"$f":"IF(SUM(Japon!$G$5:$G$34)=0,0,SUM(Bahrein:Qatar!$G$20:$G$22))","v":0},null,{"$f":"IF(J4=\"\",0,(RANK(J4,$J$4:$J$13)))","v":1},null,"VERSTAPPEN Max",{"$f":"IF(Japon!$D$11=\"\",0,SUM(Bahrein:Qatar!$G$11))","v":0},0,{"$f":"IF(O4=\"\",0,(RANK(O4,$O$4:$O$23)))","v":1}]
["HAMILTON Lewis","MERCEDES",null,null,null,null,{"$f":"IFERROR(CHOOSE(D5,25,18,15,12,10,8,6,4,2,1),0)+IFERROR(CHOOSE(H5,8,7,6,5,4,3,2,1),0)+F5","v":0},null,"Mc LAREN",{"$f":"IF(SUM(Japon!$G$5:$G$34)=0,0,SUM(Bahrein:Qatar!$G$29:$G$31))","v":0},{"$f":"J4-J5","v":0},{"$f":"IF(J5=\"\",0,(RANK(J5,$J$4:$J$13)))","v":1},null,"PEREZ Sergio",{"$f":"IF(Japon!$D$12=\"\",0,SUM(Bahrein:Qatar!$G$12))","v":0},{"$f":"O4-O5","v":0},{"$f":"IF(O5=\"\",0,(RANK(O5,$O$4:$O$23)))","v":1}]
["RUSSELL George",null,null,null,null,null,{"$f":"IFERROR(CHOOSE(D6,25,18,15,12,10,8,6,4,2,1),0)+IFERROR(CHOOSE(H6,8,7,6,5,4,3,2,1),0)+F6","v":0},null,"FERRARI",{"$f":"IF(SUM(Japon!$G$5:$G$34)=0,0,SUM(Bahrein:Qatar!$G$8:$G$10))","v":0},{"$f":"J5-J6","v":0},1,null,"ALONSO Fernando",{"$f":"IF(Japon!$D$14=\"\",0,SUM(Bahrein:Qatar!$G$14))","v":0},{"$f":"O5-O6","v":0},1]
[null,null,null,null,null,null,0,null,"WILLIAMS",{"$f":"IF(SUM(Japon!$G$5:$G$34)=0,0,SUM(Bahrein:Qatar!$G$17:$G$19))","v":0},0,1,null,"HAMILTON Lewis",{"$f":"IF(Japon!$D$5=\"\",0,SUM(Bahrein:Qatar!$G$5))","v":0},0,1]
["SAINZ.Jr Carlos","FERRARI",null,null,null,null,0,null,"ALFA ROMÉO",{"$f":"IF(SUM(Japon!$G$5:$G$34)=0,0,SUM(Bahrein:Qatar!$G$32:$G$34))","v":0},0,1,null,"SAINZ.Jr Carlos",{"$f":"IF(Japon!$D$8=\"\",0,SUM(Bahrein:Qatar!$G$8))","v":0},0,1]
["LECLERC Charles",null,null,null,null,null,0,null,"MERCEDES",{"$f":"IF(SUM(Japon!$G$5:$G$34)=0,0,SUM(Bahrein:Qatar!$G$5:$G$7))","v":0},0,1,null,"STROLL Lance",{"$f":"IF(Japon!$D$15=\"\",0,SUM(Bahrein:Qatar!$G$15))","v":0},0,1]
[null,null,null,null,null,null,0,null,"RED BULL RACING",{"$f":"IF(SUM(Japon!$G$5:$G$34)=0,0,SUM(Bahrein:Qatar!$G$11:$G$13))","v":0},0,1,null,"RUSSEL George",{"$f":"IF(Japon!$D$6=\"\",0,SUM(Bahrein:Qatar!$G$6))","v":0},0,1]
["VERSTAPPEN Max","RED BULL RACING",null,null,null,null,0,null,"ASTON MARTIN",{"$f":"IF(SUM(Japon!$G$5:$G$34)=0,0,SUM(Bahrein:Qatar!$G$14:$G$16))","v":0},0,1,null,"NORRIS Lando",{"$f":"IF(Japon!$D$29=\"\",0,SUM(Bahrein:Qatar!$G$29))","v":0},0,1]
["PEREZ Sergio",null,null,null,null,null,0,null,"ALPHA TAURI",{"$f":"IF(SUM(Japon!$G$5:$G$34)=0,0,SUM(Bahrein:Qatar!$G$23:$G$25))","v":0},0,1,null,"LECLERC Charles",{"$f":"IF(Japon!$D$9=\"\",0,SUM(Bahrein:Qatar!$G$9))","v":0},0,1]
[null,null,null,null,null,null,0,null,"HAAS",{"$f":"IF(SUM(Japon!$G$5:$G$34)=0,0,SUM(Bahrein:Qatar!$G$26:$G$28))","v":0},0,1,null,"HULKENBERG Nico",{"$f":"IF(Japon!$D$27=\"\",0,SUM(Bahrein:Qatar!$G$27))","v":0},0,1]
["ALONSO Fernando","ASTON MARTIN",null,null,null,null,0,null,null,null,null,null,null,"BOTTAS Valtteri",{"$f":"IF(Japon!$D$32=\"\",0,SUM(Bahrein:Qatar!$G$32))","v":0},0,1]
["STROLL Lance",null,null,null,null,null,0,null,null,null,null,null,null,"GASLY Pierre",{"$f":"IF(Japon!$D$20=\"\",0,SUM(Bahrein:Qatar!$G$20))","v":0},0,1]
[null,null,null,null,null,null,0,null,null,null,null,null,null,"OCON Sebastian",{"$f":"IF(Japon!$D$21=\"\",0,SUM(Bahrein:Qatar!$G$21))","v":0},0,1]
["ALBON Alexander","WILLIAMS",null,null,null,null,0,null,null,null,null,null,null,"PIASTRI Oscar",{"$f":"IF(Japon!$D$30=\"\",0,SUM(Bahrein:Qatar!$G$30))","v":0},0,1]
["SARGEANT Logan",null,null,null,null,null,0,null,null,null,null,null,null,"GUANYU Zhou",{"$f":"IF(Japon!$D$33=\"\",0,SUM(Bahrein:Qatar!$G$33))","v":0},0,1]
[null,null,null,null,null,null,0,null,null,null,null,null,null,"MAGNUSSEN Kevin",{"$f":"IF(Japon!$D$26=\"\",0,SUM(Bahrein:Qatar!$G$26))","v":0},0,1]
["GASLY Pierre","ALPINE F1 TEAM",null,null,null,null,0,null,null,null,null,null,null,"ALBON Alexander",{"$f":"IF(Japon!$D$17=\"\",0,SUM(Bahrein:Qatar!$G$17))","v":0},0,1]
["OCON Sebastian",null,null,null,null,null,0,null,null,null,null,null,null,"TSUNODA Yoki",{"$f":"IF(Japon!$D$23=\"\",0,SUM(Bahrein:Qatar!$G$23))","v":0},0,1]
[null,null,null,null,null,null,0,null,null,null,null,null,null,"SARGEANT Logan",{"$f":"IF(Japon!$D$18=\"\",0,SUM(Bahrein:Qatar!$G$18))","v":0},0,1]
["TSUNODA Yoki","ALPHA TAURI",null,null,null,null,0,null,null,null,null,null,null,"DEVRIES Nyck",{"$f":"IF(Japon!$D$24=\"\",0,SUM(Bahrein:Qatar!$G$24))","v":0},0,1]
["DEVRIES Nyck",null,null,null,null,null,0]
[null,null,null,null,null,null,0]
["MAGNUSSEN Kevin","HAAS",null,null,null,null,0]
["HULKENBERG Nico",null,null,null,null,null,0]
[null,null,null,null,null,null,0]
["NORRIS Lando","Mc LAREN",null,null,null,null,0]
["PIASTRI Oscar",null,null,null,null,null,0]
[null,null,null,null,null,null,0]
["BOTTAS Valtteri","ALFA ROMÉO",null,null,null,null,0]
["GUANYU Zhou",null,null,null,null,null,0]
[null,null,null,null,null,null,0]

{"sheet":"USA","index":22,"n_rows":34,"n_cols":17,"rows_kept":34,"cut":false,"hidden":false,"merged":[[0,0,1,16],[19,1,21,1],[19,2,21,2],[31,1,33,1],[31,2,33,2],[22,1,24,1],[22,2,24,2],[25,1,27,1],[25,2,27,2],[28,1,30,1],[28,2,30,2],[10,2,12,2],[13,1,15,1],[13,2,15,2],[16,1,18,1],[16,2,18,2],[2,7,3,7],[36,1,36,3],[2,0,3,0],[2,1,3,1],[2,2,3,2],[2,3,3,3],[7,1,9,1],[7,2,9,2],[10,1,12,1],[2,4,3,4],[2,5,3,5],[2,6,3,6],[4,1,6,1],[4,2,6,2]]}
["AUSTIN - 22 OCTOBRE 2023"]
[]
["PILOTES","ECURIES","VOITURES","Finish","Pôle","Pt tour","Points","Sprint","ÉCURIES","Points","Écart","Rang",null,"Noms","Points","Écart","Rang"]
[null,null,null,null,null,null,null,null,"Mc LAREN",{"$f":"IF(SUM(Qatar!$G$5:$G$34)=0,0,SUM(Bahrein:USA!$G$29:$G$31))","v":0},null,{"$f":"IF(J4=\"\",0,(RANK(J4,$J$4:$J$13)))","v":1},null,"VERSTAPPEN Max",{"$f":"IF(Qatar!$D$11=\"\",0,SUM(Bahrein:USA!$G$11))","v":0},null,{"$f":"IF(O4=\"\",0,(RANK(O4,$O$4:$O$23)))","v":1}]
["HAMILTON Lewis","MERCEDES",null,null,null,null,{"$f":"IFERROR(CHOOSE(D5,25,18,15,12,10,8,6,4,2,1),0)+IFERROR(CHOOSE(H5,8,7,6,5,4,3,2,1),0)+F5","v":0},null,"FERRARI",{"$f":"IF(SUM(Qatar!$G$5:$G$34)=0,0,SUM(Bahrein:USA!$G$8:$G$10))","v":0},{"$f":"J4-J5","v":0},{"$f":"IF(J5=\"\",0,(RANK(J5,$J$4:$J$13)))","v":1},null,"PEREZ Sergio",{"$f":"IF(Qatar!$D$12=\"\",0,SUM(Bahrein:USA!$G$12))","v":0},{"$f":"O4-O5","v":0},{"$f":"IF(O5=\"\",0,(RANK(O5,$O$4:$O$23)))","v":1}]
["RUSSELL George",null,null,null,null,null,{"$f":"IFERROR(CHOOSE(D6,25,18,15,12,10,8,6,4,2,1),0)+IFERROR(CHOOSE(H6,8,7,6,5,4,3,2,1),0)+F6","v":0},null,"WILLIAMS",{"$f":"IF(SUM(Qatar!$G$5:$G$34)=0,0,SUM(Bahrein:USA!$G$17:$G$19))","v":0},{"$f":"J5-J6","v":0},1,null,"ALONSO Fernando",{"$f":"IF(Qatar!$D$14=\"\",0,SUM(Bahrein:USA!$G$14))","v":0},{"$f":"O5-O6","v":0},1]
[null,null,null,null,null,null,0,null,"ALFA ROMÉO",{"$f":"IF(SUM(Qatar!$G$5:$G$34)=0,0,SUM(Bahrein:USA!$G$32:$G$34))","v":0},0,1,null,"HAMILTON Lewis",{"$f":"IF(Qatar!$D$5=\"\",0,SUM(Bahrein:USA!$G$5))","v":0},0,1]
["SAINZ.Jr Carlos","FERRARI",null,null,null,null,0,null,"MERCEDES",{"$f":"IF(SUM(Qatar!$G$5:$G$34)=0,0,SUM(Bahrein:USA!$G$5:$G$7))","v":0},0,1,null,"SAINZ.Jr Carlos",{"$f":"IF(Qatar!$D$8=\"\",0,SUM(Bahrein:USA!$G$8))","v":0},0,1]
["LECLERC Charles",null,null,null,null,null,0,null,"RED BULL RACING",{"$f":"IF(SUM(Qatar!$G$5:$G$34)=0,0,SUM(Bahrein:USA!$G$11:$G$13))","v":0},0,1,null,"STROLL Lance",{"$f":"IF(Qatar!$D$15=\"\",0,SUM(Bahrein:USA!$G$15))","v":0},0,1]
[null,null,null,null,null,null,0,null,"ASTON MARTIN",{"$f":"IF(SUM(Qatar!$G$5:$G$34)=0,0,SUM(Bahrein:USA!$G$14:$G$16))","v":0},0,1,null,"RUSSEL George",{"$f":"IF(Qatar!$D$6=\"\",0,SUM(Bahrein:USA!$G$6))","v":0},0,1]
["VERSTAPPEN Max","RED BULL RACING",null,null,null,null,0,null,"ALPINE F1 TEAM",{"$f":"IF(SUM(Qatar!$G$5:$G$34)=0,0,SUM(Bahrein:USA!$G$20:$G$22))","v":0},0,1,null,"NORRIS Lando",{"$f":"IF(Qatar!$D$29=\"\",0,SUM(Bahrein:USA!$G$29))","v":0},0,1]
["PEREZ Sergio",null,null,null,null,null,0,null,"ALPHA TAURI",{"$f":"IF(SUM(Qatar!$G$5:$G$34)=0,0,SUM(Bahrein:USA!$G$23:$G$25))","v":0},0,1,null,"LECLERC Charles",{"$f":"IF(Qatar!$D$9=\"\",0,SUM(Bahrein:USA!$G$9))","v":0},0,1]
[null,null,null,null,null,null,0,null,"HAAS",{"$f":"IF(SUM(Qatar!$G$5:$G$34)=0,0,SUM(Bahrein:USA!$G$26:$G$28))","v":0},0,1,null,"HULKENBERG Nico",{"$f":"IF(Qatar!$D$27=\"\",0,SUM(Bahrein:USA!$G$27))","v":0},0,1]
["ALONSO Fernando","ASTON MARTIN",null,null,null,null,0,null,null,null,null,null,null,"BOTTAS Valtteri",{"$f":"IF(Qatar!$D$32=\"\",0,SUM(Bahrein:USA!$G$32))","v":0},0,1]
["STROLL Lance",null,null,null,null,null,0,null,null,null,null,null,null,"GASLY Pierre",{"$f":"IF(Qatar!$D$20=\"\",0,SUM(Bahrein:USA!$G$20))","v":0},0,1]
[null,null,null,null,null,null,0,null,null,null,null,null,null,"OCON Sebastian",{"$f":"IF(Qatar!$D$21=\"\",0,SUM(Bahrein:USA!$G$21))","v":0},0,1]
["ALBON Alexander","WILLIAMS",null,null,null,null,0,null,null,null,null,null,null,"PIASTRI Oscar",{"$f":"IF(Qatar!$D$30=\"\",0,SUM(Bahrein:USA!$G$30))","v":0},0,1]
["SARGEANT Logan",null,null,null,null,null,0,null,null,null,null,null,null,"GUANYU Zhou",{"$f":"IF(Qatar!$D$33=\"\",0,SUM(Bahrein:USA!$G$33))","v":0},0,1]
[null,null,null,null,null,null,0,null,null,null,null,null,null,"ALBON Alexander",{"$f":"IF(Qatar!$D$17=\"\",0,SUM(Bahrein:USA!$G$17))","v":0},0,1]
["GASLY Pierre","ALPINE F1 TEAM",null,null,null,null,0,null,null,null,null,null,null,"MAGNUSSEN Kevin",{"$f":"IF(Qatar!$D$26=\"\",0,SUM(Bahrein:USA!$G$26))","v":0},0,1]
["OCON Sebastian",null,null,null,null,null,0,null,null,null,null,null,null,"TSUNODA Yoki",{"$f":"IF(Qatar!$D$23=\"\",0,SUM(Bahrein:USA!$G$23))","v":0},0,1]
[null,null,null,null,null,null,0,null,null,null,null,null,null,"DEVRIES Nyck",{"$f":"IF(Qatar!$D$24=\"\",0,SUM(Bahrein:USA!$G$24))","v":0},0,1]
["TSUNODA Yoki","ALPHA TAURI",null,null,null,null,0,null,null,null,null,null,null,"SARGEANT Logan",{"$f":"IF(Qatar!$D$18=\"\",0,SUM(Bahrein:USA!$G$18))","v":0},0,1]
["DEVRIES Nyck",null,null,null,null,null,0]
[null,null,null,null,null,null,0]
["MAGNUSSEN Kevin","HAAS",null,null,null,null,0]
["HULKENBERG Nico",null,null,null,null,null,0]
[null,null,null,null,null,null,0]
["NORRIS Lando","Mc LAREN",null,null,null,null,0]
["PIASTRI Oscar",null,null,null,null,null,0]
[null,null,null,null,null,null,0]
["BOTTAS Valtteri","ALFA ROMÉO",null,null,null,null,0]
["GUANYU Zhou",null,null,null,null,null,0]
[null,null,null,null,null,null,0]

{"sheet":"Mexique","index":23,"n_rows":34,"n_cols":17,"rows_kept":34,"cut":false,"hidden":false,"merged":[[2,5,3,5],[2,6,3,6],[0,0,1,16],[4,1,6,1],[4,2,6,2],[2,0,3,0],[2,1,3,1],[2,2,3,2],[2,3,3,3],[2,4,3,4],[7,1,9,1],[7,2,9,2],[10,1,12,1],[10,2,12,2],[13,1,15,1],[13,2,15,2],[16,1,18,1],[16,2,18,2],[19,1,21,1],[19,2,21,2],[36,1,36,3],[31,1,33,1],[31,2,33,2],[22,1,24,1],[22,2,24,2],[25,1,27,1],[25,2,27,2],[28,1,30,1],[28,2,30,2]]}
["MEXICO - 29 OCTOBRE 2023"]
[]
["PILOTES","ECURIES","VOITURES","Finish","Pôle","Pt tour","Points",null,"ÉCURIES","Points","Écart","Rang",null,"Noms","Points","Écart","Rang"]
[null,null,null,null,null,null,null,null,"MERCEDES",{"$f":"IF(SUM(USA!$G$5:$G$34)=0,0,SUM(Bahrein:Mexique!$G$5:$G$7))","v":0},null,{"$f":"IF(J4=\"\",0,(RANK(J4,$J$4:$J$13)))","v":1},null,"VERSTAPPEN Max",{"$f":"IF(USA!$D$11=\"\",0,SUM(Bahrein:Mexique!$G$11))","v":0},null,{"$f":"IF(O4=\"\",0,(RANK(O4,$O$4:$O$23)))","v":1}]
["HAMILTON Lewis","MERCEDES",null,null,null,null,{"$f":"IFERROR(CHOOSE(D5,25,18,15,12,10,8,6,4,2,1)+(F5=1),0)","v":0},null,"FERRARI",{"$f":"IF(SUM(USA!$G$5:$G$34)=0,0,SUM(Bahrein:Mexique!$G$8:$G$10))","v":0},{"$f":"J4-J5","v":0},{"$f":"IF(J5=\"\",0,(RANK(J5,$J$4:$J$13)))","v":1},null,"PEREZ Sergio",{"$f":"IF(USA!$D$12=\"\",0,SUM(Bahrein:Mexique!$G$12))","v":0},{"$f":"O4-O5","v":0},{"$f":"IF(O5=\"\",0,(RANK(O5,$O$4:$O$23)))","v":1}]
["RUSSELL George",null,null,null,null,null,{"$f":"IFERROR(CHOOSE(D6,25,18,15,12,10,8,6,4,2,1)+(F6=1),0)","v":0},null,"RED BULL RACING",{"$f":"IF(SUM(USA!$G$5:$G$34)=0,0,SUM(Bahrein:Mexique!$G$11:$G$13))","v":0},{"$f":"J5-J6","v":0},1,null,"ALONSO Fernando",{"$f":"IF(USA!$D$14=\"\",0,SUM(Bahrein:Mexique!$G$14))","v":0},{"$f":"O5-O6","v":0},1]
[null,null,null,null,null,null,0,null,"Mc LAREN",{"$f":"IF(SUM(USA!$G$5:$G$34)=0,0,SUM(Bahrein:Mexique!$G$29:$G$31))","v":0},0,1,null,"HAMILTON Lewis",{"$f":"IF(USA!$D$5=\"\",0,SUM(Bahrein:Mexique!$G$5))","v":0},0,1]
["SAINZ.Jr Carlos","FERRARI",null,null,null,null,0,null,"WILLIAMS",{"$f":"IF(SUM(USA!$G$5:$G$34)=0,0,SUM(Bahrein:Mexique!$G$17:$G$19))","v":0},0,1,null,"SAINZ.Jr Carlos",{"$f":"IF(USA!$D$8=\"\",0,SUM(Bahrein:Mexique!$G$8))","v":0},0,1]
["LECLERC Charles",null,null,null,null,null,0,null,"ALFA ROMÉO",{"$f":"IF(SUM(USA!$G$5:$G$34)=0,0,SUM(Bahrein:Mexique!$G$32:$G$34))","v":0},0,1,null,"STROLL Lance",{"$f":"IF(USA!$D$15=\"\",0,SUM(Bahrein:Mexique!$G$15))","v":0},0,1]
[null,null,null,null,null,null,0,null,"ASTON MARTIN",{"$f":"IF(SUM(USA!$G$5:$G$34)=0,0,SUM(Bahrein:Mexique!$G$14:$G$16))","v":0},0,1,null,"RUSSEL George",{"$f":"IF(USA!$D$6=\"\",0,SUM(Bahrein:Mexique!$G$6))","v":0},0,1]
["VERSTAPPEN Max","RED BULL RACING",null,null,null,null,0,null,"ALPINE F1 TEAM",{"$f":"IF(SUM(USA!$G$5:$G$34)=0,0,SUM(Bahrein:Mexique!$G$20:$G$22))","v":0},0,1,null,"NORRIS Lando",{"$f":"IF(USA!$D$29=\"\",0,SUM(Bahrein:Mexique!$G$29))","v":0},0,1]
["PEREZ Sergio",null,null,null,null,null,0,null,"ALPHA TAURI",{"$f":"IF(SUM(USA!$G$5:$G$34)=0,0,SUM(Bahrein:Mexique!$G$23:$G$25))","v":0},0,1,null,"LECLERC Charles",{"$f":"IF(USA!$D$9=\"\",0,SUM(Bahrein:Mexique!$G$9))","v":0},0,1]
[null,null,null,null,null,null,0,null,"HAAS",{"$f":"IF(SUM(USA!$G$5:$G$34)=0,0,SUM(Bahrein:Mexique!$G$26:$G$28))","v":0},0,1,null,"HULKENBERG Nico",{"$f":"IF(USA!$D$27=\"\",0,SUM(Bahrein:Mexique!$G$27))","v":0},0,1]
["ALONSO Fernando","ASTON MARTIN",null,null,null,null,0,null,null,null,null,null,null,"BOTTAS Valtteri",{"$f":"IF(USA!$D$32=\"\",0,SUM(Bahrein:Mexique!$G$32))","v":0},0,1]
["STROLL Lance",null,null,null,null,null,0,null,null,null,null,null,null,"GASLY Pierre",{"$f":"IF(USA!$D$20=\"\",0,SUM(Bahrein:Mexique!$G$20))","v":0},0,1]
[null,null,null,null,null,null,0,null,null,null,null,null,null,"OCON Sebastian",{"$f":"IF(USA!$D$21=\"\",0,SUM(Bahrein:Mexique!$G$21))","v":0},0,1]
["ALBON Alexander","WILLIAMS",null,null,null,null,0,null,null,null,null,null,null,"PIASTRI Oscar",{"$f":"IF(USA!$D$30=\"\",0,SUM(Bahrein:Mexique!$G$30))","v":0},0,1]
["SARGEANT Logan",null,null,null,null,null,0,null,null,null,null,null,null,"GUANYU Zhou",{"$f":"IF(USA!$D$33=\"\",0,SUM(Bahrein:Mexique!$G$33))","v":0},0,1]
[null,null,null,null,null,null,0,null,null,null,null,null,null,"ALBON Alexander",{"$f":"IF(USA!$D$17=\"\",0,SUM(Bahrein:Mexique!$G$17))","v":0},0,1]
["GASLY Pierre","ALPINE F1 TEAM",null,null,null,null,0,null,null,null,null,null,null,"MAGNUSSEN Kevin",{"$f":"IF(USA!$D$26=\"\",0,SUM(Bahrein:Mexique!$G$26))","v":0},0,1]
["OCON Sebastian",null,null,null,null,null,0,null,null,null,null,null,null,"TSUNODA Yoki",{"$f":"IF(USA!$D$23=\"\",0,SUM(Bahrein:Mexique!$G$23))","v":0},0,1]
[null,null,null,null,null,null,0,null,null,null,null,null,null,"SARGEANT Logan",{"$f":"IF(USA!$D$18=\"\",0,SUM(Bahrein:Mexique!$G$18))","v":0},0,1]
["TSUNODA Yoki","ALPHA TAURI",null,null,null,null,0,null,null,null,null,null,null,"DEVRIES Nyck",{"$f":"IF(USA!$D$24=\"\",0,SUM(Bahrein:Mexique!$G$24))","v":0},0,1]
["DEVRIES Nyck",null,null,null,null,null,0]
[null,null,null,null,null,null,0]
["MAGNUSSEN Kevin","HAAS",null,null,null,null,0]
["HULKENBERG Nico",null,null,null,null,null,0]
[null,null,null,null,null,null,0]
["NORRIS Lando","Mc LAREN",null,null,null,null,0]
["PIASTRI Oscar",null,null,null,null,null,0]
[null,null,null,null,null,null,0]
["BOTTAS Valtteri","ALFA ROMÉO",null,null,null,null,0]
["GUANYU Zhou",null,null,null,null,null,0]
[null,null,null,null,null,null,0]

{"sheet":"Brésil","index":24,"n_rows":34,"n_cols":17,"rows_kept":34,"cut":false,"hidden":false,"merged":[[2,5,3,5],[2,6,3,6],[2,7,3,7],[0,0,1,16],[2,0,3,0],[2,1,3,1],[2,2,3,2],[2,3,3,3],[2,4,3,4],[4,1,6,1],[4,2,6,2],[7,1,9,1],[7,2,9,2],[10,1,12,1],[10,2,12,2],[13,1,15,1],[13,2,15,2],[16,1,18,1],[16,2,18,2],[19,1,21,1],[19,2,21,2],[36,1,36,3],[31,1,33,1],[31,2,33,2],[22,1,24,1],[22,2,24,2],[25,1,27,1],[25,2,27,2],[28,1,30,1],[28,2,30,2]]}
["INTERLAGOS - 5 NOVEMBRE 2023"]
[]
["PILOTES","ECURIES","VOITURES","Finish","Pôle","Pt tour","Points","Sprint","ÉCURIES","Points","Écart","Rang",null,"Noms","Points","Écart","Rang"]
[null,null,null,null,null,null,null,null,"Mc LAREN",{"$f":"IF(SUM(Mexique!$G$5:$G$34)=0,0,SUM(Bahrein:Brésil!$G$29:$G$31))","v":0},null,{"$f":"IF(J4=\"\",0,(RANK(J4,$J$4:$J$13)))","v":1},null,"VERSTAPPEN Max",{"$f":"IF(Mexique!$D$11=\"\",0,SUM(Bahrein:Brésil!$G$11))","v":0},null,{"$f":"IF(O4=\"\",0,(RANK(O4,$O$4:$O$23)))","v":1}]
["HAMILTON Lewis","MERCEDES",null,null,null,null,{"$f":"IFERROR(CHOOSE(D5,25,18,15,12,10,8,6,4,2,1),0)+IFERROR(CHOOSE(H5,8,7,6,5,4,3,2,1),0)+F5","v":0},null,"FERRARI",{"$f":"IF(SUM(Mexique!$G$5:$G$34)=0,0,SUM(Bahrein:Brésil!$G$8:$G$10))","v":0},{"$f":"J4-J5","v":0},{"$f":"IF(J5=\"\",0,(RANK(J5,$J$4:$J$13)))","v":1},null,"PEREZ Sergio",{"$f":"IF(Mexique!$D$12=\"\",0,SUM(Bahrein:Brésil!$G$12))","v":0},{"$f":"O4-O5","v":0},{"$f":"IF(O5=\"\",0,(RANK(O5,$O$4:$O$23)))","v":1}]
["RUSSELL George",null,null,null,null,null,{"$f":"IFERROR(CHOOSE(D6,25,18,15,12,10,8,6,4,2,1),0)+IFERROR(CHOOSE(H6,8,7,6,5,4,3,2,1),0)+F6","v":0},null,"WILLIAMS",{"$f":"IF(SUM(Mexique!$G$5:$G$34)=0,0,SUM(Bahrein:Brésil!$G$17:$G$19))","v":0},{"$f":"J5-J6","v":0},1,null,"ALONSO Fernando",{"$f":"IF(Mexique!$D$14=\"\",0,SUM(Bahrein:Brésil!$G$14))","v":0},{"$f":"O5-O6","v":0},1]
[null,null,null,null,null,null,0,null,"ALFA ROMÉO",{"$f":"IF(SUM(Mexique!$G$5:$G$34)=0,0,SUM(Bahrein:Brésil!$G$32:$G$34))","v":0},0,1,null,"HAMILTON Lewis",{"$f":"IF(Mexique!$D$5=\"\",0,SUM(Bahrein:Brésil!$G$5))","v":0},0,1]
["SAINZ.Jr Carlos","FERRARI",null,null,null,null,0,null,"MERCEDES",{"$f":"IF(SUM(Mexique!$G$5:$G$34)=0,0,SUM(Bahrein:Brésil!$G$5:$G$7))","v":0},0,1,null,"SAINZ.Jr Carlos",{"$f":"IF(Mexique!$D$8=\"\",0,SUM(Bahrein:Brésil!$G$8))","v":0},0,1]
["LECLERC Charles",null,null,null,null,null,0,null,"RED BULL RACING",{"$f":"IF(SUM(Mexique!$G$5:$G$34)=0,0,SUM(Bahrein:Brésil!$G$11:$G$13))","v":0},0,1,null,"STROLL Lance",{"$f":"IF(Mexique!$D$15=\"\",0,SUM(Bahrein:Brésil!$G$15))","v":0},0,1]
[null,null,null,null,null,null,0,null,"ASTON MARTIN",{"$f":"IF(SUM(Mexique!$G$5:$G$34)=0,0,SUM(Bahrein:Brésil!$G$14:$G$16))","v":0},0,1,null,"RUSSEL George",{"$f":"IF(Mexique!$D$6=\"\",0,SUM(Bahrein:Brésil!$G$6))","v":0},0,1]
["VERSTAPPEN Max","RED BULL RACING",null,null,null,null,0,null,"ALPINE F1 TEAM",{"$f":"IF(SUM(Mexique!$G$5:$G$34)=0,0,SUM(Bahrein:Brésil!$G$20:$G$22))","v":0},0,1,null,"NORRIS Lando",{"$f":"IF(Mexique!$D$29=\"\",0,SUM(Bahrein:Brésil!$G$29))","v":0},0,1]
["PEREZ Sergio",null,null,null,null,null,0,null,"ALPHA TAURI",{"$f":"IF(SUM(Mexique!$G$5:$G$34)=0,0,SUM(Bahrein:Brésil!$G$23:$G$25))","v":0},0,1,null,"LECLERC Charles",{"$f":"IF(Mexique!$D$9=\"\",0,SUM(Bahrein:Brésil!$G$9))","v":0},0,1]
[null,null,null,null,null,null,0,null,"HAAS",{"$f":"IF(SUM(Mexique!$G$5:$G$34)=0,0,SUM(Bahrein:Brésil!$G$26:$G$28))","v":0},0,1,null,"HULKENBERG Nico",{"$f":"IF(Mexique!$D$27=\"\",0,SUM(Bahrein:Brésil!$G$27))","v":0},0,1]
["ALONSO Fernando","ASTON MARTIN",null,null,null,null,0,null,null,null,null,null,null,"BOTTAS Valtteri",{"$f":"IF(Mexique!$D$32=\"\",0,SUM(Bahrein:Brésil!$G$32))","v":0},0,1]
["STROLL Lance",null,null,null,null,null,0,null,null,null,null,null,null,"GASLY Pierre",{"$f":"IF(Mexique!$D$20=\"\",0,SUM(Bahrein:Brésil!$G$20))","v":0},0,1]
[null,null,null,null,null,null,0,null,null,null,null,null,null,"OCON Sebastian",{"$f":"IF(Mexique!$D$21=\"\",0,SUM(Bahrein:Brésil!$G$21))","v":0},0,1]
["ALBON Alexander","WILLIAMS",null,null,null,null,0,null,null,null,null,null,null,"PIASTRI Oscar",{"$f":"IF(Mexique!$D$30=\"\",0,SUM(Bahrein:Brésil!$G$30))","v":0},0,1]
["SARGEANT Logan",null,null,null,null,null,0,null,null,null,null,null,null,"GUANYU Zhou",{"$f":"IF(Mexique!$D$33=\"\",0,SUM(Bahrein:Brésil!$G$33))","v":0},0,1]
[null,null,null,null,null,null,0,null,null,null,null,null,null,"ALBON Alexander",{"$f":"IF(Mexique!$D$17=\"\",0,SUM(Bahrein:Brésil!$G$17))","v":0},0,1]
["GASLY Pierre","ALPINE F1 TEAM",null,null,null,null,0,null,null,null,null,null,null,"MAGNUSSEN Kevin",{"$f":"IF(Mexique!$D$26=\"\",0,SUM(Bahrein:Brésil!$G$26))","v":0},0,1]
["OCON Sebastian",null,null,null,null,null,0,null,null,null,null,null,null,"TSUNODA Yoki",{"$f":"IF(Mexique!$D$23=\"\",0,SUM(Bahrein:Brésil!$G$23))","v":0},0,1]
[null,null,null,null,null,null,0,null,null,null,null,null,null,"DEVRIES Nyck",{"$f":"IF(Mexique!$D$24=\"\",0,SUM(Bahrein:Brésil!$G$24))","v":0},0,1]
["TSUNODA Yoki","ALPHA TAURI",null,null,null,null,0,null,null,null,null,null,null,"SARGEANT Logan",{"$f":"IF(Mexique!$D$18=\"\",0,SUM(Bahrein:Brésil!$G$18))","v":0},0,1]
["DEVRIES Nyck",null,null,null,null,null,0]
[null,null,null,null,null,null,0]
["MAGNUSSEN Kevin","HAAS",null,null,null,null,0]
["HULKENBERG Nico",null,null,null,null,null,0]
[null,null,null,null,null,null,0]
["NORRIS Lando","Mc LAREN",null,null,null,null,0]
["PIASTRI Oscar",null,null,null,null,null,0]
[null,null,null,null,null,null,0]
["BOTTAS Valtteri","ALFA ROMÉO",null,null,null,null,0]
["GUANYU Zhou",null,null,null,null,null,0]
[null,null,null,null,null,null,0]

{"sheet":"Las Végas","index":25,"n_rows":34,"n_cols":17,"rows_kept":34,"cut":false,"hidden":false,"merged":[[31,1,33,1],[31,2,33,2],[36,1,36,3],[22,1,24,1],[22,2,24,2],[25,1,27,1],[25,2,27,2],[28,1,30,1],[28,2,30,2],[13,1,15,1],[13,2,15,2],[16,1,18,1],[16,2,18,2],[19,1,21,1],[19,2,21,2],[4,1,6,1],[4,2,6,2],[7,1,9,1],[7,2,9,2],[10,1,12,1],[10,2,12,2],[0,0,1,16],[2,0,3,0],[2,1,3,1],[2,2,3,2],[2,3,3,3],[2,4,3,4],[2,5,3,5],[2,6,3,6],[2,7,3,7]]}
["LAS VÉGAS - 18 NOVEMBRE 2023"]
[]
["PILOTES","ECURIES","VOITURES","Finish","Pôle","Pt tour","Points",null,"ÉCURIES","Points","Écart","Rang",null,"Noms","Points","Écart","Rang"]
[null,null,null,null,null,null,null,null,"Mc LAREN",{"$f":"IF(SUM(Brésil!$G$5:$G$34)=0,0,SUM('Bahrein:Las Végas'!$G$29:$G$31))","v":0},null,{"$f":"IF(J4=\"\",0,(RANK(J4,$J$4:$J$13)))","v":1},null,"VERSTAPPEN Max",{"$f":"IF(Brésil!$D$11=\"\",0,SUM(Bahrein:'Las Végas'!$G$11))","v":0},null,{"$f":"IF(O4=\"\",0,(RANK(O4,$O$4:$O$23)))","v":1}]
["HAMILTON Lewis","MERCEDES",null,null,null,null,{"$f":"IFERROR(CHOOSE(D5,25,18,15,12,10,8,6,4,2,1),0)","v":0},null,"FERRARI",{"$f":"IF(SUM(Brésil!$G$5:$G$34)=0,0,SUM(Bahrein:'Las Végas'!$G$8:$G$10))","v":0},{"$f":"J4-J5","v":0},{"$f":"IF(J5=\"\",0,(RANK(J5,$J$4:$J$13)))","v":1},null,"PEREZ Sergio",{"$f":"IF(Brésil!$D$12=\"\",0,SUM(Bahrein:'Las Végas'!$G$12))","v":0},{"$f":"O4-O5","v":0},{"$f":"IF(O5=\"\",0,(RANK(O5,$O$4:$O$23)))","v":1}]
["RUSSELL George",null,null,null,null,null,{"$f":"IFERROR(CHOOSE(D6,25,18,15,12,10,8,6,4,2,1),0)","v":0},null,"WILLIAMS",{"$f":"IF(SUM(Brésil!$G$5:$G$34)=0,0,SUM(Bahrein:'Las Végas'!$G$17:$G$19))","v":0},{"$f":"J5-J6","v":0},1,null,"ALONSO Fernando",{"$f":"IF(Brésil!$D$14=\"\",0,SUM(Bahrein:'Las Végas'!$G$14))","v":0},{"$f":"O5-O6","v":0},1]
[null,null,null,null,null,null,0,null,"ALFA ROMÉO",{"$f":"IF(SUM(Brésil!$G$5:$G$34)=0,0,SUM(Bahrein:'Las Végas'!$G$32:$G$34))","v":0},0,1,null,"HAMILTON Lewis",{"$f":"IF(Brésil!$D$5=\"\",0,SUM(Bahrein:'Las Végas'!$G$5))","v":0},0,1]
["SAINZ.Jr Carlos","FERRARI",null,null,null,null,0,null,"MERCEDES",{"$f":"IF(SUM(Brésil!$G$5:$G$34)=0,0,SUM(Bahrein:'Las Végas'!$G$5:$G$7))","v":0},0,1,null,"SAINZ.Jr Carlos",{"$f":"IF(Brésil!$D$8=\"\",0,SUM(Bahrein:'Las Végas'!$G$8))","v":0},0,1]
["LECLERC Charles",null,null,null,null,null,0,null,"RED BULL RACING",{"$f":"IF(SUM(Brésil!$G$5:$G$34)=0,0,SUM(Bahrein:'Las Végas'!$G$11:$G$13))","v":0},0,1,null,"STROLL Lance",{"$f":"IF(Brésil!$D$15=\"\",0,SUM(Bahrein:'Las Végas'!$G$15))","v":0},0,1]
[null,null,null,null,null,null,0,null,"ASTON MARTIN",{"$f":"IF(SUM(Brésil!$G$5:$G$34)=0,0,SUM(Bahrein:'Las Végas'!$G$14:$G$16))","v":0},0,1,null,"RUSSEL George",{"$f":"IF(Brésil!$D$6=\"\",0,SUM(Bahrein:'Las Végas'!$G$6))","v":0},0,1]
["VERSTAPPEN Max","RED BULL RACING",null,null,null,null,0,null,"ALPINE F1 TEAM",{"$f":"IF(SUM(Brésil!$G$5:$G$34)=0,0,SUM(Bahrein:'Las Végas'!$G$20:$G$22))","v":0},0,1,null,"NORRIS Lando",{"$f":"IF(Brésil!$D$29=\"\",0,SUM(Bahrein:'Las Végas'!$G$29))","v":0},0,1]
["PEREZ Sergio",null,null,null,null,null,0,null,"ALPHA TAURI",{"$f":"IF(SUM(Brésil!$G$5:$G$34)=0,0,SUM(Bahrein:'Las Végas'!$G$23:$G$25))","v":0},0,1,null,"LECLERC Charles",{"$f":"IF(Brésil!$D$9=\"\",0,SUM(Bahrein:'Las Végas'!$G$9))","v":0},0,1]
[null,null,null,null,null,null,0,null,"HAAS",{"$f":"IF(SUM(Brésil!$G$5:$G$34)=0,0,SUM(Bahrein:'Las Végas'!$G$26:$G$28))","v":0},0,1,null,"HULKENBERG Nico",{"$f":"IF(Brésil!$D$27=\"\",0,SUM(Bahrein:'Las Végas'!$G$27))","v":0},0,1]
["ALONSO Fernando","ASTON MARTIN",null,null,null,null,0,null,null,null,null,null,null,"BOTTAS Valtteri",{"$f":"IF(Brésil!$D$32=\"\",0,SUM(Bahrein:'Las Végas'!$G$32))","v":0},0,1]
["STROLL Lance",null,null,null,null,null,0,null,null,null,null,null,null,"GASLY Pierre",{"$f":"IF(Brésil!$D$20=\"\",0,SUM(Bahrein:'Las Végas'!$G$20))","v":0},0,1]
[null,null,null,null,null,null,0,null,null,null,null,null,null,"OCON Sebastian",{"$f":"IF(Brésil!$D$21=\"\",0,SUM(Bahrein:'Las Végas'!$G$21))","v":0},0,1]
["ALBON Alexander","WILLIAMS",null,null,null,null,0,null,null,null,null,null,null,"PIASTRI Oscar",{"$f":"IF(Brésil!$D$30=\"\",0,SUM(Bahrein:'Las Végas'!$G$30))","v":0},0,1]
["SARGEANT Logan",null,null,null,null,null,0,null,null,null,null,null,null,"GUANYU Zhou",{"$f":"IF(Brésil!$D$33=\"\",0,SUM(Bahrein:'Las Végas'!$G$33))","v":0},0,1]
[null,null,null,null,null,null,0,null,null,null,null,null,null,"ALBON Alexander",{"$f":"IF(Brésil!$D$17=\"\",0,SUM(Bahrein:'Las Végas'!$G$17))","v":0},0,1]
["GASLY Pierre","ALPINE F1 TEAM",null,null,null,null,0,null,null,null,null,null,null,"MAGNUSSEN Kevin",{"$f":"IF(Brésil!$D$26=\"\",0,SUM(Bahrein:'Las Végas'!$G$26))","v":0},0,1]
["OCON Sebastian",null,null,null,null,null,0,null,null,null,null,null,null,"TSUNODA Yoki",{"$f":"IF(Brésil!$D$23=\"\",0,SUM(Bahrein:'Las Végas'!$G$23))","v":0},0,1]
[null,null,null,null,null,null,0,null,null,null,null,null,null,"DEVRIES Nyck",{"$f":"IF(Brésil!$D$24=\"\",0,SUM(Bahrein:'Las Végas'!$G$24))","v":0},0,1]
["TSUNODA Yoki","ALPHA TAURI",null,null,null,null,0,null,null,null,null,null,null,"SARGEANT Logan",{"$f":"IF(Brésil!$D$18=\"\",0,SUM(Bahrein:'Las Végas'!$G$18))","v":0},0,1]
["DEVRIES Nyck",null,null,null,null,null,0]
[null,null,null,null,null,null,0]
["MAGNUSSEN Kevin","HAAS",null,null,null,null,0]
["HULKENBERG Nico",null,null,null,null,null,0]
[null,null,null,null,null,null,0]
["NORRIS Lando","Mc LAREN",null,null,null,null,0]
["PIASTRI Oscar",null,null,null,null,null,0]
[null,null,null,null,null,null,0]
["BOTTAS Valtteri","ALFA ROMÉO",null,null,null,null,0]
["GUANYU Zhou",null,null,null,null,null,0]
[null,null,null,null,null,null,0]

{"sheet":"AbuDhabi","index":26,"n_rows":34,"n_cols":17,"rows_kept":34,"cut":false,"hidden":false,"merged":[[2,0,3,0],[0,0,1,16],[4,1,6,1],[4,2,6,2],[2,1,3,1],[2,2,3,2],[2,3,3,3],[2,5,3,5],[2,6,3,6],[2,4,3,4],[7,1,9,1],[7,2,9,2],[10,1,12,1],[10,2,12,2],[13,1,15,1],[13,2,15,2],[16,1,18,1],[16,2,18,2],[19,1,21,1],[19,2,21,2],[36,1,36,3],[31,1,33,1],[31,2,33,2],[22,1,24,1],[22,2,24,2],[25,1,27,1],[25,2,27,2],[28,1,30,1],[28,2,30,2]]}
["YAS MARINA - 26 NOVEMBRE 2023"]
[]
["PILOTES","ECURIES","VOITURES","Finish","Pôle","Pt tour","Points",null,"ÉCURIES","Points","Écart","Rang",null,"Noms","Points","Écart","Rang"]
[null,null,null,null,null,null,null,null,"MERCEDES",{"$f":"IF(SUM('Las Végas'!$G$5:$G$34)=0,0,SUM(Bahrein:AbuDhabi!$G$5:$G$7))","v":0},null,{"$f":"IF(J4=\"\",0,(RANK(J4,$J$4:$J$13)))","v":1},null,"VERSTAPPEN Max",{"$f":"IF('Las Végas'!$D$11=\"\",0,SUM(Bahrein:AbuDhabi!$G$11:$G$11))","v":0},null,{"$f":"IF(O4=\"\",0,(RANK(O4,$O$4:$O$23)))","v":1}]
["HAMILTON Lewis","MERCEDES",null,null,null,null,{"$f":"IFERROR(CHOOSE(D5,25,18,15,12,10,8,6,4,2,1)+(F5=1),0)","v":0},null,"HAAS",{"$f":"IF(SUM('Las Végas'!$G$5:$G$34)=0,0,SUM(Bahrein:AbuDhabi!$G$26:$G$28))","v":0},{"$f":"J4-J5","v":0},{"$f":"IF(J5=\"\",0,(RANK(J5,$J$4:$J$13)))","v":1},null,"PEREZ Sergio",{"$f":"IF('Las Végas'!$D$12=\"\",0,SUM(Bahrein:AbuDhabi!$G$12))","v":0},{"$f":"O4-O5","v":0},{"$f":"IF(O5=\"\",0,(RANK(O5,$O$4:$O$23)))","v":1}]
["RUSSELL George",null,null,null,null,null,{"$f":"IFERROR(CHOOSE(D6,25,18,15,12,10,8,6,4,2,1)+(F6=1),0)","v":0},null,"Mc LAREN",{"$f":"IF(SUM('Las Végas'!$G$5:$G$34)=0,0,SUM(Bahrein:AbuDhabi!$G$29:$G$31))","v":0},{"$f":"J5-J6","v":0},1,null,"ALONSO Fernando",{"$f":"IF('Las Végas'!$D$14=\"\",0,SUM(Bahrein:AbuDhabi!$G$14))","v":0},{"$f":"O5-O6","v":0},1]
[null,null,null,null,null,null,0,null,"FERRARI",{"$f":"IF(SUM('Las Végas'!$G$5:$G$34)=0,0,SUM(Bahrein:AbuDhabi!$G$8:$G$10))","v":0},0,1,null,"HAMILTON Lewis",{"$f":"IF('Las Végas'!$D$5=\"\",0,SUM(Bahrein:AbuDhabi!$G$5))","v":0},0,1]
["SAINZ.Jr Carlos","FERRARI",null,null,null,null,0,null,"WILLIAMS",{"$f":"IF(SUM('Las Végas'!$G$5:$G$34)=0,0,SUM(Bahrein:AbuDhabi!$G$17:$G$19))","v":0},0,1,null,"SAINZ.Jr Carlos",{"$f":"IF('Las Végas'!$D$8=\"\",0,SUM(Bahrein:AbuDhabi!$G$8))","v":0},0,1]
["LECLERC Charles",null,null,null,null,null,0,null,"ALFA ROMÉO",{"$f":"IF(SUM('Las Végas'!$G$5:$G$34)=0,0,SUM(Bahrein:AbuDhabi!$G$32:$G$34))","v":0},0,1,null,"STROLL Lance",{"$f":"IF('Las Végas'!$D$15=\"\",0,SUM(Bahrein:AbuDhabi!$G$15))","v":0},0,1]
[null,null,null,null,null,null,0,null,"RED BULL RACING",{"$f":"IF(SUM('Las Végas'!$G$5:$G$34)=0,0,SUM(Bahrein:AbuDhabi!$G$11:$G$13))","v":0},0,1,null,"RUSSEL George",{"$f":"IF('Las Végas'!$D$6=\"\",0,SUM(Bahrein:AbuDhabi!$G$6))","v":0},0,1]
["VERSTAPPEN Max","RED BULL RACING",null,null,null,null,0,null,"ASTON MARTIN",{"$f":"IF(SUM('Las Végas'!$G$5:$G$34)=0,0,SUM(Bahrein:AbuDhabi!$G$14:$G$16))","v":0},0,1,null,"NORRIS Lando",{"$f":"IF('Las Végas'!$D$29=\"\",0,SUM(Bahrein:AbuDhabi!$G$29))","v":0},0,1]
["PEREZ Sergio",null,null,null,null,null,0,null,"ALPINE F1 TEAM",{"$f":"IF(SUM('Las Végas'!$G$5:$G$34)=0,0,SUM(Bahrein:AbuDhabi!$G$20:$G$22))","v":0},0,1,null,"LECLERC Charles",{"$f":"IF('Las Végas'!$D$9=\"\",0,SUM(Bahrein:AbuDhabi!$G$9))","v":0},0,1]
[null,null,null,null,null,null,0,null,"ALPHA TAURI",{"$f":"IF(SUM('Las Végas'!$G$5:$G$34)=0,0,SUM(Bahrein:AbuDhabi!$G$23:$G$25))","v":0},0,1,null,"HULKENBERG Nico",{"$f":"IF('Las Végas'!$D$27=\"\",0,SUM(Bahrein:AbuDhabi!$G$27))","v":0},0,1]
["ALONSO Fernando","ASTON MARTIN",null,null,null,null,0,null,null,null,null,null,null,"BOTTAS Valtteri",{"$f":"IF('Las Végas'!$D$32=\"\",0,SUM(Bahrein:AbuDhabi!$G$32))","v":0},0,1]
["STROLL Lance",null,null,null,null,null,0,null,null,null,null,null,null,"GASLY Pierre",{"$f":"IF('Las Végas'!$D$20=\"\",0,SUM(Bahrein:AbuDhabi!$G$20))","v":0},0,1]
[null,null,null,null,null,null,0,null,null,null,null,null,null,"OCON Sebastian",{"$f":"IF('Las Végas'!$D$21=\"\",0,SUM(Bahrein:AbuDhabi!$G$21))","v":0},0,1]
["ALBON Alexander","WILLIAMS",null,null,null,null,0,null,null,null,null,null,null,"PIASTRI Oscar",{"$f":"IF('Las Végas'!$D$30=\"\",0,SUM(Bahrein:AbuDhabi!$G$30))","v":0},0,1]
["SARGEANT Logan",null,null,null,null,null,0,null,null,null,null,null,null,"GUANYU Zhou",{"$f":"IF('Las Végas'!$D$33=\"\",0,SUM(Bahrein:AbuDhabi!$G$33))","v":0},0,1]
[null,null,null,null,null,null,0,null,null,null,null,null,null,"ALBON Alexander",{"$f":"IF('Las Végas'!$D$17=\"\",0,SUM(Bahrein:AbuDhabi!$G$17))","v":0},0,1]
["GASLY Pierre","ALPINE F1 TEAM",null,null,null,null,0,null,null,null,null,null,null,"MAGNUSSEN Kevin",{"$f":"IF('Las Végas'!$D$26=\"\",0,SUM(Bahrein:AbuDhabi!$G$26))","v":0},0,1]
["OCON Sebastian",null,null,null,null,null,0,null,null,null,null,null,null,"TSUNODA Yoki",{"$f":"IF('Las Végas'!$D$23=\"\",0,SUM(Bahrein:AbuDhabi!$G$23))","v":0},0,1]
[null,null,null,null,null,null,0,null,null,null,null,null,null,"DEVRIES Nyck",{"$f":"IF('Las Végas'!$D$24=\"\",0,SUM(Bahrein:AbuDhabi!$G$24))","v":0},0,1]
["TSUNODA Yoki","ALPHA TAURI",null,null,null,null,0,null,null,null,null,null,null,"SARGEANT Logan",{"$f":"IF('Las Végas'!$D$18=\"\",0,SUM(Bahrein:AbuDhabi!$G$18))","v":0},0,1]
["DEVRIES Nyck",null,null,null,null,null,0]
[null,null,null,null,null,null,0]
["MAGNUSSEN Kevin","HAAS",null,null,null,null,0]
["HULKENBERG Nico",null,null,null,null,null,0]
[null,null,null,null,null,null,0]
["NORRIS Lando","Mc LAREN",null,null,null,null,0]
["PIASTRI Oscar",null,null,null,null,null,0]
[null,null,null,null,null,null,0]
["BOTTAS Valtteri","ALFA ROMÉO",null,null,null,null,0]
["GUANYU Zhou",null,null,null,null,null,0]
[null,null,null,null,null,null,0]